Workbook

Sheet Main
B10: 2020-10-01
B12: Sheet No. | C12: Template Name | D12: Summary
B13: 1 | C13: Future Intra | D13: For Intraday trading in F&O segment
B14: 2 | C14: Cash Intra | D14: For Intraday trading in cash market segment
B15: 3 | C15: Mid-cap Intra | D15: For Intraday trading in Mid-cap stocks
B16: 4 | C16: Bulk Deals | D16: Reveals Bulk Deals carried on NSE & BSE
B17: 5 | C17: Call Tracker
K27: `

Sheet Future Intra
M5: Back to Main Page
A6: FOR INTRA DAY TRADING | L6: =Main!B10 -> 2020-10-01
A9: Sr.no | B9: Sector | C9: Scrip | D9: CLOSE RATE | E9: Pivot Point | F9: Supports | I9: Resistances
B10: Sector | D10: Point | E10: Point | F10: S1 | G10: S2 | H10: S3 | I10: R1 | J10: R2 | K10: R3 | L10: HIGH | M10: LOW | N10: OI | O10: % Change in OI
A11: 1 | B11: Index | C11: BANKNIFTY | D11: 21464.25 | E11: 21395.35 | F11: 21210.10 | G11: 20955.95 | H11: 20770.70 | I11: 21649.50 | J11: 21834.75 | K11: 22088.90 | L11: 21580.6 | M11: 21141.2 | N11: 1801550 | O11: 8.23%
A12: 2 | B12: Index | C12: NIFTY | D12: 11256.85 | E12: 11248.88 | F12: 11202.97 | G12: 11149.08 | H12: 11103.17 | I12: 11302.77 | J12: 11348.68 | K12: 11402.57 | L12: 11294.8 | M12: 11195 | N12: 9780450 | O12: 5.01%
A13: 3 | B13: Cement | C13: ACC | D13: 1397.45 | E13: 1394.40 | F13: 1382.05 | G13: 1366.65 | H13: 1354.30 | I13: 1409.80 | J13: 1422.15 | K13: 1437.55 | L13: 1406.75 | M13: 1379 | N13: 1879500 | O13: -1.31%
A14: 4 | B14: Others | C14: ADANIENT | D14: 297.95 | E14: 300.32 | F14: 293.93 | G14: 289.92 | H14: 283.53 | I14: 304.33 | J14: 310.72 | K14: 314.73 | L14: 306.7 | M14: 296.3 | N14: 17468000 | O14: -2.98%
A15: 5 | B15: Others | C15: ADANIPORTS | D15: 343.85 | E15: 340.62 | F15: 333.73 | G15: 323.62 | H15: 316.73 | I15: 350.73 | J15: 357.62 | K15: 367.73 | L15: 347.5 | M15: 330.5 | N15: 27712500 | O15: 0.67%
A16: 6 | B16: Automobile | C16: AMARAJABAT | D16: 764.55 | E16: 761.10 | F16: 755.70 | G16: 746.85 | H16: 741.45 | I16: 769.95 | J16: 775.35 | K16: 784.20 | L16: 766.5 | M16: 752.25 | N16: 913000 | O16: 3.75%
A17: 7 | B17: Cement | C17: AMBUJACEM | D17: 218.20 | E17: 217.43 | F17: 215.57 | G17: 212.93 | H17: 211.07 | I17: 220.07 | J17: 221.93 | K17: 224.57 | L17: 219.3 | M17: 214.8 | N17: 13488000 | O17: 1.58%
A18: 8 | B18: Others | C18: APOLLOHOSP | D18: 2106.60 | E18: 2091.02 | F18: 2065.58 | G18: 2024.57 | H18: 1999.13 | I18: 2132.03 | J18: 2157.47 | K18: 2198.48 | L18: 2116.45 | M18: 2050 | N18: 1832000 | O18: 12.29%
A19: 9 | B19: Automobile | C19: APOLLOTYRE | D19: 131.35 | E19: 131.12 | F19: 129.88 | G19: 128.42 | H19: 127.18 | I19: 132.58 | J19: 133.82 | K19: 135.28 | L19: 132.35 | M19: 129.65 | N19: 9575000 | O19: -0.36%
A20: 10 | B20: Automobile | C20: ASHOKLEY | D20: 74.80 | E20: 74.72 | F20: 73.53 | G20: 72.27 | H20: 71.08 | I20: 75.98 | J20: 77.17 | K20: 78.43 | L20: 75.9 | M20: 73.45 | N20: 33471000 | O20: 4.00%
A21: 11 | B21: FMCG | C21: ASIANPAINT | D21: 1992.35 | E21: 1986.78 | F21: 1966.72 | G21: 1941.08 | H21: 1921.02 | I21: 2012.42 | J21: 2032.48 | K21: 2058.12 | L21: 2006.85 | M21: 1961.15 | N21: 2483700 | O21: -0.34%
A22: 12 | B22: Pharma | C22: AUROPHARMA | D22: 799.85 | E22: 807.02 | F22: 789.28 | G22: 778.72 | H22: 760.98 | I22: 817.58 | J22: 835.32 | K22: 845.88 | L22: 824.75 | M22: 796.45 | N22: 14725100 | O22: 2.40%
A23: 13 | B23: Banking | C23: AXISBANK | D23: 425.70 | E23: 424.92 | F23: 420.83 | G23: 415.97 | H23: 411.88 | I23: 429.78 | J23: 433.87 | K23: 438.73 | L23: 429 | M23: 420.05 | N23: 53420400 | O23: 1.34%
A24: 14 | B24: Automobile | C24: BAJAJ-AUTO | D24: 2897.65 | E24: 2912.03 | F24: 2871.07 | G24: 2844.48 | H24: 2803.52 | I24: 2938.62 | J24: 2979.58 | K24: 3006.17 | L24: 2953 | M24: 2885.45 | N24: 2050000 | O24: 5.77%
A25: 15 | B25: Finance | C25: BAJAJFINSV | D25: 5865.70 | E25: 5884.28 | F25: 5818.57 | G25: 5771.43 | H25: 5705.72 | I25: 5931.42 | J25: 5997.13 | K25: 6044.27 | L25: 5950 | M25: 5837.15 | N25: 757125 | O25: -2.42%
A26: 16 | B26: Finance | C26: BAJFINANCE | D26: 3284.80 | E26: 3298.70 | F26: 3251.10 | G26: 3217.40 | H26: 3169.80 | I26: 3332.40 | J26: 3380.00 | K26: 3413.70 | L26: 3346.3 | M26: 3265 | N26: 4197750 | O26: 1.84%
A27: 17 | B27: Automobile | C27: BALKRISIND | D27: 1479.10 | E27: 1490.07 | F27: 1463.03 | G27: 1446.97 | H27: 1419.93 | I27: 1506.13 | J27: 1533.17 | K27: 1549.23 | L27: 1517.1 | M27: 1474 | N27: 1580000 | O27: -11.63%
A28: 18 | B28: Banking | C28: BANDHANBNK | D28: 274.10 | E28: 273.72 | F28: 269.73 | G28: 265.37 | H28: 261.38 | I28: 278.08 | J28: 282.07 | K28: 286.43 | L28: 277.7 | M28: 269.35 | N28: 14239800 | O28: 1.02%
A29: 19 | B29: Banking | C29: BANKBARODA | D29: 41.20 | E29: 41.07 | F29: 40.53 | G29: 39.87 | H29: 39.33 | I29: 41.73 | J29: 42.27 | K29: 42.93 | L29: 41.6 | M29: 40.4 | N29: 45059000 | O29: 1.78%
A30: 20 | B30: FMCG | C30: BATAINDIA | D30: 1323.20 | E30: 1331.97 | F30: 1306.98 | G30: 1290.77 | H30: 1265.78 | I30: 1348.18 | J30: 1373.17 | K30: 1389.38 | L30: 1356.95 | M30: 1315.75 | N30: 1895850 | O30: 5.06%
A31: 21 | B31: Capital_Goods | C31: BEL | D31: 96.30 | E31: 95.80 | F31: 94.80 | G31: 93.30 | H31: 92.30 | I31: 97.30 | J31: 98.30 | K31: 99.80 | L31: 96.8 | M31: 94.3 | N31: 32011200 | O31: 4.39%
A32: 22 | B32: FMCG | C32: BERGEPAINT | D32: 586.65 | E32: 584.70 | F32: 578.20 | G32: 569.75 | H32: 563.25 | I32: 593.15 | J32: 599.65 | K32: 608.10 | L32: 591.2 | M32: 576.25 | N32: 3600300 | O32: 0.83%
A33: 23 | B33: Automobile | C33: BHARATFORG | D33: 449.25 | E33: 449.82 | F33: 445.58 | G33: 441.92 | H33: 437.68 | I33: 453.48 | J33: 457.72 | K33: 461.38 | L33: 454.05 | M33: 446.15 | N33: 7143000 | O33: 0.42%
A34: 24 | B34: Telecom | C34: BHARTIARTL | D34: 423.40 | E34: 428.90 | F34: 415.05 | G34: 406.70 | H34: 392.85 | I34: 437.25 | J34: 451.10 | K34: 459.45 | L34: 442.75 | M34: 420.55 | N34: 123165540 | O34: 2.14%
A35: 25 | B35: Capital_Goods | C35: BHEL | D35: 29.45 | E35: 29.70 | F35: 29.10 | G35: 28.75 | H35: 28.15 | I35: 30.05 | J35: 30.65 | K35: 31.00 | L35: 30.3 | M35: 29.35 | N35: 67410000 | O35: 3.55%
A36: 26 | B36: Pharma | C36: BIOCON | D36: 449.00 | E36: 453.42 | F36: 442.03 | G36: 435.07 | H36: 423.68 | I36: 460.38 | J36: 471.77 | K36: 478.73 | L36: 464.8 | M36: 446.45 | N36: 13379100 | O36: -1.24%
A37: 27 | B37: Automobile | C37: BOSCHLTD | D37: 13768.25 | E37: 13754.90 | F37: 13545.40 | G37: 13322.55 | H37: 13113.05 | I37: 13977.75 | J37: 14187.25 | K37: 14410.10 | L37: 13964.4 | M37: 13532.05 | N37: 118500 | O37: 0.77%
A38: 28 | B38: Oil_Gas | C38: BPCL | D38: 354.45 | E38: 367.03 | F38: 337.92 | G38: 321.38 | H38: 292.27 | I38: 383.57 | J38: 412.68 | K38: 429.22 | L38: 396.15 | M38: 350.5 | N38: 26884800 | O38: 15.85%
A39: 29 | B39: FMCG | C39: BRITANNIA | D39: 3814.30 | E39: 3792.43 | F39: 3740.97 | G39: 3667.63 | H39: 3616.17 | I39: 3865.77 | J39: 3917.23 | K39: 3990.57 | L39: 3843.9 | M39: 3719.1 | N39: 912400 | O39: -0.52%
A40: 30 | B40: Pharma | C40: CADILAHC | D40: 396.55 | E40: 397.45 | F40: 387.10 | G40: 377.65 | H40: 367.30 | I40: 406.90 | J40: 417.25 | K40: 426.70 | L40: 407.8 | M40: 388 | N40: 7616400 | O40: 18.16%
A41: 31 | B41: Banking | C41: CANBK | D41: 88.25 | E41: 87.92 | F41: 86.73 | G41: 85.22 | H41: 84.03 | I41: 89.43 | J41: 90.62 | K41: 92.13 | L41: 89.1 | M41: 86.4 | N41: 12100000 | O41: -3.16%
A42: 32 | B42: Finance | C42: CHOLAFIN | D42: 247.80 | E42: 249.93 | F42: 244.72 | G42: 241.63 | H42: 236.42 | I42: 253.02 | J42: 258.23 | K42: 261.32 | L42: 255.15 | M42: 246.85 | N42: 5975000 | O42: -1.08%
A43: 33 | B43: Pharma | C43: CIPLA | D43: 776.50 | E43: 779.03 | F43: 761.07 | G43: 745.63 | H43: 727.67 | I43: 794.47 | J43: 812.43 | K43: 827.87 | L43: 797 | M43: 763.6 | N43: 13379600 | O43: -0.79%
A44: 34 | B44: Others | C44: COALINDIA | D44: 116.55 | E44: 116.32 | F44: 115.03 | G44: 113.52 | H44: 112.23 | I44: 117.83 | J44: 119.12 | K44: 120.63 | L44: 117.6 | M44: 114.8 | N44: 46301800 | O44: 4.45%
A45: 35 | B45: Technology | C45: COFORGE | D45: 2334.85 | E45: 2328.93 | F45: 2296.92 | G45: 2258.98 | H45: 2226.97 | I45: 2366.87 | J45: 2398.88 | K45: 2436.82 | L45: 2360.95 | M45: 2291 | N45: 550875 | O45: 6.37%
A46: 36 | B46: FMCG | C46: COLPAL | D46: 1439.25 | E46: 1437.87 | F46: 1420.73 | G46: 1402.22 | H46: 1385.08 | I46: 1456.38 | J46: 1473.52 | K46: 1492.03 | L46: 1455 | M46: 1419.35 | N46: 2105600 | O46: -0.69%
A47: 37 | B47: Others | C47: CONCOR | D47: 365.60 | E47: 368.22 | F47: 360.13 | G47: 354.67 | H47: 346.58 | I47: 373.68 | J47: 381.77 | K47: 387.23 | L47: 376.3 | M47: 362.75 | N47: 6774042 | O47: 5.86%
A48: 38 | B48: Capital_Goods | C48: CUMMINSIND | D48: 445.20 | E48: 444.93 | F48: 440.37 | G48: 435.53 | H48: 430.97 | I48: 449.77 | J48: 454.33 | K48: 459.17 | L48: 449.5 | M48: 440.1 | N48: 1857600 | O48: 0.13%
A49: 39 | B49: FMCG | C49: DABUR | D49: 513.15 | E49: 509.30 | F49: 501.85 | G49: 490.55 | H49: 483.10 | I49: 520.60 | J49: 528.05 | K49: 539.35 | L49: 516.75 | M49: 498 | N49: 11081250 | O49: 8.56%
A50: 40 | B50: Pharma | C50: DIVISLAB | D50: 3064.70 | E50: 3089.90 | F50: 3032.80 | G50: 3000.90 | H50: 2943.80 | I50: 3121.80 | J50: 3178.90 | K50: 3210.80 | L50: 3147 | M50: 3058 | N50: 3732400 | O50: 2.05%
A51: 41 | B51: Realty | C51: DLF | D51: 153.35 | E51: 154.52 | F51: 151.63 | G51: 149.92 | H51: 147.03 | I51: 156.23 | J51: 159.12 | K51: 160.83 | L51: 157.4 | M51: 152.8 | N51: 27066600 | O51: -0.18%
A52: 42 | B52: Pharma | C52: DRREDDY | D52: 5215.95 | E52: 5219.07 | F52: 5098.63 | G52: 4981.32 | H52: 4860.88 | I52: 5336.38 | J52: 5456.82 | K52: 5574.13 | L52: 5339.5 | M52: 5101.75 | N52: 2660000 | O52: 4.07%
A53: 43 | B53: Automobile | C53: EICHERMOT | D53: 2202.50 | E53: 2205.25 | F53: 2183.50 | G53: 2164.50 | H53: 2142.75 | I53: 2224.25 | J53: 2246.00 | K53: 2265.00 | L53: 2227 | M53: 2186.25 | N53: 2189950 | O53: 2.62%
A54: 44 | B54: Automobile | C54: ESCORTS | D54: 1319.90 | E54: 1324.92 | F54: 1305.43 | G54: 1290.97 | H54: 1271.48 | I54: 1339.38 | J54: 1358.87 | K54: 1373.33 | L54: 1344.4 | M54: 1310.45 | N54: 2477200 | O54: 2.78%
A55: 45 | B55: Automobile | C55: EXIDEIND | D55: 165.80 | E55: 165.87 | F55: 164.78 | G55: 163.77 | H55: 162.68 | I55: 166.88 | J55: 167.97 | K55: 168.98 | L55: 166.95 | M55: 164.85 | N55: 7149600 | O55: -0.75%
A56: 46 | B56: Banking | C56: FEDERALBNK | D56: 48.70 | E56: 49.00 | F56: 48.25 | G56: 47.80 | H56: 47.05 | I56: 49.45 | J56: 50.20 | K56: 50.65 | L56: 49.75 | M56: 48.55 | N56: 74706500 | O56: -2.24%
A57: 47 | B57: Oil_Gas | C57: GAIL | D57: 86.90 | E57: 87.03 | F57: 85.57 | G57: 84.23 | H57: 82.77 | I57: 88.37 | J57: 89.83 | K57: 91.17 | L57: 88.5 | M57: 85.7 | N57: 23802200 | O57: -6.11%
A58: 48 | B58: Pharma | C58: GLENMARK | D58: 485.45 | E58: 490.67 | F58: 478.53 | G58: 471.62 | H58: 459.48 | I58: 497.58 | J58: 509.72 | K58: 516.63 | L58: 502.8 | M58: 483.75 | N58: 7235800 | O58: 6.07%
A59: 49 | B59: Infrastructure | C59: GMRINFRA | D59: 23.15 | E59: 23.20 | F59: 22.65 | G59: 22.15 | H59: 21.60 | I59: 23.70 | J59: 24.25 | K59: 24.75 | L59: 23.75 | M59: 22.7 | N59: 64935000 | O59: -3.28%
A60: 50 | B60: FMCG | C60: GODREJCP | D60: 728.15 | E60: 724.87 | F60: 711.28 | G60: 694.42 | H60: 680.83 | I60: 741.73 | J60: 755.32 | K60: 772.18 | L60: 738.45 | M60: 708 | N60: 4772000 | O60: 0.61%
A61: 51 | B61: Others | C61: GODREJPROP | D61: 862.70 | E61: 869.58 | F61: 852.27 | G61: 841.83 | H61: 824.52 | I61: 880.02 | J61: 897.33 | K61: 907.77 | L61: 886.9 | M61: 859.15 | N61: 619450 | O61: 3.47%
A62: 52 | B62: Cement | C62: GRASIM | D62: 745.95 | E62: 737.82 | F62: 728.13 | G62: 710.32 | H62: 700.63 | I62: 755.63 | J62: 765.32 | K62: 783.13 | L62: 747.5 | M62: 720 | N62: 17802050 | O62: 0.54%
A63: 53 | B63: Others | C63: HAVELLS | D63: 680.35 | E63: 676.17 | F63: 669.58 | G63: 658.82 | H63: 652.23 | I63: 686.93 | J63: 693.52 | K63: 704.28 | L63: 682.75 | M63: 665.4 | N63: 5267000 | O63: -0.02%
A64: 54 | B64: Technology | C64: HCLTECH | D64: 814.50 | E64: 815.72 | F64: 808.83 | G64: 803.17 | H64: 796.28 | I64: 821.38 | J64: 828.27 | K64: 833.93 | L64: 822.6 | M64: 810.05 | N64: 15584800 | O64: 5.46%
A65: 55 | B65: Finance | C65: HDFC | D65: 1744.55 | E65: 1733.52 | F65: 1718.23 | G65: 1691.92 | H65: 1676.63 | I65: 1759.83 | J65: 1775.12 | K65: 1801.43 | L65: 1748.8 | M65: 1707.2 | N65: 26934900 | O65: -1.37%
A66: 56 | B66: Banking | C66: HDFCBANK | D66: 1076.30 | E66: 1070.42 | F66: 1057.48 | G66: 1038.67 | H66: 1025.73 | I66: 1089.23 | J66: 1102.17 | K66: 1120.98 | L66: 1083.35 | M66: 1051.6 | N66: 41547550 | O66: 0.03%
A67: 57 | B67: Finance | C67: HDFCLIFE | D67: 563.60 | E67: 565.83 | F67: 557.12 | G67: 550.63 | H67: 541.92 | I67: 572.32 | J67: 581.03 | K67: 587.52 | L67: 574.55 | M67: 559.35 | N67: 9969300 | O67: 4.63%
A68: 58 | B68: Automobile | C68: HEROMOTOCO | D68: 3163.35 | E68: 3171.20 | F68: 3138.55 | G68: 3113.75 | H68: 3081.10 | I68: 3196.00 | J68: 3228.65 | K68: 3253.45 | L68: 3203.85 | M68: 3146.4 | N68: 2022900 | O68: -0.03%
A69: 59 | B69: Metals | C69: HINDALCO | D69: 175.55 | E69: 175.57 | F69: 172.98 | G69: 170.42 | H69: 167.83 | I69: 178.13 | J69: 180.72 | K69: 183.28 | L69: 178.15 | M69: 173 | N69: 28582100 | O69: -4.78%
A70: 60 | B70: Oil_Gas | C70: HINDPETRO | D70: 180.95 | E70: 180.95 | F70: 175.50 | G70: 170.05 | H70: 164.60 | I70: 186.40 | J70: 191.85 | K70: 197.30 | L70: 186.4 | M70: 175.5 | N70: 30969000 | O70: -3.48%
A71: 61 | B71: FMCG | C71: HINDUNILVR | D71: 2069.00 | E71: 2064.98 | F71: 2039.07 | G71: 2009.13 | H71: 1983.22 | I71: 2094.92 | J71: 2120.83 | K71: 2150.77 | L71: 2090.9 | M71: 2035.05 | N71: 7293900 | O71: -0.47%
A72: 62 | B72: Finance | C72: IBULHSGFIN | D72: 157.75 | E72: 156.83 | F72: 152.72 | G72: 147.68 | H72: 143.57 | I72: 161.87 | J72: 165.98 | K72: 171.02 | L72: 160.95 | M72: 151.8 | N72: 12685200 | O72: 1.36%
A73: 63 | B73: Banking | C73: ICICIBANK | D73: 355.60 | E73: 355.42 | F73: 351.28 | G73: 346.97 | H73: 342.83 | I73: 359.73 | J73: 363.87 | K73: 368.18 | L73: 359.55 | M73: 351.1 | N73: 120366125 | O73: -0.27%
A74: 64 | B74: Finance | C74: ICICIPRULI | D74: 422.50 | E74: 421.43 | F74: 415.07 | G74: 407.63 | H74: 401.27 | I74: 428.87 | J74: 435.23 | K74: 442.67 | L74: 427.8 | M74: 414 | N74: 6420000 | O74: -0.02%
A75: 65 | B75: Telecom | C75: IDEA | D75: 9.65 | E75: 9.70 | F75: 9.30 | G75: 8.95 | H75: 8.55 | I75: 10.05 | J75: 10.45 | K75: 10.80 | L75: 10.1 | M75: 9.35 | N75: 367360000 | O75: 0.23%
A76: 66 | B76: Banking | C76: IDFCFIRSTB | D76: 29.95 | E76: 29.92 | F76: 29.53 | G76: 29.12 | H76: 28.73 | I76: 30.33 | J76: 30.72 | K76: 31.13 | L76: 30.3 | M76: 29.5 | N76: 140980000 | O76: 0.84%
A77: 67 | B77: Oil_Gas | C77: IGL | D77: 389.05 | E77: 391.47 | F77: 384.98 | G77: 380.92 | H77: 374.43 | I77: 395.53 | J77: 402.02 | K77: 406.08 | L77: 397.95 | M77: 387.4 | N77: 7099125 | O77: 4.01%
A78: 68 | B78: Others | C78: INDIGO | D78: 1255.00 | E78: 1248.83 | F78: 1231.77 | G78: 1208.53 | H78: 1191.47 | I78: 1272.07 | J78: 1289.13 | K78: 1312.37 | L78: 1265.9 | M78: 1225.6 | N78: 2673500 | O78: -4.09%
A79: 69 | B79: Banking | C79: INDUSINDBK | D79: 529.80 | E79: 531.45 | F79: 521.15 | G79: 512.50 | H79: 502.20 | I79: 540.10 | J79: 550.40 | K79: 559.05 | L79: 541.75 | M79: 522.8 | N79: 30420800 | O79: 1.12%
A80: 70 | B80: Telecom | C80: INFRATEL | D80: 176.35 | E80: 177.18 | F80: 173.72 | G80: 171.08 | H80: 167.62 | I80: 179.82 | J80: 183.28 | K80: 185.92 | L80: 180.65 | M80: 174.55 | N80: 13745200 | O80: -7.15%
A81: 71 | B81: Technology | C81: INFY | D81: 1003.85 | E81: 1004.30 | F81: 991.75 | G81: 979.65 | H81: 967.10 | I81: 1016.40 | J81: 1028.95 | K81: 1041.05 | L81: 1016.85 | M81: 992.2 | N81: 32020800 | O81: 2.07%
A82: 72 | B82: Oil_Gas | C82: IOC | D82: 74.15 | E82: 74.32 | F82: 72.93 | G82: 71.72 | H82: 70.33 | I82: 75.53 | J82: 76.92 | K82: 78.13 | L82: 75.7 | M82: 73.1 | N82: 66182700 | O82: 1.19%
A83: 73 | B83: FMCG | C83: ITC | D83: 172.45 | E83: 171.50 | F83: 170.15 | G83: 167.85 | H83: 166.50 | I83: 173.80 | J83: 175.15 | K83: 177.45 | L83: 172.85 | M83: 169.2 | N83: 134140800 | O83: -0.49%
A84: 74 | B84: Metals | C84: JINDALSTEL | D84: 187.00 | E84: 188.80 | F84: 182.80 | G84: 178.60 | H84: 172.60 | I84: 193.00 | J84: 199.00 | K84: 203.20 | L84: 194.8 | M84: 184.6 | N84: 23915000 | O84: -4.17%
A85: 75 | B85: Metals | C85: JSWSTEEL | D85: 278.20 | E85: 280.15 | F85: 274.05 | G85: 269.90 | H85: 263.80 | I85: 284.30 | J85: 290.40 | K85: 294.55 | L85: 286.25 | M85: 276 | N85: 42819300 | O85: -1.78%
A86: 76 | B86: Others | C86: JUBLFOOD | D86: 2356.10 | E86: 2383.23 | F86: 2323.97 | G86: 2291.83 | H86: 2232.57 | I86: 2415.37 | J86: 2474.63 | K86: 2506.77 | L86: 2442.5 | M86: 2351.1 | N86: 1995000 | O86: 0.10%
A87: 77 | B87: Banking | C87: KOTAKBANK | D87: 1270.40 | E87: 1268.30 | F87: 1257.40 | G87: 1244.40 | H87: 1233.50 | I87: 1281.30 | J87: 1292.20 | K87: 1305.20 | L87: 1279.2 | M87: 1255.3 | N87: 12160400 | O87: 1.99%
A88: 78 | B88: Finance | C88: L&TFH | D88: 62.40 | E88: 62.13 | F88: 61.32 | G88: 60.23 | H88: 59.42 | I88: 63.22 | J88: 64.03 | K88: 65.12 | L88: 62.95 | M88: 61.05 | N88: 24595600 | O88: 1.29%
A89: 79 | B89: Finance | C89: LICHSGFIN | D89: 277.35 | E89: 278.28 | F89: 274.47 | G89: 271.58 | H89: 267.77 | I89: 281.17 | J89: 284.98 | K89: 287.87 | L89: 282.1 | M89: 275.4 | N89: 7346000 | O89: 6.22%
A90: 80 | B90: Capital_Goods | C90: LT | D90: 903.85 | E90: 900.28 | F90: 892.67 | G90: 881.48 | H90: 873.87 | I90: 911.47 | J90: 919.08 | K90: 930.27 | L90: 907.9 | M90: 889.1 | N90: 12267750 | O90: -1.43%
A91: 81 | B91: Pharma | C91: LUPIN | D91: 1010.60 | E91: 1012.32 | F91: 995.28 | G91: 979.97 | H91: 962.93 | I91: 1027.63 | J91: 1044.67 | K91: 1059.98 | L91: 1029.35 | M91: 997 | N91: 8629200 | O91: 1.48%
A92: 82 | B92: Automobile | C92: M&M | D92: 610.95 | E92: 614.42 | F92: 604.68 | G92: 598.42 | H92: 588.68 | I92: 620.68 | J92: 630.42 | K92: 636.68 | L92: 624.15 | M92: 608.15 | N92: 16179800 | O92: 2.95%
A93: 83 | B93: Finance | C93: M&MFIN | D93: 123.85 | E93: 124.25 | F93: 122.70 | G93: 121.55 | H93: 120.00 | I93: 125.40 | J93: 126.95 | K93: 128.10 | L93: 125.8 | M93: 123.1 | N93: 14778204 | O93: 4.00%
A94: 84 | B94: Finance | C94: MANAPPURAM | D94: 158.05 | E94: 158.07 | F94: 155.53 | G94: 153.02 | H94: 150.48 | I94: 160.58 | J94: 163.12 | K94: 165.63 | L94: 160.6 | M94: 155.55 | N94: 14826000 | O94: 0.98%
A95: 85 | B95: FMCG | C95: MARICO | D95: 363.40 | E95: 361.95 | F95: 358.00 | G95: 352.60 | H95: 348.65 | I95: 367.35 | J95: 371.30 | K95: 376.70 | L95: 365.9 | M95: 356.55 | N95: 9290000 | O95: -0.90%
A96: 86 | B96: Automobile | C96: MARUTI | D96: 6779.60 | E96: 6764.87 | F96: 6720.73 | G96: 6661.87 | H96: 6617.73 | I96: 6823.73 | J96: 6867.87 | K96: 6926.73 | L96: 6809 | M96: 6706 | N96: 2389700 | O96: 1.13%
A97: 87 | B97: FMCG | C97: MCDOWELL-N | D97: 518.10 | E97: 517.08 | F97: 508.67 | G97: 499.23 | H97: 490.82 | I97: 526.52 | J97: 534.93 | K97: 544.37 | L97: 525.5 | M97: 507.65 | N97: 15270000 | O97: -1.67%
A98: 88 | B98: Finance | C98: MFSL | D98: 614.45 | E98: 611.78 | F98: 602.67 | G98: 590.88 | H98: 581.77 | I98: 623.57 | J98: 632.68 | K98: 644.47 | L98: 620.9 | M98: 600 | N98: 2186600 | O98: -2.04%
A99: 89 | B99: Oil_Gas | C99: MGL | D99: 833.65 | E99: 836.53 | F99: 825.22 | G99: 816.78 | H99: 805.47 | I99: 844.97 | J99: 856.28 | K99: 864.72 | L99: 847.85 | M99: 828.1 | N99: 1403400 | O99: 2.45%
A100: 90 | B100: Technology | C100: MINDTREE | D100: 1336.60 | E100: 1331.78 | F100: 1320.37 | G100: 1304.13 | H100: 1292.72 | I100: 1348.02 | J100: 1359.43 | K100: 1375.67 | L100: 1343.2 | M100: 1315.55 | N100: 1528000 | O100: -3.44%
A101: 91 | B101: Automobile | C101: MOTHERSUMI | D101: 115.20 | E101: 115.60 | F101: 113.75 | G101: 112.30 | H101: 110.45 | I101: 117.05 | J101: 118.90 | K101: 120.35 | L101: 117.45 | M101: 114.15 | N101: 21840000 | O101: 1.43%
A102: 92 | B102: Automobile | C102: MRF | D102: 59727.10 | E102: 59562.42 | F102: 59174.83 | G102: 58622.57 | H102: 58234.98 | I102: 60114.68 | J102: 60502.27 | K102: 61054.53 | L102: 59950 | M102: 59010.15 | N102: 38600 | O102: -3.62%
A103: 93 | B103: Finance | C103: MUTHOOTFIN | D103: 1134.20 | E103: 1137.98 | F103: 1120.67 | G103: 1107.13 | H103: 1089.82 | I103: 1151.52 | J103: 1168.83 | K103: 1182.37 | L103: 1155.3 | M103: 1124.45 | N103: 3648750 | O103: -3.61%
A104: 94 | B104: Metals | C104: NATIONALUM | D104: 32.30 | E104: 32.55 | F104: 31.75 | G104: 31.20 | H104: 30.40 | I104: 33.10 | J104: 33.90 | K104: 34.45 | L104: 33.35 | M104: 32 | N104: 42330000 | O104: 3.58%
A105: 95 | B105: Others | C105: NAUKRI | D105: 3637.65 | E105: 3653.02 | F105: 3606.58 | G105: 3575.52 | H105: 3529.08 | I105: 3684.08 | J105: 3730.52 | K105: 3761.58 | L105: 3699.45 | M105: 3621.95 | N105: 646000 | O105: -3.62%
A106: 96 | B106: FMCG | C106: NESTLEIND | D106: 16003.40 | E106: 15936.83 | F106: 15753.92 | G106: 15504.43 | H106: 15321.52 | I106: 16186.32 | J106: 16369.23 | K106: 16618.72 | L106: 16119.75 | M106: 15687.35 | N106: 412300 | O106: -0.76%
A107: 97 | B107: Metals | C107: NMDC | D107: 82.40 | E107: 82.10 | F107: 81.35 | G107: 80.30 | H107: 79.55 | I107: 83.15 | J107: 83.90 | K107: 84.95 | L107: 82.85 | M107: 81.05 | N107: 36521700 | O107: -0.87%
A108: 98 | B108: Power | C108: NTPC | D108: 85.65 | E108: 85.25 | F108: 84.30 | G108: 82.95 | H108: 82.00 | I108: 86.60 | J108: 87.55 | K108: 88.90 | L108: 86.2 | M108: 83.9 | N108: 43907100 | O108: 1.70%
A109: 99 | B109: Oil_Gas | C109: ONGC | D109: 69.60 | E109: 69.40 | F109: 68.05 | G109: 66.50 | H109: 65.15 | I109: 70.95 | J109: 72.30 | K109: 73.85 | L109: 70.75 | M109: 67.85 | N109: 54854800 | O109: 0.62%
A110: 100 | B110: Textile | C110: PAGEIND | D110: 21499.50 | E110: 21708.40 | F110: 21066.75 | G110: 20634.00 | H110: 19992.35 | I110: 22141.15 | J110: 22782.80 | K110: 23215.55 | L110: 22350.05 | M110: 21275.65 | N110: 108540 | O110: -2.92%
A111: 101 | B111: Pharma | C111: PEL | D111: 1258.15 | E111: 1265.83 | F111: 1244.92 | G111: 1231.68 | H111: 1210.77 | I111: 1279.07 | J111: 1299.98 | K111: 1313.22 | L111: 1286.75 | M111: 1252.6 | N111: 3185050 | O111: 0.99%
A112: 102 | B112: Oil_Gas | C112: PETRONET | D112: 221.35 | E112: 221.17 | F112: 219.18 | G112: 217.02 | H112: 215.03 | I112: 223.33 | J112: 225.32 | K112: 227.48 | L112: 223.15 | M112: 219 | N112: 11544000 | O112: -1.13%
A113: 103 | B113: Finance | C113: PFC | D113: 86.60 | E113: 87.28 | F113: 85.62 | G113: 84.63 | H113: 82.97 | I113: 88.27 | J113: 89.93 | K113: 90.92 | L113: 88.95 | M113: 86.3 | N113: 45123600 | O113: 0.30%
A114: 104 | B114: FMCG | C114: PIDILITIND | D114: 1436.85 | E114: 1435.12 | F114: 1423.33 | G114: 1409.82 | H114: 1398.03 | I114: 1448.63 | J114: 1460.42 | K114: 1473.93 | L114: 1446.9 | M114: 1421.6 | N114: 3055000 | O114: 2.93%
A115: 105 | B115: Banking | C115: PNB | D115: 28.75 | E115: 28.67 | F115: 28.43 | G115: 28.12 | H115: 27.88 | I115: 28.98 | J115: 29.22 | K115: 29.53 | L115: 28.9 | M115: 28.35 | N115: 60256000 | O115: 1.49%
A116: 106 | B116: Power | C116: POWERGRID | D116: 163.40 | E116: 162.80 | F116: 161.70 | G116: 160.00 | H116: 158.90 | I116: 164.50 | J116: 165.60 | K116: 167.30 | L116: 163.9 | M116: 161.1 | N116: 16496000 | O116: 3.41%
A117: 107 | B117: Media | C117: PVR | D117: 1204.95 | E117: 1208.23 | F117: 1181.57 | G117: 1158.18 | H117: 1131.52 | I117: 1231.62 | J117: 1258.28 | K117: 1281.67 | L117: 1234.9 | M117: 1184.85 | N117: 1516889 | O117: -2.38%
A118: 108 | B118: Cement | C118: RAMCOCEM | D118: 754.40 | E118: 749.92 | F118: 742.68 | G118: 730.97 | H118: 723.73 | I118: 761.63 | J118: 768.87 | K118: 780.58 | L118: 757.15 | M118: 738.2 | N118: 1336200 | O118: 0.51%
A119: 109 | B119: Banking | C119: RBLBANK | D119: 169.90 | E119: 170.07 | F119: 167.63 | G119: 165.37 | H119: 162.93 | I119: 172.33 | J119: 174.77 | K119: 177.03 | L119: 172.5 | M119: 167.8 | N119: 17313400 | O119: -1.26%
A120: 110 | B120: Power | C120: RECLTD | D120: 99.55 | E120: 99.63 | F120: 98.32 | G120: 97.08 | H120: 95.77 | I120: 100.87 | J120: 102.18 | K120: 103.42 | L120: 100.95 | M120: 98.4 | N120: 17940000 | O120: 2.29%
A121: 111 | B121: Oil_Gas | C121: RELIANCE | D121: 2240.25 | E121: 2249.28 | F121: 2224.12 | G121: 2207.98 | H121: 2182.82 | I121: 2265.42 | J121: 2290.58 | K121: 2306.72 | L121: 2274.45 | M121: 2233.15 | N121: 32383125 | O121: 0.17%
A122: 112 | B122: Metals | C122: SAIL | D122: 33.95 | E122: 34.50 | F122: 33.25 | G122: 32.55 | H122: 31.30 | I122: 35.20 | J122: 36.45 | K122: 37.15 | L122: 35.75 | M122: 33.8 | N122: 48260000 | O122: 9.11%
A123: 113 | B123: Finance | C123: SBILIFE | D123: 813.70 | E123: 811.77 | F123: 806.33 | G123: 798.97 | H123: 793.53 | I123: 819.13 | J123: 824.57 | K123: 831.93 | L123: 817.2 | M123: 804.4 | N123: 5970000 | O123: 0.18%
A124: 114 | B124: Banking | C124: SBIN | D124: 185.85 | E124: 185.33 | F124: 183.32 | G124: 180.78 | H124: 178.77 | I124: 187.87 | J124: 189.88 | K124: 192.42 | L124: 187.35 | M124: 182.8 | N124: 109938000 | O124: -0.61%
A125: 115 | B125: Cement | C125: SHREECEM | D125: 20299.40 | E125: 20211.65 | F125: 19844.35 | G125: 19389.30 | H125: 19022.00 | I125: 20666.70 | J125: 21034.00 | K125: 21489.05 | L125: 20578.95 | M125: 19756.6 | N125: 160200 | O125: -6.64%
A126: 116 | B126: Capital_Goods | C126: SIEMENS | D126: 1264.70 | E126: 1267.72 | F126: 1249.98 | G126: 1235.27 | H126: 1217.53 | I126: 1282.43 | J126: 1300.17 | K126: 1314.88 | L126: 1285.45 | M126: 1253 | N126: 2005300 | O126: 4.59%
A127: 117 | B127: Textile | C127: SRF | D127: 4130.10 | E127: 4143.75 | F127: 4103.50 | G127: 4076.90 | H127: 4036.65 | I127: 4170.35 | J127: 4210.60 | K127: 4237.20 | L127: 4184 | M127: 4117.15 | N127: 600250 | O127: -0.99%
A128: 118 | B128: Finance | C128: SRTRANSFIN | D128: 622.55 | E128: 622.17 | F128: 608.33 | G128: 594.12 | H128: 580.28 | I128: 636.38 | J128: 650.22 | K128: 664.43 | L128: 636 | M128: 607.95 | N128: 3971985 | O128: -4.20%
A129: 119 | B129: Pharma | C129: SUNPHARMA | D129: 503.35 | E129: 507.72 | F129: 496.63 | G129: 489.92 | H129: 478.83 | I129: 514.43 | J129: 525.52 | K129: 532.23 | L129: 518.8 | M129: 501 | N129: 35533400 | O129: 1.40%
A130: 120 | B130: Media | C130: SUNTV | D130: 468.05 | E130: 471.33 | F130: 463.32 | G130: 458.58 | H130: 450.57 | I130: 476.07 | J130: 484.08 | K130: 488.82 | L130: 479.35 | M130: 466.6 | N130: 4600500 | O130: -2.45%
A131: 121 | B131: Fertilisers | C131: TATACHEM | D131: 301.05 | E131: 300.90 | F131: 297.95 | G131: 294.85 | H131: 291.90 | I131: 304.00 | J131: 306.95 | K131: 310.05 | L131: 303.85 | M131: 297.8 | N131: 6298000 | O131: -1.13%
A132: 122 | B132: Others | C132: TATACONSUM | D132: 503.00 | E132: 506.28 | F132: 495.12 | G132: 487.23 | H132: 476.07 | I132: 514.17 | J132: 525.33 | K132: 533.22 | L132: 517.45 | M132: 498.4 | N132: 18997200 | O132: 4.04%
A133: 123 | B133: Automobile | C133: TATAMOTORS | D133: 134.05 | E133: 133.35 | F133: 131.55 | G133: 129.05 | H133: 127.25 | I133: 135.85 | J133: 137.65 | K133: 140.15 | L133: 135.15 | M133: 130.85 | N133: 74419200 | O133: 1.26%
A134: 124 | B134: Power | C134: TATAPOWER | D134: 53.50 | E134: 53.65 | F134: 53.10 | G134: 52.70 | H134: 52.15 | I134: 54.05 | J134: 54.60 | K134: 55.00 | L134: 54.2 | M134: 53.25 | N134: 67527000 | O134: 0.20%
A135: 125 | B135: Metals | C135: TATASTEEL | D135: 360.75 | E135: 364.08 | F135: 355.92 | G135: 351.08 | H135: 342.92 | I135: 368.92 | J135: 377.08 | K135: 381.92 | L135: 372.25 | M135: 359.25 | N135: 26028700 | O135: 1.12%
A136: 126 | B136: Technology | C136: TCS | D136: 2481.95 | E136: 2476.68 | F136: 2457.57 | G136: 2433.18 | H136: 2414.07 | I136: 2501.07 | J136: 2520.18 | K136: 2544.57 | L136: 2495.8 | M136: 2452.3 | N136: 5798100 | O136: 4.49%
A137: 127 | B137: Technology | C137: TECHM | D137: 795.70 | E137: 787.57 | F137: 776.63 | G137: 757.57 | H137: 746.63 | I137: 806.63 | J137: 817.57 | K137: 836.63 | L137: 798.5 | M137: 768.5 | N137: 12760800 | O137: 2.77%
A138: 128 | B138: FMCG | C138: TITAN | D138: 1202.25 | E138: 1191.40 | F138: 1176.10 | G138: 1149.95 | H138: 1134.65 | I138: 1217.55 | J138: 1232.85 | K138: 1259.00 | L138: 1206.7 | M138: 1165.25 | N138: 5139750 | O138: -2.32%
A139: 129 | B139: Pharma | C139: TORNTPHARM | D139: 2809.20 | E139: 2790.67 | F139: 2731.33 | G139: 2653.47 | H139: 2594.13 | I139: 2868.53 | J139: 2927.87 | K139: 3005.73 | L139: 2850 | M139: 2712.8 | N139: 896000 | O139: 0.90%
A140: 130 | B140: Power | C140: TORNTPOWER | D140: 315.15 | E140: 315.85 | F140: 313.00 | G140: 310.85 | H140: 308.00 | I140: 318.00 | J140: 320.85 | K140: 323.00 | L140: 318.7 | M140: 313.7 | N140: 1941000 | O140: 1.73%
A141: 131 | B141: Automobile | C141: TVSMOTOR | D141: 470.00 | E141: 472.27 | F141: 464.73 | G141: 459.47 | H141: 451.93 | I141: 477.53 | J141: 485.07 | K141: 490.33 | L141: 479.8 | M141: 467 | N141: 4415600 | O141: -3.99%
A142: 132 | B142: FMCG | C142: UBL | D142: 958.15 | E142: 959.70 | F142: 946.45 | G142: 934.75 | H142: 921.50 | I142: 971.40 | J142: 984.65 | K142: 996.35 | L142: 972.95 | M142: 948 | N142: 1315300 | O142: -1.05%
A143: 133 | B143: Cement | C143: ULTRACEMCO | D143: 4065.15 | E143: 4073.10 | F143: 4031.20 | G143: 3997.25 | H143: 3955.35 | I143: 4107.05 | J143: 4148.95 | K143: 4182.90 | L143: 4115 | M143: 4039.15 | N143: 1783000 | O143: 0.09%
A144: 134 | B144: Fertilisers | C144: UPL | D144: 504.85 | E144: 501.62 | F144: 494.73 | G144: 484.62 | H144: 477.73 | I144: 511.73 | J144: 518.62 | K144: 528.73 | L144: 508.5 | M144: 491.5 | N144: 9259900 | O144: -0.24%
A145: 135 | B145: Metals | C145: VEDL | D145: 137.20 | E145: 137.73 | F145: 135.67 | G145: 134.13 | H145: 132.07 | I145: 139.27 | J145: 141.33 | K145: 142.87 | L145: 139.8 | M145: 136.2 | N145: 120658200 | O145: -1.71%
A146: 136 | B146: Capital_Goods | C146: VOLTAS | D146: 683.00 | E146: 682.50 | F146: 675.50 | G146: 668.00 | H146: 661.00 | I146: 690.00 | J146: 697.00 | K146: 704.50 | L146: 689.5 | M146: 675 | N146: 1688000 | O146: -0.06%
A147: 137 | B147: Technology | C147: WIPRO | D147: 315.15 | E147: 314.40 | F147: 311.35 | G147: 307.55 | H147: 304.50 | I147: 318.20 | J147: 321.25 | K147: 325.05 | L147: 317.45 | M147: 310.6 | N147: 24518400 | O147: 2.08%
A148: 138 | B148: Media | C148: ZEEL | D148: 210.35 | E148: 210.57 | F148: 207.23 | G148: 204.12 | H148: 200.78 | I148: 213.68 | J148: 217.02 | K148: 220.13 | L148: 213.9 | M148: 207.45 | N148: 34464000 | O148: -1.28%
A149: 139
A150: 140
A151: 141
A152: 142
A153: 143
A154: 144
A155: 145
A156: 146
A157: 147
A175: Pivot Point: This is trigger point for intra day buy/sell based on the price range of the previous day
A176: As per the tool,the trader should take BUY position just above Pivot and keep the stop loss of pivot point and the first target would be Resistance 1(R1)
A177: If R1 is crossed then R2 becomes the next target with stop loss of at R1
A178: Similarly if price goes below pivot point then the trader should sell and keep a stop loss of pivot point and the first target would be S1
A179: If S1 is crossed then S2 becomes the next target with stop loss of at S1
A181: Disclaimer:
A182: This document has been prepared by the Retail Research Desk of Asit C Mehta
A183: Investment Intermediates Ltd. and is meant for use of the recipient only
A184: and is not for circulation. This document is not to be reported or
A185: copied or made available to others. It should not be considered to be
A186: taken as an offer to sell or a solicitation to buy any security. The
A187: information contained herein is from sources believed reliable. We do
A188: not represent that it is accurate or complete and it should not be
A189: relied upon as such. We may from time to time have positions in and buy
A190: and sell securities referred to herein

Sheet Cash Intra
M5: Back to Main Page
A6: FOR INTRA DAY TRADING | K6: =Main!B10 -> 2020-10-01
A8: Sr.no | B8: Scrip | C8: CLOSE RATE | D8: Pivot Point | E8: Supports | H8: Resistances
C9: Point | E9: S1 | F9: S2 | G9: S3 | H9: R1 | I9: R2 | J9: R3 | K9: HIGH | L9: LOW | M9: Total Trade Quanity in Lakhs
A10: 1 | B10: Nifty 50 | C10: 11247.55 | D10: 11242.50 | E10: 11189.60 | F10: 11131.65 | G10: 11078.75 | H10: 11300.45 | I10: 11353.35 | J10: 11411.30 | K10: 11295.4 | L10: 11184.55
A11: 2 | B11: Nifty Bank | C11: 21451.8 | D11: 21376.55 | E11: 21203.75 | F11: 20955.70 | G11: 20782.90 | H11: 21624.60 | I11: 21797.40 | J11: 22045.45 | K11: 21549.35 | L11: 21128.5
A12: 3 | B12: Nifty CPSE | C12: 1322.4 | D12: 1318.53 | E12: 1306.72 | F12: 1291.03 | G12: 1279.22 | H12: 1334.22 | I12: 1346.03 | J12: 1361.72 | K12: 1330.35 | L12: 1302.85
A13: 4 | B13: Nifty Infra | C13: 3080.95 | D13: 3088.25 | E13: 3062.05 | F13: 3043.15 | G13: 3016.95 | H13: 3107.15 | I13: 3133.35 | J13: 3152.25 | K13: 3114.45 | L13: 3069.35
A14: 5 | B14: Nifty IT | C14: 19951.3 | D14: 19913.83 | E14: 19779.12 | F14: 19606.93 | G14: 19472.22 | H14: 20086.02 | I14: 20220.73 | J14: 20392.92 | K14: 20048.55 | L14: 19741.65
A15: 6 | B15: Nifty PSE | C15: 2260.45 | D15: 2269.38 | E15: 2229.22 | F15: 2197.98 | G15: 2157.82 | H15: 2300.62 | I15: 2340.78 | J15: 2372.02 | K15: 2309.55 | L15: 2238.15
A16: 7 | B16: Nifty Midcap 50 | C16: 4666.55 | D16: 4677.30 | E16: 4645.80 | F16: 4625.05 | G16: 4593.55 | H16: 4698.05 | I16: 4729.55 | J16: 4750.30 | K16: 4708.8 | L16: 4656.55
A17: 8 | B17: AARTIIND | C17: 1014.95 | D17: 1015.65 | E17: 1007.30 | F17: 999.65 | G17: 991.30 | H17: 1023.30 | I17: 1031.65 | J17: 1039.30 | K17: 1024 | L17: 1008 | M17: 1.31989
A18: 9 | B18: ABBOTINDIA | C18: 16486.95 | D18: 16407.43 | E18: 16314.87 | F18: 16142.78 | G18: 16050.22 | H18: 16579.52 | I18: 16672.08 | J18: 16844.17 | K18: 16500 | L18: 16235.35 | M18: 0.06371
A19: 10 | B19: ABCAPITAL | C19: 62.2 | D19: 62.55 | E19: 61.65 | F19: 61.10 | G19: 60.20 | H19: 63.10 | I19: 64.00 | J19: 64.55 | K19: 63.45 | L19: 62 | M19: 11.13848
A20: 11 | B20: ABFRL | C20: 133.6 | D20: 134.17 | E20: 131.48 | F20: 129.37 | G20: 126.68 | H20: 136.28 | I20: 138.97 | J20: 141.08 | K20: 136.85 | L20: 132.05 | M20: 15.49199
A21: 12 | B21: ACC | C21: 1393.45 | D21: 1389.45 | E21: 1376.90 | F21: 1360.35 | G21: 1347.80 | H21: 1406.00 | I21: 1418.55 | J21: 1435.10 | K21: 1402 | L21: 1372.9 | M21: 6.08847
A22: 13 | B22: ADANIGAS | C22: 189.2 | D22: 190.17 | E22: 186.88 | F22: 184.57 | G22: 181.28 | H22: 192.48 | I22: 195.77 | J22: 198.08 | K22: 193.45 | L22: 187.85 | M22: 7.96465
A23: 14 | B23: ADANIPORTS | C23: 341.75 | D23: 339.43 | E23: 332.32 | F23: 322.88 | G23: 315.77 | H23: 348.87 | I23: 355.98 | J23: 365.42 | K23: 346.55 | L23: 330 | M23: 27.57175
A24: 15 | B24: ADANIPOWER | C24: 36.9 | D24: 37.00 | E24: 36.70 | F24: 36.50 | G24: 36.20 | H24: 37.20 | I24: 37.50 | J24: 37.70 | K24: 37.3 | L24: 36.8 | M24: 7.49487
A25: 16 | B25: ADANITRANS | C25: 241.8 | D25: 244.20 | E25: 237.60 | F25: 233.40 | G25: 226.80 | H25: 248.40 | I25: 255.00 | J25: 259.20 | K25: 250.8 | L25: 240 | M25: 2.40221
A26: 17 | B26: AJANTPHARM | C26: 1613.6 | D26: 1600.55 | E26: 1578.15 | F26: 1542.70 | G26: 1520.30 | H26: 1636.00 | I26: 1658.40 | J26: 1693.85 | K26: 1622.95 | L26: 1565.1 | M26: 1.46276
A27: 18 | B27: ALKEM | C27: 2777.95 | D27: 2786.10 | E27: 2757.85 | F27: 2737.75 | G27: 2709.50 | H27: 2806.20 | I27: 2834.45 | J27: 2854.55 | K27: 2814.35 | L27: 2766 | M27: 1.66078
A28: 19 | B28: AMARAJABAT | C28: 764.15 | D28: 760.18 | E28: 754.47 | F28: 744.78 | G28: 739.07 | H28: 769.87 | I28: 775.58 | J28: 785.27 | K28: 765.9 | L28: 750.5 | M28: 4.04578
A29: 20 | B29: AMBUJACEM | C29: 217 | D29: 216.38 | E29: 214.52 | F29: 212.03 | G29: 210.17 | H29: 218.87 | I29: 220.73 | J29: 223.22 | K29: 218.25 | L29: 213.9 | M29: 36.457
A30: 21 | B30: APOLLOHOSP | C30: 2148.05 | D30: 2134.05 | E30: 2100.10 | F30: 2052.15 | G30: 2018.20 | H30: 2182.00 | I30: 2215.95 | J30: 2263.90 | K30: 2168 | L30: 2086.1 | M30: 20.25635
A31: 22 | B31: APOLLOTYRE | C31: 130.85 | D31: 130.65 | E31: 129.35 | F31: 127.85 | G31: 126.55 | H31: 132.15 | I31: 133.45 | J31: 134.95 | K31: 131.95 | L31: 129.15 | M31: 53.59247
A32: 23 | B32: ASHOKLEY | C32: 74.4 | D32: 74.42 | E32: 73.18 | F32: 71.97 | G32: 70.73 | H32: 75.63 | I32: 76.87 | J32: 78.08 | K32: 75.65 | L32: 73.2 | M32: 319.84231
A33: 24 | B33: ASIANPAINT | C33: 1986.4 | D33: 1982.85 | E33: 1961.70 | F33: 1937.00 | G33: 1915.85 | H33: 2007.55 | I33: 2028.70 | J33: 2053.40 | K33: 2004 | L33: 1958.15 | M33: 25.18983
A34: 25 | B34: AUBANK | C34: 654.35 | D34: 656.53 | E34: 645.42 | F34: 636.48 | G34: 625.37 | H34: 665.47 | I34: 676.58 | J34: 685.52 | K34: 667.65 | L34: 647.6 | M34: 2.9084
A35: 26 | B35: AUROPHARMA | C35: 796.5 | D35: 802.58 | E35: 785.17 | F35: 773.83 | G35: 756.42 | H35: 813.92 | I35: 831.33 | J35: 842.67 | K35: 820 | L35: 791.25 | M35: 42.24666
A36: 27 | B36: AXISBANK | C36: 424.65 | D36: 423.83 | E36: 419.57 | F36: 414.48 | G36: 410.22 | H36: 428.92 | I36: 433.18 | J36: 438.27 | K36: 428.1 | L36: 418.75 | M36: 184.85383
A37: 28 | B37: BAJAJ-AUTO | C37: 2881.1 | D37: 2896.70 | E37: 2854.40 | F37: 2827.70 | G37: 2785.40 | H37: 2923.40 | I37: 2965.70 | J37: 2992.40 | K37: 2939 | L37: 2870 | M37: 10.95715
A38: 29 | B38: BAJAJFINSV | C38: 5852.35 | D38: 5867.12 | E38: 5805.23 | F38: 5758.12 | G38: 5696.23 | H38: 5914.23 | I38: 5976.12 | J38: 6023.23 | K38: 5929 | L38: 5820 | M38: 3.756
A39: 30 | B39: BAJAJHLDNG | C39: 2413.95 | D39: 2420.47 | E39: 2394.48 | F39: 2375.02 | G39: 2349.03 | H39: 2439.93 | I39: 2465.92 | J39: 2485.38 | K39: 2446.45 | L39: 2401 | M39: 0.15996
A40: 31 | B40: BAJFINANCE | C40: 3278.6 | D40: 3294.15 | E40: 3244.45 | F40: 3210.30 | G40: 3160.60 | H40: 3328.30 | I40: 3378.00 | J40: 3412.15 | K40: 3343.85 | L40: 3260 | M40: 36.03553
A41: 32 | B41: BALKRISIND | C41: 1477 | D41: 1487.58 | E41: 1460.47 | F41: 1443.93 | G41: 1416.82 | H41: 1504.12 | I41: 1531.23 | J41: 1547.77 | K41: 1514.7 | L41: 1471.05 | M41: 15.01918
A42: 33 | B42: BANDHANBNK | C42: 273 | D42: 272.67 | E42: 268.83 | F42: 264.67 | G42: 260.83 | H42: 276.83 | I42: 280.67 | J42: 284.83 | K42: 276.5 | L42: 268.5 | M42: 60.08916
A43: 34 | B43: BANKBARODA | C43: 41.05 | D43: 41.00 | E43: 40.35 | F43: 39.65 | G43: 39.00 | H43: 41.70 | I43: 42.35 | J43: 43.05 | K43: 41.65 | L43: 40.3 | M43: 321.31398
A44: 35 | B44: BANKINDIA | C44: 40.65 | D44: 40.85 | E44: 40.30 | F44: 39.95 | G44: 39.40 | H44: 41.20 | I44: 41.75 | J44: 42.10 | K44: 41.4 | L44: 40.5 | M44: 10.96243
A45: 36 | B45: BATAINDIA | C45: 1318.35 | D45: 1325.72 | E45: 1301.43 | F45: 1284.52 | G45: 1260.23 | H45: 1342.63 | I45: 1366.92 | J45: 1383.83 | K45: 1350 | L45: 1308.8 | M45: 9.11109
A46: 37 | B46: BBTC | C46: 1304 | D46: 1304.68 | E46: 1289.37 | F46: 1274.73 | G46: 1259.42 | H46: 1319.32 | I46: 1334.63 | J46: 1349.27 | K46: 1320 | L46: 1290.05 | M46: 0.7352
A47: 38 | B47: BEL | C47: 95.75 | D47: 95.37 | E47: 94.28 | F47: 92.82 | G47: 91.73 | H47: 96.83 | I47: 97.92 | J47: 99.38 | K47: 96.45 | L47: 93.9 | M47: 47.29904
A48: 39 | B48: BERGEPAINT | C48: 583.7 | D48: 581.57 | E48: 575.13 | F48: 566.57 | G48: 560.13 | H48: 590.13 | I48: 596.57 | J48: 605.13 | K48: 588 | L48: 573 | M48: 14.37644
A49: 40 | B49: BHARATFORG | C49: 447.55 | D49: 447.70 | E49: 443.95 | F49: 440.35 | G49: 436.60 | H49: 451.30 | I49: 455.05 | J49: 458.65 | K49: 451.45 | L49: 444.1 | M49: 6.26631
A50: 41 | B50: BHARTIARTL | C50: 420.95 | D50: 426.50 | E50: 412.60 | F50: 404.25 | G50: 390.35 | H50: 434.85 | I50: 448.75 | J50: 457.10 | K50: 440.4 | L50: 418.15 | M50: 271.76498
A51: 42 | B51: BHEL | C51: 29.25 | D51: 29.63 | E51: 28.82 | F51: 28.38 | G51: 27.57 | H51: 30.07 | I51: 30.88 | J51: 31.32 | K51: 30.45 | L51: 29.2 | M51: 362.7266
A52: 43 | B52: BIOCON | C52: 447.7 | D52: 451.93 | E52: 440.37 | F52: 433.03 | G52: 421.47 | H52: 459.27 | I52: 470.83 | J52: 478.17 | K52: 463.5 | L52: 444.6 | M52: 47.67307
A53: 44 | B53: BOSCHLTD | C53: 13730.05 | D53: 13708.02 | E53: 13535.53 | F53: 13341.02 | G53: 13168.53 | H53: 13902.53 | I53: 14075.02 | J53: 14269.53 | K53: 13880.5 | L53: 13513.5 | M53: 0.73855
A54: 45 | B54: BPCL | C54: 353.05 | D54: 365.45 | E54: 336.40 | F54: 319.75 | G54: 290.70 | H54: 382.10 | I54: 411.15 | J54: 427.80 | K54: 394.5 | L54: 348.8 | M54: 435.96665
A55: 46 | B55: BRITANNIA | C55: 3798.15 | D55: 3779.07 | E55: 3733.13 | F55: 3668.12 | G55: 3622.18 | H55: 3844.08 | I55: 3890.02 | J55: 3955.03 | K55: 3825 | L55: 3714.05 | M55: 5.35771
A56: 47 | B56: CADILAHC | C56: 395.05 | D56: 395.85 | E56: 385.20 | F56: 375.35 | G56: 364.70 | H56: 405.70 | I56: 416.35 | J56: 426.20 | K56: 406.5 | L56: 386 | M56: 75.8717
A57: 48 | B57: CANBK | C57: 88.85 | D57: 88.73 | E57: 87.82 | F57: 86.78 | G57: 85.87 | H57: 89.77 | I57: 90.68 | J57: 91.72 | K57: 89.65 | L57: 87.7 | M57: 51.37762
A58: 49 | B58: CASTROLIND | C58: 109.35 | D58: 109.65 | E58: 108.80 | F58: 108.25 | G58: 107.40 | H58: 110.20 | I58: 111.05 | J58: 111.60 | K58: 110.5 | L58: 109.1 | M58: 4.24329
A59: 50 | B59: CESC | C59: 614 | D59: 615.50 | E59: 609.50 | F59: 605.00 | G59: 599.00 | H59: 620.00 | I59: 626.00 | J59: 630.50 | K59: 621.5 | L59: 611 | M59: 1.38949
A60: 51 | B60: CHOLAFIN | C60: 249.15 | D60: 251.13 | E60: 245.72 | F60: 242.28 | G60: 236.87 | H60: 254.57 | I60: 259.98 | J60: 263.42 | K60: 256.55 | L60: 247.7 | M60: 49.77764
A61: 52 | B61: CIPLA | C61: 774.7 | D61: 776.88 | E61: 758.87 | F61: 743.03 | G61: 725.02 | H61: 792.72 | I61: 810.73 | J61: 826.57 | K61: 794.9 | L61: 761.05 | M61: 143.33238
A62: 53 | B62: COALINDIA | C62: 116 | D62: 115.92 | E62: 114.73 | F62: 113.47 | G62: 112.28 | H62: 117.18 | I62: 118.37 | J62: 119.63 | K62: 117.1 | L62: 114.65 | M62: 140.36727
A63: 54 | B63: COFORGE | C63: 2322.2 | D63: 2316.72 | E63: 2285.48 | F63: 2248.77 | G63: 2217.53 | H63: 2353.43 | I63: 2384.67 | J63: 2421.38 | K63: 2347.95 | L63: 2280 | M63: 3.31363
A64: 55 | B64: COLPAL | C64: 1433.5 | D64: 1431.98 | E64: 1414.02 | F64: 1394.53 | G64: 1376.57 | H64: 1451.47 | I64: 1469.43 | J64: 1488.92 | K64: 1449.95 | L64: 1412.5 | M64: 5.61481
A65: 56 | B65: CONCOR | C65: 364.95 | D65: 367.37 | E65: 359.58 | F65: 354.22 | G65: 346.43 | H65: 372.73 | I65: 380.52 | J65: 385.88 | K65: 375.15 | L65: 362 | M65: 21.70459
A66: 57 | B66: COROMANDEL | C66: 772.85 | D66: 779.70 | E66: 759.40 | F66: 745.95 | G66: 725.65 | H66: 793.15 | I66: 813.45 | J66: 826.90 | K66: 800 | L66: 766.25 | M66: 2.63981
A67: 58 | B67: CROMPTON | C67: 292.35 | D67: 286.58 | E67: 278.17 | F67: 263.98 | G67: 255.57 | H67: 300.77 | I67: 309.18 | J67: 323.37 | K67: 295 | L67: 272.4 | M67: 8.76628
A68: 59 | B68: CUB | C68: 139.75 | D68: 138.62 | E68: 136.23 | F68: 132.72 | G68: 130.33 | H68: 142.13 | I68: 144.52 | J68: 148.03 | K68: 141 | L68: 135.1 | M68: 28.01369
A69: 60 | B69: CUMMINSIND | C69: 445.2 | D69: 444.97 | E69: 440.43 | F69: 435.67 | G69: 431.13 | H69: 449.73 | I69: 454.27 | J69: 459.03 | K69: 449.5 | L69: 440.2 | M69: 6.3955
A70: 61 | B70: DABUR | C70: 510.55 | D70: 506.95 | E70: 499.90 | F70: 489.25 | G70: 482.20 | H70: 517.60 | I70: 524.65 | J70: 535.30 | K70: 514 | L70: 496.3 | M70: 40.19167
A71: 62 | B71: DALBHARAT | C71: 781.45 | D71: 776.45 | E71: 765.00 | F71: 748.55 | G71: 737.10 | H71: 792.90 | I71: 804.35 | J71: 820.80 | K71: 787.9 | L71: 760 | M71: 1.26209
A72: 63 | B72: DIVISLAB | C72: 3047.95 | D72: 3074.32 | E72: 3013.63 | F72: 2979.32 | G72: 2918.63 | H72: 3108.63 | I72: 3169.32 | J72: 3203.63 | K72: 3135 | L72: 3040 | M72: 14.16089
A73: 64 | B73: DLF | C73: 152.65 | D73: 153.70 | E73: 150.80 | F73: 148.95 | G73: 146.05 | H73: 155.55 | I73: 158.45 | J73: 160.30 | K73: 156.6 | L73: 151.85 | M73: 97.38929
A74: 65 | B74: DMART | C74: 2203.15 | D74: 2179.32 | E74: 2138.83 | F74: 2074.52 | G74: 2034.03 | H74: 2243.63 | I74: 2284.12 | J74: 2348.43 | K74: 2219.8 | L74: 2115 | M74: 6.77291
A75: 66 | B75: DRREDDY | C75: 5187.8 | D75: 5196.93 | E75: 5075.87 | F75: 4963.93 | G75: 4842.87 | H75: 5308.87 | I75: 5429.93 | J75: 5541.87 | K75: 5318 | L75: 5085 | M75: 53.95622
A76: 67 | B76: EDELWEISS | C76: 58.9 | D76: 58.88 | E76: 57.67 | F76: 56.43 | G76: 55.22 | H76: 60.12 | I76: 61.33 | J76: 62.57 | K76: 60.1 | L76: 57.65 | M76: 5.7106
A77: 68 | B77: EICHERMOT | C77: 2202.8 | D77: 2203.15 | E77: 2185.30 | F77: 2167.80 | G77: 2149.95 | H77: 2220.65 | I77: 2238.50 | J77: 2256.00 | K77: 2221 | L77: 2185.65 | M77: 9.25938
A78: 69 | B78: EMAMILTD | C78: 351.3 | D78: 352.75 | E78: 347.85 | F78: 344.40 | G78: 339.50 | H78: 356.20 | I78: 361.10 | J78: 364.55 | K78: 357.65 | L78: 349.3 | M78: 4.0395
A79: 70 | B79: ENDURANCE | C79: 1152.3 | D79: 1142.28 | E79: 1117.67 | F79: 1083.03 | G79: 1058.42 | H79: 1176.92 | I79: 1201.53 | J79: 1236.17 | K79: 1166.9 | L79: 1107.65 | M79: 0.9324
A80: 71 | B80: ESCORTS | C80: 1318.45 | D80: 1322.68 | E80: 1302.62 | F80: 1286.78 | G80: 1266.72 | H80: 1338.52 | I80: 1358.58 | J80: 1374.42 | K80: 1342.75 | L80: 1306.85 | M80: 24.76004
A81: 72 | B81: EXIDEIND | C81: 164.9 | D81: 165.13 | E81: 163.97 | F81: 163.03 | G81: 161.87 | H81: 166.07 | I81: 167.23 | J81: 168.17 | K81: 166.3 | L81: 164.2 | M81: 27.769
A82: 73 | B82: FEDERALBNK | C82: 48.6 | D82: 48.90 | E82: 48.20 | F82: 47.80 | G82: 47.10 | H82: 49.30 | I82: 50.00 | J82: 50.40 | K82: 49.6 | L82: 48.5 | M82: 210.5947
A83: 74 | B83: FORTIS | C83: 135.3 | D83: 135.43 | E83: 133.97 | F83: 132.63 | G83: 131.17 | H83: 136.77 | I83: 138.23 | J83: 139.57 | K83: 136.9 | L83: 134.1 | M83: 6.77714
A84: 75 | B84: FRETAIL | C84: 90.1 | D84: 91.33 | E84: 88.87 | F84: 87.63 | G84: 85.17 | H84: 92.57 | I84: 95.03 | J84: 96.27 | K84: 93.8 | L84: 90.1 | M84: 25.42644
A85: 76 | B85: GAIL | C85: 86.8 | D85: 86.82 | E85: 85.48 | F85: 84.17 | G85: 82.83 | H85: 88.13 | I85: 89.47 | J85: 90.78 | K85: 88.15 | L85: 85.5 | M85: 99.23665
A86: 77 | B86: GICRE | C86: 120.9 | D86: 121.98 | E86: 119.37 | F86: 117.83 | G86: 115.22 | H86: 123.52 | I86: 126.13 | J86: 127.67 | K86: 124.6 | L86: 120.45 | M86: 1.18964
A87: 78 | B87: GLENMARK | C87: 482.65 | D87: 487.57 | E87: 475.63 | F87: 468.62 | G87: 456.68 | H87: 494.58 | I87: 506.52 | J87: 513.53 | K87: 499.5 | L87: 480.55 | M87: 28.7074
A88: 79 | B88: GMRINFRA | C88: 23.05 | D88: 23.15 | E88: 22.55 | F88: 22.05 | G88: 21.45 | H88: 23.65 | I88: 24.25 | J88: 24.75 | K88: 23.75 | L88: 22.65 | M88: 264.34808
A89: 80 | B89: GODREJAGRO | C89: 509.45 | D89: 509.90 | E89: 502.10 | F89: 494.75 | G89: 486.95 | H89: 517.25 | I89: 525.05 | J89: 532.40 | K89: 517.7 | L89: 502.55 | M89: 0.78605
A90: 81 | B90: GODREJCP | C90: 724.95 | D90: 722.53 | E90: 708.12 | F90: 691.28 | G90: 676.87 | H90: 739.37 | I90: 753.78 | J90: 770.62 | K90: 736.95 | L90: 705.7 | M90: 29.19418
A91: 82 | B91: GODREJIND | C91: 411.45 | D91: 409.78 | E91: 403.67 | F91: 395.88 | G91: 389.77 | H91: 417.57 | I91: 423.68 | J91: 431.47 | K91: 415.9 | L91: 402 | M91: 0.65227
A92: 83 | B92: GODREJPROP | C92: 860.45 | D92: 866.88 | E92: 850.57 | F92: 840.68 | G92: 824.37 | H92: 876.77 | I92: 893.08 | J92: 902.97 | K92: 883.2 | L92: 857 | M92: 2.46011
A93: 84 | B93: GRASIM | C93: 744.2 | D93: 735.22 | E93: 724.03 | F93: 703.87 | G93: 692.68 | H93: 755.38 | I93: 766.57 | J93: 786.73 | K93: 746.4 | L93: 715.05 | M93: 23.77808
A94: 85 | B94: GSPL | C94: 208.55 | D94: 206.75 | E94: 204.50 | F94: 200.45 | G94: 198.20 | H94: 210.80 | I94: 213.05 | J94: 217.10 | K94: 209 | L94: 202.7 | M94: 4.82619
A95: 86 | B95: GUJGASLTD | C95: 308.4 | D95: 309.00 | E95: 304.50 | F95: 300.60 | G95: 296.10 | H95: 312.90 | I95: 317.40 | J95: 321.30 | K95: 313.5 | L95: 305.1 | M95: 6.28088
A96: 87 | B96: HAVELLS | C96: 677.85 | D96: 674.23 | E96: 667.62 | F96: 657.38 | G96: 650.77 | H96: 684.47 | I96: 691.08 | J96: 701.32 | K96: 680.85 | L96: 664 | M96: 10.5304
A97: 88 | B97: HCLTECH | C97: 811.6 | D97: 813.07 | E97: 805.63 | F97: 799.67 | G97: 792.23 | H97: 819.03 | I97: 826.47 | J97: 832.43 | K97: 820.5 | L97: 807.1 | M97: 94.70277
A98: 89 | B98: HDFC | C98: 1740.05 | D98: 1729.17 | E98: 1714.08 | F98: 1688.12 | G98: 1673.03 | H98: 1755.13 | I98: 1770.22 | J98: 1796.18 | K98: 1744.25 | L98: 1703.2 | M98: 35.94715
A99: 90 | B99: HDFCAMC | C99: 2269.85 | D99: 2261.02 | E99: 2229.83 | F99: 2189.82 | G99: 2158.63 | H99: 2301.03 | I99: 2332.22 | J99: 2372.23 | K99: 2292.2 | L99: 2221 | M99: 2.9128
A100: 91 | B100: HDFCBANK | C100: 1078.6 | D100: 1072.50 | E100: 1058.10 | F100: 1037.60 | G100: 1023.20 | H100: 1093.00 | I100: 1107.40 | J100: 1127.90 | K100: 1086.9 | L100: 1052 | M100: 94.07038
A101: 92 | B101: HDFCLIFE | C101: 559.4 | D101: 562.43 | E101: 552.92 | F101: 546.43 | G101: 536.92 | H101: 568.92 | I101: 578.43 | J101: 584.92 | K101: 571.95 | L101: 555.95 | M101: 49.06856
A102: 93 | B102: HEROMOTOCO | C102: 3147.3 | D102: 3160.10 | E102: 3122.20 | F102: 3097.10 | G102: 3059.20 | H102: 3185.20 | I102: 3223.10 | J102: 3248.20 | K102: 3198 | L102: 3135 | M102: 11.75374
A103: 94 | B103: HEXAWARE | C103: 466.45 | D103: 466.53 | E103: 465.17 | F103: 463.88 | G103: 462.52 | H103: 467.82 | I103: 469.18 | J103: 470.47 | K103: 467.9 | L103: 465.25 | M103: 3.01036
A104: 95 | B104: HINDALCO | C104: 175.25 | D104: 175.22 | E104: 172.73 | F104: 170.22 | G104: 167.73 | H104: 177.73 | I104: 180.22 | J104: 182.73 | K104: 177.7 | L104: 172.7 | M104: 156.28518
A105: 96 | B105: HINDPETRO | C105: 180.65 | D105: 180.60 | E105: 175.35 | F105: 170.05 | G105: 164.80 | H105: 185.90 | I105: 191.15 | J105: 196.45 | K105: 185.85 | L105: 175.3 | M105: 137.59264
A106: 97 | B106: HINDUNILVR | C106: 2068.25 | D106: 2066.42 | E106: 2035.83 | F106: 2003.42 | G106: 1972.83 | H106: 2098.83 | I106: 2129.42 | J106: 2161.83 | K106: 2097 | L106: 2034 | M106: 24.174
A107: 98 | B107: HINDZINC | C107: 209.95 | D107: 211.32 | E107: 207.73 | F107: 205.52 | G107: 201.93 | H107: 213.53 | I107: 217.12 | J107: 219.33 | K107: 214.9 | L107: 209.1 | M107: 3.69822
A108: 99 | B108: HUDCO | C108: 32.4 | D108: 32.55 | E108: 31.95 | F108: 31.50 | G108: 30.90 | H108: 33.00 | I108: 33.60 | J108: 34.05 | K108: 33.15 | L108: 32.1 | M108: 8.30618
A109: 100 | B109: IBULHSGFIN | C109: 157.15 | D109: 156.10 | E109: 152.20 | F109: 147.25 | G109: 143.35 | H109: 161.05 | I109: 164.95 | J109: 169.90 | K109: 160 | L109: 151.15 | M109: 303.17167
A110: 101 | B110: IBVENTURES | C110: 249.95 | D110: 247.82 | E110: 242.13 | F110: 234.32 | G110: 228.63 | H110: 255.63 | I110: 261.32 | J110: 269.13 | K110: 253.5 | L110: 240 | M110: 17.58054
A111: 102 | B111: ICICIBANK | C111: 354.75 | D111: 353.87 | E111: 350.23 | F111: 345.72 | G111: 342.08 | H111: 358.38 | I111: 362.02 | J111: 366.53 | K111: 357.5 | L111: 349.35 | M111: 195.65088
A112: 103 | B112: ICICIGI | C112: 1299.5 | D112: 1286.35 | E112: 1258.95 | F112: 1218.40 | G112: 1191.00 | H112: 1326.90 | I112: 1354.30 | J112: 1394.85 | K112: 1313.75 | L112: 1245.8 | M112: 6.02465
A113: 104 | B113: ICICIPRULI | C113: 420.9 | D113: 419.73 | E113: 412.77 | F113: 404.63 | G113: 397.67 | H113: 427.87 | I113: 434.83 | J113: 442.97 | K113: 426.7 | L113: 411.6 | M113: 13.11729
A114: 105 | B114: IDBI | C114: 34.75 | D114: 35.10 | E114: 34.30 | F114: 33.85 | G114: 33.05 | H114: 35.55 | I114: 36.35 | J114: 36.80 | K114: 35.9 | L114: 34.65 | M114: 3.97007
A115: 106 | B115: IDEA | C115: 9.55 | D115: 9.65 | E115: 9.20 | F115: 8.85 | G115: 8.40 | H115: 10.00 | I115: 10.45 | J115: 10.80 | K115: 10.1 | L115: 9.3 | M115: 3405.81617
A116: 107 | B116: IDFCFIRSTB | C116: 29.95 | D116: 29.98 | E116: 29.62 | F116: 29.28 | G116: 28.92 | H116: 30.32 | I116: 30.68 | J116: 31.02 | K116: 30.35 | L116: 29.65 | M116: 365.72003
A117: 108 | B117: IGL | C117: 386.8 | D117: 389.60 | E117: 382.20 | F117: 377.60 | G117: 370.20 | H117: 394.20 | I117: 401.60 | J117: 406.20 | K117: 397 | L117: 385 | M117: 34.19362
A118: 109 | B118: INDHOTEL | C118: 95 | D118: 95.17 | E118: 93.88 | F118: 92.77 | G118: 91.48 | H118: 96.28 | I118: 97.57 | J118: 98.68 | K118: 96.45 | L118: 94.05 | M118: 14.69831
A119: 110 | B119: INDIGO | C119: 1249.1 | D119: 1243.40 | E119: 1225.85 | F119: 1202.60 | G119: 1185.05 | H119: 1266.65 | I119: 1284.20 | J119: 1307.45 | K119: 1260.95 | L119: 1220.15 | M119: 14.06384
A120: 111 | B120: INDUSINDBK | C120: 527.4 | D120: 529.12 | E120: 518.53 | F120: 509.67 | G120: 499.08 | H120: 537.98 | I120: 548.57 | J120: 557.43 | K120: 539.7 | L120: 520.25 | M120: 187.84991
A121: 112 | B121: INFRATEL | C121: 175.3 | D121: 176.32 | E121: 172.63 | F121: 169.97 | G121: 166.28 | H121: 178.98 | I121: 182.67 | J121: 185.33 | K121: 180 | L121: 173.65 | M121: 130.29531
A122: 113 | B122: INFY | C122: 1008.25 | D122: 1012.40 | E122: 1000.85 | F122: 993.45 | G122: 981.90 | H122: 1019.80 | I122: 1031.35 | J122: 1038.75 | K122: 1023.95 | L122: 1005 | M122: 80.49899
A123: 114 | B123: IOC | C123: 73.9 | D123: 74.12 | E123: 72.78 | F123: 71.67 | G123: 70.33 | H123: 75.23 | I123: 76.57 | J123: 77.68 | K123: 75.45 | L123: 73 | M123: 189.70112
A124: 115 | B124: IPCALAB | C124: 2166.45 | D124: 2165.48 | E124: 2130.97 | F124: 2095.48 | G124: 2060.97 | H124: 2200.97 | I124: 2235.48 | J124: 2270.97 | K124: 2200 | L124: 2130 | M124: 2.40072
A125: 116 | B125: IRCTC | C125: 1384 | D125: 1390.73 | E125: 1361.97 | F125: 1339.93 | G125: 1311.17 | H125: 1412.77 | I125: 1441.53 | J125: 1463.57 | K125: 1419.5 | L125: 1368.7 | M125: 6.37109
A126: 117 | B126: ITC | C126: 171.7 | D126: 170.83 | E126: 169.57 | F126: 167.43 | G126: 166.17 | H126: 172.97 | I126: 174.23 | J126: 176.37 | K126: 172.1 | L126: 168.7 | M126: 184.82053
A127: 118 | B127: JINDALSTEL | C127: 186.85 | D127: 188.38 | E127: 182.82 | F127: 178.78 | G127: 173.22 | H127: 192.42 | I127: 197.98 | J127: 202.02 | K127: 193.95 | L127: 184.35 | M127: 117.24469
A128: 119 | B128: JSWENERGY | C128: 56.4 | D128: 57.35 | E128: 55.05 | F128: 53.70 | G128: 51.40 | H128: 58.70 | I128: 61.00 | J128: 62.35 | K128: 59.65 | L128: 56 | M128: 15.36085
A129: 120 | B129: JSWSTEEL | C129: 277.75 | D129: 279.23 | E129: 273.52 | F129: 269.28 | G129: 263.57 | H129: 283.47 | I129: 289.18 | J129: 293.42 | K129: 284.95 | L129: 275 | M129: 62.88603
A130: 121 | B130: JUBILANT | C130: 730.95 | D130: 730.28 | E130: 720.57 | F130: 710.18 | G130: 700.47 | H130: 740.67 | I130: 750.38 | J130: 760.77 | K130: 740 | L130: 719.9 | M130: 3.04202
A131: 122 | B131: JUBLFOOD | C131: 2344.35 | D131: 2374.02 | E131: 2308.63 | F131: 2272.92 | G131: 2207.53 | H131: 2409.73 | I131: 2475.12 | J131: 2510.83 | K131: 2439.4 | L131: 2338.3 | M131: 10.55056
A132: 123 | B132: KOTAKBANK | C132: 1268.2 | D132: 1265.72 | E132: 1254.48 | F132: 1240.77 | G132: 1229.53 | H132: 1279.43 | I132: 1290.67 | J132: 1304.38 | K132: 1276.95 | L132: 1252 | M132: 29.50621
A133: 124 | B133: L&TFH | C133: 62.1 | D133: 61.83 | E133: 61.07 | F133: 60.03 | G133: 59.27 | H133: 62.87 | I133: 63.63 | J133: 64.67 | K133: 62.6 | L133: 60.8 | M133: 73.81818
A134: 125 | B134: LALPATHLAB | C134: 1879.75 | D134: 1880.50 | E134: 1866.00 | F134: 1852.25 | G134: 1837.75 | H134: 1894.25 | I134: 1908.75 | J134: 1922.50 | K134: 1895 | L134: 1866.75 | M134: 0.5591
A135: 126 | B135: LICHSGFIN | C135: 275.8 | D135: 277.18 | E135: 272.92 | F135: 270.03 | G135: 265.77 | H135: 280.07 | I135: 284.33 | J135: 287.22 | K135: 281.45 | L135: 274.3 | M135: 21.31867
A136: 127 | B136: LT | C136: 901.6 | D136: 896.73 | E136: 888.97 | F136: 876.33 | G136: 868.57 | H136: 909.37 | I136: 917.13 | J136: 929.77 | K136: 904.5 | L136: 884.1 | M136: 35.82799
A137: 128 | B137: LTI | C137: 2543.55 | D137: 2539.63 | E137: 2508.27 | F137: 2472.98 | G137: 2441.62 | H137: 2574.92 | I137: 2606.28 | J137: 2641.57 | K137: 2571 | L137: 2504.35 | M137: 2.19526
A138: 129 | B138: LTTS | C138: 1618.05 | D138: 1618.12 | E138: 1601.23 | F138: 1584.42 | G138: 1567.53 | H138: 1634.93 | I138: 1651.82 | J138: 1668.63 | K138: 1635 | L138: 1601.3 | M138: 1.68498
A139: 130 | B139: LUPIN | C139: 1007.4 | D139: 1008.22 | E139: 991.43 | F139: 975.47 | G139: 958.68 | H139: 1024.18 | I139: 1040.97 | J139: 1056.93 | K139: 1025 | L139: 992.25 | M139: 52.27238
A140: 131 | B140: M&M | C140: 607.9 | D140: 612.15 | E140: 601.30 | F140: 594.70 | G140: 583.85 | H140: 618.75 | I140: 629.60 | J140: 636.20 | K140: 623 | L140: 605.55 | M140: 49.90827
A141: 132 | B141: M&MFIN | C141: 123.1 | D141: 123.60 | E141: 121.90 | F141: 120.70 | G141: 119.00 | H141: 124.80 | I141: 126.50 | J141: 127.70 | K141: 125.3 | L141: 122.4 | M141: 62.8872
A142: 133 | B142: MANAPPURAM | C142: 157.15 | D142: 157.77 | E142: 155.88 | F142: 154.62 | G142: 152.73 | H142: 159.03 | I142: 160.92 | J142: 162.18 | K142: 159.65 | L142: 156.5 | M142: 39.09184
A143: 134 | B143: MARICO | C143: 363 | D143: 360.87 | E143: 356.78 | F143: 350.57 | G143: 346.48 | H143: 367.08 | I143: 371.17 | J143: 377.38 | K143: 364.95 | L143: 354.65 | M143: 37.00444
A144: 135 | B144: MARUTI | C144: 6743.45 | D144: 6731.47 | E144: 6682.98 | F144: 6622.52 | G144: 6574.03 | H144: 6791.93 | I144: 6840.42 | J144: 6900.88 | K144: 6779.95 | L144: 6671 | M144: 8.12841
A145: 136 | B145: MCDOWELL-N | C145: 515.85 | D145: 515.30 | E145: 506.60 | F145: 497.35 | G145: 488.65 | H145: 524.55 | I145: 533.25 | J145: 542.50 | K145: 524 | L145: 506.05 | M145: 15.37239
A146: 137 | B146: MFSL | C146: 612.2 | D146: 609.07 | E146: 600.53 | F146: 588.87 | G146: 580.33 | H146: 620.73 | I146: 629.27 | J146: 640.93 | K146: 617.6 | L146: 597.4 | M146: 13.39794
A147: 138 | B147: MGL | C147: 830.05 | D147: 833.07 | E147: 820.38 | F147: 810.72 | G147: 798.03 | H147: 842.73 | I147: 855.42 | J147: 865.08 | K147: 845.75 | L147: 823.4 | M147: 5.71227
A148: 139 | B148: MINDTREE | C148: 1338.5 | D148: 1332.52 | E148: 1322.38 | F148: 1306.27 | G148: 1296.13 | H148: 1348.63 | I148: 1358.77 | J148: 1374.88 | K148: 1342.65 | L148: 1316.4 | M148: 7.10769
A149: 140 | B149: MOTHERSUMI | C149: 114.85 | D149: 115.32 | E149: 113.43 | F149: 112.02 | G149: 110.13 | H149: 116.73 | I149: 118.62 | J149: 120.03 | K149: 117.2 | L149: 113.9 | M149: 81.45478
A150: 141 | B150: MPHASIS | C150: 1383.45 | D150: 1357.62 | E150: 1315.83 | F150: 1248.22 | G150: 1206.43 | H150: 1425.23 | I150: 1467.02 | J150: 1534.63 | K150: 1399.4 | L150: 1290 | M150: 3.63072
A151: 142 | B151: MRF | C151: 59572.2 | D151: 59424.40 | E151: 58847.80 | F151: 58123.40 | G151: 57546.80 | H151: 60148.80 | I151: 60725.40 | J151: 61449.80 | K151: 60001 | L151: 58700 | M151: 0.16827
A152: 143 | B152: MRPL | C152: 25.7 | D152: 26.00 | E152: 25.25 | F152: 24.80 | G152: 24.05 | H152: 26.45 | I152: 27.20 | J152: 27.65 | K152: 26.75 | L152: 25.55 | M152: 11.99637
A153: 144 | B153: MUTHOOTFIN | C153: 1132.1 | D153: 1133.97 | E153: 1118.33 | F153: 1104.57 | G153: 1088.93 | H153: 1147.73 | I153: 1163.37 | J153: 1177.13 | K153: 1149.6 | L153: 1120.2 | M153: 18.61632
A154: 145 | B154: NAM-INDIA | C154: 262.1 | D154: 261.03 | E154: 257.77 | F154: 253.43 | G154: 250.17 | H154: 265.37 | I154: 268.63 | J154: 272.97 | K154: 264.3 | L154: 256.7 | M154: 7.79574
A155: 146 | B155: NATCOPHARM | C155: 949.9 | D155: 954.27 | E155: 931.63 | F155: 913.37 | G155: 890.73 | H155: 972.53 | I155: 995.17 | J155: 1013.43 | K155: 976.9 | L155: 936 | M155: 13.5849
A156: 147 | B156: NATIONALUM | C156: 32.25 | D156: 32.52 | E156: 31.73 | F156: 31.22 | G156: 30.43 | H156: 33.03 | I156: 33.82 | J156: 34.33 | K156: 33.3 | L156: 32 | M156: 144.29096
A157: 148 | B157: NAUKRI | C157: 3634.7 | D157: 3645.90 | E157: 3603.80 | F157: 3572.90 | G157: 3530.80 | H157: 3676.80 | I157: 3718.90 | J157: 3749.80 | K157: 3688 | L157: 3615 | M157: 4.05973
A158: 149 | B158: NESTLEIND | C158: 15918.65 | D158: 15850.82 | E158: 15672.88 | F158: 15427.12 | G158: 15249.18 | H158: 16096.58 | I158: 16274.52 | J158: 16520.28 | K158: 16028.75 | L158: 15605.05 | M158: 1.03502
A159: 150 | B159: NHPC | C159: 20.2 | D159: 20.35 | E159: 19.85 | F159: 19.50 | G159: 19.00 | H159: 20.70 | I159: 21.20 | J159: 21.55 | K159: 20.85 | L159: 20 | M159: 36.85768
A160: 151 | B160: NMDC | C160: 82.25 | D160: 82.03 | E160: 81.12 | F160: 79.98 | G160: 79.07 | H160: 83.17 | I160: 84.08 | J160: 85.22 | K160: 82.95 | L160: 80.9 | M160: 60.13313
A161: 152 | B161: NTPC | C161: 85.1 | D161: 84.78 | E161: 83.72 | F161: 82.33 | G161: 81.27 | H161: 86.17 | I161: 87.23 | J161: 88.62 | K161: 85.85 | L161: 83.4 | M161: 184.75465
A162: 153 | B162: OBEROIRLTY | C162: 394.2 | D162: 395.95 | E162: 390.35 | F162: 386.50 | G162: 380.90 | H162: 399.80 | I162: 405.40 | J162: 409.25 | K162: 401.55 | L162: 392.1 | M162: 1.43863
A163: 154 | B163: OFSS | C163: 3072.55 | D163: 3067.03 | E163: 3034.07 | F163: 2995.58 | G163: 2962.62 | H163: 3105.52 | I163: 3138.48 | J163: 3176.97 | K163: 3100 | L163: 3028.55 | M163: 0.34241
A164: 155 | B164: OIL | C164: 89.3 | D164: 89.00 | E164: 87.80 | F164: 86.30 | G164: 85.10 | H164: 90.50 | I164: 91.70 | J164: 93.20 | K164: 90.2 | L164: 87.5 | M164: 2.80125
A165: 156 | B165: ONGC | C165: 69.25 | D165: 69.10 | E165: 67.75 | F165: 66.25 | G165: 64.90 | H165: 70.60 | I165: 71.95 | J165: 73.45 | K165: 70.45 | L165: 67.6 | M165: 200.69463
A166: 157 | B166: PAGEIND | C166: 21335.95 | D166: 21588.62 | E166: 20897.23 | F166: 20458.52 | G166: 19767.13 | H166: 22027.33 | I166: 22718.72 | J166: 23157.43 | K166: 22280 | L166: 21149.9 | M166: 1.85325
A167: 158 | B167: PEL | C167: 1253.5 | D167: 1259.33 | E167: 1239.17 | F167: 1224.83 | G167: 1204.67 | H167: 1273.67 | I167: 1293.83 | J167: 1308.17 | K167: 1279.5 | L167: 1245 | M167: 12.84043
A168: 159 | B168: PETRONET | C168: 220.65 | D168: 220.45 | E168: 218.20 | F168: 215.75 | G168: 213.50 | H168: 222.90 | I168: 225.15 | J168: 227.60 | K168: 222.7 | L168: 218 | M168: 22.1512
A169: 160 | B169: PFC | C169: 86.2 | D169: 86.95 | E169: 85.15 | F169: 84.10 | G169: 82.30 | H169: 88.00 | I169: 89.80 | J169: 90.85 | K169: 88.75 | L169: 85.9 | M169: 42.48626
A170: 161 | B170: PFIZER | C170: 4899.65 | D170: 4929.90 | E170: 4859.80 | F170: 4819.95 | G170: 4749.85 | H170: 4969.75 | I170: 5039.85 | J170: 5079.70 | K170: 5000 | L170: 4890.05 | M170: 0.28258
A171: 162 | B171: PGHH | C171: 9946.7 | D171: 9931.93 | E171: 9894.87 | F171: 9843.03 | G171: 9805.97 | H171: 9983.77 | I171: 10020.83 | J171: 10072.67 | K171: 9969 | L171: 9880.1 | M171: 0.02622
A172: 163 | B172: PIDILITIND | C172: 1434.25 | D172: 1429.75 | E172: 1419.50 | F172: 1404.75 | G172: 1394.50 | H172: 1444.50 | I172: 1454.75 | J172: 1469.50 | K172: 1440 | L172: 1415 | M172: 6.47016
A173: 164 | B173: PIIND | C173: 1971.5 | D173: 1971.97 | E173: 1944.93 | F173: 1918.37 | G173: 1891.33 | H173: 1998.53 | I173: 2025.57 | J173: 2052.13 | K173: 1999 | L173: 1945.4 | M173: 1.26961
A174: 165 | B174: PNB | C174: 28.55 | D174: 28.62 | E174: 28.23 | F174: 27.92 | G174: 27.53 | H174: 28.93 | I174: 29.32 | J174: 29.63 | K174: 29 | L174: 28.3 | M174: 265.93606
A175: 166 | B175: PNBHOUSING | C175: 338.15 | D175: 338.07 | E175: 332.73 | F175: 327.32 | G175: 321.98 | H175: 343.48 | I175: 348.82 | J175: 354.23 | K175: 343.4 | L175: 332.65 | M175: 5.35747
A176: 167 | B176: POLYCAB | C176: 819.9 | D176: 821.33 | E176: 804.77 | F176: 789.63 | G176: 773.07 | H176: 836.47 | I176: 853.03 | J176: 868.17 | K176: 837.9 | L176: 806.2 | M176: 0.87735
A177: 168 | B177: POWERGRID | C177: 162.45 | D177: 162.00 | E177: 160.75 | F177: 159.05 | G177: 157.80 | H177: 163.70 | I177: 164.95 | J177: 166.65 | K177: 163.25 | L177: 160.3 | M177: 80.71849
A178: 169 | B178: PRESTIGE | C178: 251.85 | D178: 249.38 | E178: 244.77 | F178: 237.68 | G178: 233.07 | H178: 256.47 | I178: 261.08 | J178: 268.17 | K178: 254 | L178: 242.3 | M178: 4.44631
A179: 170 | B179: QUESS | C179: 412.6 | D179: 411.18 | E179: 405.57 | F179: 398.53 | G179: 392.92 | H179: 418.22 | I179: 423.83 | J179: 430.87 | K179: 416.8 | L179: 404.15 | M179: 1.4476
A180: 171 | B180: RAJESHEXPO | C180: 447.05 | D180: 449.55 | E180: 442.55 | F180: 438.05 | G180: 431.05 | H180: 454.05 | I180: 461.05 | J180: 465.55 | K180: 456.55 | L180: 445.05 | M180: 0.89751
A181: 172 | B181: RAMCOCEM | C181: 753.5 | D181: 749.57 | E181: 740.13 | F181: 726.77 | G181: 717.33 | H181: 762.93 | I181: 772.37 | J181: 785.73 | K181: 759 | L181: 736.2 | M181: 6.69032
A182: 173 | B182: RBLBANK | C182: 169.9 | D182: 170.03 | E182: 167.87 | F182: 165.83 | G182: 163.67 | H182: 172.07 | I182: 174.23 | J182: 176.27 | K182: 172.2 | L182: 168 | M182: 108.50843
A183: 174 | B183: RECLTD | C183: 99.1 | D183: 99.28 | E183: 97.97 | F183: 96.83 | G183: 95.52 | H183: 100.42 | I183: 101.73 | J183: 102.87 | K183: 100.6 | L183: 98.15 | M183: 41.89175
A184: 175 | B184: RELIANCE | C184: 2234.35 | D184: 2242.12 | E184: 2217.23 | F184: 2200.12 | G184: 2175.23 | H184: 2259.23 | I184: 2284.12 | J184: 2301.23 | K184: 2267 | L184: 2225 | M184: 112.9128
A185: 176 | B185: SAIL | C185: 33.75 | D185: 34.35 | E185: 33.00 | F185: 32.25 | G185: 30.90 | H185: 35.10 | I185: 36.45 | J185: 37.20 | K185: 35.7 | L185: 33.6 | M185: 265.13217
A186: 177 | B186: SBICARD | C186: 847.6 | D186: 846.87 | E186: 842.73 | F186: 837.87 | G186: 833.73 | H186: 851.73 | I186: 855.87 | J186: 860.73 | K186: 851 | L186: 842 | M186: 7.96469
A187: 178 | B187: SBILIFE | C187: 811.45 | D187: 809.47 | E187: 804.38 | F187: 797.32 | G187: 792.23 | H187: 816.53 | I187: 821.62 | J187: 828.68 | K187: 814.55 | L187: 802.4 | M187: 7.01139
A188: 179 | B188: SBIN | C188: 185.4 | D188: 184.87 | E188: 182.93 | F188: 180.47 | G188: 178.53 | H188: 187.33 | I188: 189.27 | J188: 191.73 | K188: 186.8 | L188: 182.4 | M188: 376.42302
A189: 180 | B189: SHREECEM | C189: 20256.95 | D189: 20151.27 | E189: 19767.53 | F189: 19278.12 | G189: 18894.38 | H189: 20640.68 | I189: 21024.42 | J189: 21513.83 | K189: 20535 | L189: 19661.85 | M189: 1.21119
A190: 181 | B190: SIEMENS | C190: 1264.5 | D190: 1267.18 | E190: 1249.37 | F190: 1234.23 | G190: 1216.42 | H190: 1282.32 | I190: 1300.13 | J190: 1315.27 | K190: 1285 | L190: 1252.05 | M190: 9.33781
A191: 182 | B191: SRF | C191: 4130.1 | D191: 4134.85 | E191: 4097.15 | F191: 4064.20 | G191: 4026.50 | H191: 4167.80 | I191: 4205.50 | J191: 4238.45 | K191: 4172.55 | L191: 4101.9 | M191: 1.33335
A192: 183 | B192: SRTRANSFIN | C192: 619.35 | D192: 619.08 | E192: 604.67 | F192: 589.98 | G192: 575.57 | H192: 633.77 | I192: 648.18 | J192: 662.87 | K192: 633.5 | L192: 604.4 | M192: 42.8375
A193: 184 | B193: SUNPHARMA | C193: 500.45 | D193: 504.98 | E193: 493.77 | F193: 487.08 | G193: 475.87 | H193: 511.67 | I193: 522.88 | J193: 529.57 | K193: 516.2 | L193: 498.3 | M193: 129.81977
A194: 185 | B194: SUNTV | C194: 465.65 | D194: 469.27 | E194: 460.08 | F194: 454.52 | G194: 445.33 | H194: 474.83 | I194: 484.02 | J194: 489.58 | K194: 478.45 | L194: 463.7 | M194: 16.27929
A195: 186 | B195: SYNGENE | C195: 552.95 | D195: 557.57 | E195: 545.43 | F195: 537.92 | G195: 525.78 | H195: 565.08 | I195: 577.22 | J195: 584.73 | K195: 569.7 | L195: 550.05 | M195: 7.49075
A196: 187 | B196: TATACONSUM | C196: 499.95 | D196: 503.67 | E196: 491.83 | F196: 483.72 | G196: 471.88 | H196: 511.78 | I196: 523.62 | J196: 531.73 | K196: 515.5 | L196: 495.55 | M196: 62.5229
A197: 188 | B197: TATAMOTORS | C197: 133.3 | D197: 132.67 | E197: 130.93 | F197: 128.57 | G197: 126.83 | H197: 135.03 | I197: 136.77 | J197: 139.13 | K197: 134.4 | L197: 130.3 | M197: 488.59151
A198: 189 | B198: TATAPOWER | C198: 53.3 | D198: 53.43 | E198: 52.87 | F198: 52.43 | G198: 51.87 | H198: 53.87 | I198: 54.43 | J198: 54.87 | K198: 54 | L198: 53 | M198: 108.0482
A199: 190 | B199: TATASTEEL | C199: 359.75 | D199: 363.08 | E199: 354.67 | F199: 349.58 | G199: 341.17 | H199: 368.17 | I199: 376.58 | J199: 381.67 | K199: 371.5 | L199: 358 | M199: 129.63784
A200: 191 | B200: TCS | C200: 2492.3 | D200: 2485.77 | E200: 2466.53 | F200: 2440.77 | G200: 2421.53 | H200: 2511.53 | I200: 2530.77 | J200: 2556.53 | K200: 2505 | L200: 2460 | M200: 39.17186
A201: 192 | B201: TECHM | C201: 791.75 | D201: 784.07 | E201: 773.33 | F201: 754.92 | G201: 744.18 | H201: 802.48 | I201: 813.22 | J201: 831.63 | K201: 794.8 | L201: 765.65 | M201: 54.33724
A202: 193 | B202: TITAN | C202: 1201.35 | D202: 1189.87 | E202: 1174.73 | F202: 1148.12 | G202: 1132.98 | H202: 1216.48 | I202: 1231.62 | J202: 1258.23 | K202: 1205 | L202: 1163.25 | M202: 36.35997
A203: 194 | B203: TORNTPHARM | C203: 2799.95 | D203: 2783.50 | E203: 2724.05 | F203: 2648.15 | G203: 2588.70 | H203: 2859.40 | I203: 2918.85 | J203: 2994.75 | K203: 2842.95 | L203: 2707.6 | M203: 14.62824
A204: 195 | B204: TORNTPOWER | C204: 313.35 | D204: 314.47 | E204: 310.98 | F204: 308.62 | G204: 305.13 | H204: 316.83 | I204: 320.32 | J204: 322.68 | K204: 317.95 | L204: 312.1 | M204: 4.29907
A205: 196 | B205: TRENT | C205: 671.9 | D205: 673.63 | E205: 663.32 | F205: 654.73 | G205: 644.42 | H205: 682.22 | I205: 692.53 | J205: 701.12 | K205: 683.95 | L205: 665.05 | M205: 8.54301
... 29 more rows

Sheet MidCap Intra
L5: Back To Main Page
A6: FOR INTRA DAY TRADING | K6: =Main!B10 -> 2020-10-01
A9: Sr.no | B9: Scrip | C9: CLOSE RATE | D9: Pivot Point | E9: Supports | H9: Resistances
C10: Point | E10: S1 | F10: S2 | G10: S3 | H10: R1 | I10: R2 | J10: R3 | K10: HIGH | L10: LOW | M10: Total Trade Quanity in Lakhs
A11: 1 | B11: 3MINDIA | C11: 18307.15 | D11: 18307.73 | E11: 18189.47 | F11: 18071.78 | G11: 17953.52 | H11: 18425.42 | I11: 18543.68 | J11: 18661.37 | K11: 18426 | L11: 18190.05 | M11: 0.03818
A12: 2 | B12: AARTIIND | C12: 1014.95 | D12: 1015.65 | E12: 1007.30 | F12: 999.65 | G12: 991.30 | H12: 1023.30 | I12: 1031.65 | J12: 1039.30 | K12: 1024 | L12: 1008 | M12: 1.31989
A13: 3 | B13: AAVAS | C13: 1434.55 | D13: 1418.02 | E13: 1387.58 | F13: 1340.62 | G13: 1310.18 | H13: 1464.98 | I13: 1495.42 | J13: 1542.38 | K13: 1448.45 | L13: 1371.05 | M13: 0.43587
A14: 4 | B14: ABB | C14: 859.5 | D14: 859.80 | E14: 854.75 | F14: 850.00 | G14: 844.95 | H14: 864.55 | I14: 869.60 | J14: 874.35 | K14: 864.85 | L14: 855.05 | M14: 3.40893
A15: 5 | B15: ABBOTINDIA | C15: 16486.95 | D15: 16407.43 | E15: 16314.87 | F15: 16142.78 | G15: 16050.22 | H15: 16579.52 | I15: 16672.08 | J15: 16844.17 | K15: 16500 | L15: 16235.35 | M15: 0.06371
A16: 6 | B16: ABCAPITAL | C16: 62.2 | D16: 62.55 | E16: 61.65 | F16: 61.10 | G16: 60.20 | H16: 63.10 | I16: 64.00 | J16: 64.55 | K16: 63.45 | L16: 62 | M16: 11.13848
A17: 7 | B17: ABFRL | C17: 133.6 | D17: 134.17 | E17: 131.48 | F17: 129.37 | G17: 126.68 | H17: 136.28 | I17: 138.97 | J17: 141.08 | K17: 136.85 | L17: 132.05 | M17: 15.49199
A18: 8 | B18: ACC | C18: 1393.45 | D18: 1389.45 | E18: 1376.90 | F18: 1360.35 | G18: 1347.80 | H18: 1406.00 | I18: 1418.55 | J18: 1435.10 | K18: 1402 | L18: 1372.9 | M18: 6.08847
A19: 9 | B19: ADANIGAS | C19: 189.2 | D19: 190.17 | E19: 186.88 | F19: 184.57 | G19: 181.28 | H19: 192.48 | I19: 195.77 | J19: 198.08 | K19: 193.45 | L19: 187.85 | M19: 7.96465
A20: 10 | B20: ADANIGREEN | C20: 737.6 | D20: 729.13 | E20: 708.47 | F20: 679.33 | G20: 658.67 | H20: 758.27 | I20: 778.93 | J20: 808.07 | K20: 749.8 | L20: 700 | M20: 24.11057
A21: 11 | B21: ADANIPORTS | C21: 341.75 | D21: 339.43 | E21: 332.32 | F21: 322.88 | G21: 315.77 | H21: 348.87 | I21: 355.98 | J21: 365.42 | K21: 346.55 | L21: 330 | M21: 27.57175
A22: 12 | B22: ADANIPOWER | C22: 36.9 | D22: 37.00 | E22: 36.70 | F22: 36.50 | G22: 36.20 | H22: 37.20 | I22: 37.50 | J22: 37.70 | K22: 37.3 | L22: 36.8 | M22: 7.49487
A23: 13 | B23: ADANITRANS | C23: 241.8 | D23: 244.20 | E23: 237.60 | F23: 233.40 | G23: 226.80 | H23: 248.40 | I23: 255.00 | J23: 259.20 | K23: 250.8 | L23: 240 | M23: 2.40221
A24: 14 | B24: ADVENZYMES | C24: 330.3 | D24: 320.43 | E24: 301.87 | F24: 273.43 | G24: 254.87 | H24: 348.87 | I24: 367.43 | J24: 395.87 | K24: 339 | L24: 292 | M24: 36.9261
A25: 15 | B25: AEGISCHEM | C25: 228.85 | D25: 231.75 | E25: 224.50 | F25: 220.15 | G25: 212.90 | H25: 236.10 | I25: 243.35 | J25: 247.70 | K25: 239 | L25: 227.4 | M25: 0.99952
A26: 16 | B26: AFFLE | C26: 2875.05 | D26: 2898.33 | E26: 2831.72 | F26: 2788.38 | G26: 2721.77 | H26: 2941.67 | I26: 3008.28 | J26: 3051.62 | K26: 2964.95 | L26: 2855 | M26: 0.35118
A27: 17 | B27: AIAENG | C27: 1848.55 | D27: 1816.55 | E27: 1774.10 | F27: 1699.65 | G27: 1657.20 | H27: 1891.00 | I27: 1933.45 | J27: 2007.90 | K27: 1859 | L27: 1742.1 | M27: 0.48014
A28: 18 | B28: AJANTPHARM | C28: 1613.6 | D28: 1600.55 | E28: 1578.15 | F28: 1542.70 | G28: 1520.30 | H28: 1636.00 | I28: 1658.40 | J28: 1693.85 | K28: 1622.95 | L28: 1565.1 | M28: 1.46276
A29: 19 | B29: AKZOINDIA | C29: 2165.2 | D29: 2135.33 | E29: 2096.67 | F29: 2028.13 | G29: 1989.47 | H29: 2203.87 | I29: 2242.53 | J29: 2311.07 | K29: 2174 | L29: 2066.8 | M29: 0.14443
A30: 20 | B30: ALKEM | C30: 2777.95 | D30: 2786.10 | E30: 2757.85 | F30: 2737.75 | G30: 2709.50 | H30: 2806.20 | I30: 2834.45 | J30: 2854.55 | K30: 2814.35 | L30: 2766 | M30: 1.66078
A31: 21 | B31: ALKYLAMINE | C31: 3208.95 | D31: 3219.65 | E31: 3184.30 | F31: 3159.65 | G31: 3124.30 | H31: 3244.30 | I31: 3279.65 | J31: 3304.30 | K31: 3255 | L31: 3195 | M31: 0.19277
A32: 22 | B32: ALLCARGO | C32: 124.35 | D32: 124.85 | E32: 123.10 | F32: 121.85 | G32: 120.10 | H32: 126.10 | I32: 127.85 | J32: 129.10 | K32: 126.6 | L32: 123.6 | M32: 3.76118
A33: 23 | B33: AMARAJABAT | C33: 764.15 | D33: 760.18 | E33: 754.47 | F33: 744.78 | G33: 739.07 | H33: 769.87 | I33: 775.58 | J33: 785.27 | K33: 765.9 | L33: 750.5 | M33: 4.04578
A34: 24 | B34: AMBER | C34: 2038.4 | D34: 2048.80 | E34: 2009.60 | F34: 1980.80 | G34: 1941.60 | H34: 2077.60 | I34: 2116.80 | J34: 2145.60 | K34: 2088 | L34: 2020 | M34: 0.81731
A35: 25 | B35: AMBUJACEM | C35: 217 | D35: 216.38 | E35: 214.52 | F35: 212.03 | G35: 210.17 | H35: 218.87 | I35: 220.73 | J35: 223.22 | K35: 218.25 | L35: 213.9 | M35: 36.457
A36: 26 | B36: APLAPOLLO | C36: 2916.9 | D36: 2894.88 | E36: 2851.82 | F36: 2786.73 | G36: 2743.67 | H36: 2959.97 | I36: 3003.03 | J36: 3068.12 | K36: 2937.95 | L36: 2829.8 | M36: 0.58125
A37: 27 | B37: APLLTD | C37: 938.05 | D37: 945.10 | E37: 926.20 | F37: 914.35 | G37: 895.45 | H37: 956.95 | I37: 975.85 | J37: 987.70 | K37: 964 | L37: 933.25 | M37: 2.14515
A38: 28 | B38: APOLLOHOSP | C38: 2148.05 | D38: 2134.05 | E38: 2100.10 | F38: 2052.15 | G38: 2018.20 | H38: 2182.00 | I38: 2215.95 | J38: 2263.90 | K38: 2168 | L38: 2086.1 | M38: 20.25635
A39: 29 | B39: APOLLOTYRE | C39: 130.85 | D39: 130.65 | E39: 129.35 | F39: 127.85 | G39: 126.55 | H39: 132.15 | I39: 133.45 | J39: 134.95 | K39: 131.95 | L39: 129.15 | M39: 53.59247
A40: 30 | B40: ARVINDFASN | C40: 123.15 | D40: 124.03 | E40: 121.07 | F40: 118.98 | G40: 116.02 | H40: 126.12 | I40: 129.08 | J40: 131.17 | K40: 127 | L40: 121.95 | M40: 2.09761
A41: 31 | B41: ASAHIINDIA | C41: 208.75 | D41: 209.37 | E41: 205.78 | F41: 202.82 | G41: 199.23 | H41: 212.33 | I41: 215.92 | J41: 218.88 | K41: 212.95 | L41: 206.4 | M41: 0.21862
A42: 32 | B42: ASHOKA | C42: 64.45 | D42: 64.40 | E42: 63.60 | F42: 62.75 | G42: 61.95 | H42: 65.25 | I42: 66.05 | J42: 66.90 | K42: 65.2 | L42: 63.55 | M42: 3.89163
A43: 33 | B43: ASHOKLEY | C43: 74.4 | D43: 74.42 | E43: 73.18 | F43: 71.97 | G43: 70.73 | H43: 75.63 | I43: 76.87 | J43: 78.08 | K43: 75.65 | L43: 73.2 | M43: 319.84231
A44: 34 | B44: ASIANPAINT | C44: 1986.4 | D44: 1982.85 | E44: 1961.70 | F44: 1937.00 | G44: 1915.85 | H44: 2007.55 | I44: 2028.70 | J44: 2053.40 | K44: 2004 | L44: 1958.15 | M44: 25.18983
A45: 35 | B45: ASTERDM | C45: 132.55 | D45: 136.00 | E45: 127.35 | F45: 122.15 | G45: 113.50 | H45: 141.20 | I45: 149.85 | J45: 155.05 | K45: 144.65 | L45: 130.8 | M45: 5.06569
A46: 36 | B46: ASTRAL | C46: 1224.8 | D46: 1204.98 | E46: 1169.97 | F46: 1115.13 | G46: 1080.12 | H46: 1259.82 | I46: 1294.83 | J46: 1349.67 | K46: 1240 | L46: 1150.15 | M46: 1.94699
A47: 37 | B47: ASTRAZEN | C47: 4303.75 | D47: 4300.25 | E47: 4260.50 | F47: 4217.25 | G47: 4177.50 | H47: 4343.50 | I47: 4383.25 | J47: 4426.50 | K47: 4340 | L47: 4257 | M47: 0.26105
A48: 38 | B48: ATUL | C48: 6112.3 | D48: 6106.78 | E48: 6063.52 | F48: 6014.73 | G48: 5971.47 | H48: 6155.57 | I48: 6198.83 | J48: 6247.62 | K48: 6150.05 | L48: 6058 | M48: 0.14938
A49: 39 | B49: AUBANK | C49: 654.35 | D49: 656.53 | E49: 645.42 | F49: 636.48 | G49: 625.37 | H49: 665.47 | I49: 676.58 | J49: 685.52 | K49: 667.65 | L49: 647.6 | M49: 2.9084
A50: 40 | B50: AUROPHARMA | C50: 796.5 | D50: 802.58 | E50: 785.17 | F50: 773.83 | G50: 756.42 | H50: 813.92 | I50: 831.33 | J50: 842.67 | K50: 820 | L50: 791.25 | M50: 42.24666
A51: 41 | B51: AVANTIFEED | C51: 497.35 | D51: 498.72 | E51: 489.73 | F51: 482.12 | G51: 473.13 | H51: 506.33 | I51: 515.32 | J51: 522.93 | K51: 507.7 | L51: 491.1 | M51: 1.71739
A52: 42 | B52: AXISBANK | C52: 424.65 | D52: 423.83 | E52: 419.57 | F52: 414.48 | G52: 410.22 | H52: 428.92 | I52: 433.18 | J52: 438.27 | K52: 428.1 | L52: 418.75 | M52: 184.85383
A53: 43 | B53: BAJAJ-AUTO | C53: 2881.1 | D53: 2896.70 | E53: 2854.40 | F53: 2827.70 | G53: 2785.40 | H53: 2923.40 | I53: 2965.70 | J53: 2992.40 | K53: 2939 | L53: 2870 | M53: 10.95715
A54: 44 | B54: BAJAJCON | C54: 182.8 | D54: 182.63 | E54: 180.02 | F54: 177.23 | G54: 174.62 | H54: 185.42 | I54: 188.03 | J54: 190.82 | K54: 185.25 | L54: 179.85 | M54: 2.62286
A55: 45 | B55: BAJAJELEC | C55: 503.2 | D55: 499.00 | E55: 484.20 | F55: 465.20 | G55: 450.40 | H55: 518.00 | I55: 532.80 | J55: 551.80 | K55: 513.8 | L55: 480 | M55: 5.57551
A56: 46 | B56: BAJAJFINSV | C56: 5852.35 | D56: 5867.12 | E56: 5805.23 | F56: 5758.12 | G56: 5696.23 | H56: 5914.23 | I56: 5976.12 | J56: 6023.23 | K56: 5929 | L56: 5820 | M56: 3.756
A57: 47 | B57: BAJAJHLDNG | C57: 2413.95 | D57: 2420.47 | E57: 2394.48 | F57: 2375.02 | G57: 2349.03 | H57: 2439.93 | I57: 2465.92 | J57: 2485.38 | K57: 2446.45 | L57: 2401 | M57: 0.15996
A58: 48 | B58: BAJFINANCE | C58: 3278.6 | D58: 3294.15 | E58: 3244.45 | F58: 3210.30 | G58: 3160.60 | H58: 3328.30 | I58: 3378.00 | J58: 3412.15 | K58: 3343.85 | L58: 3260 | M58: 36.03553
A59: 49 | B59: BALKRISIND | C59: 1477 | D59: 1487.58 | E59: 1460.47 | F59: 1443.93 | G59: 1416.82 | H59: 1504.12 | I59: 1531.23 | J59: 1547.77 | K59: 1514.7 | L59: 1471.05 | M59: 15.01918
A60: 50 | B60: BALMLAWRIE | C60: 99.5 | D60: 99.90 | E60: 98.30 | F60: 97.10 | G60: 95.50 | H60: 101.10 | I60: 102.70 | J60: 103.90 | K60: 101.5 | L60: 98.7 | M60: 0.93988
A61: 51 | B61: BALRAMCHIN | C61: 155.2 | D61: 153.93 | E61: 151.37 | F61: 147.53 | G61: 144.97 | H61: 157.77 | I61: 160.33 | J61: 164.17 | K61: 156.5 | L61: 150.1 | M61: 11.49017
A62: 52 | B62: BANDHANBNK | C62: 273 | D62: 272.67 | E62: 268.83 | F62: 264.67 | G62: 260.83 | H62: 276.83 | I62: 280.67 | J62: 284.83 | K62: 276.5 | L62: 268.5 | M62: 60.08916
A63: 53 | B63: BANKBARODA | C63: 41.05 | D63: 41.00 | E63: 40.35 | F63: 39.65 | G63: 39.00 | H63: 41.70 | I63: 42.35 | J63: 43.05 | K63: 41.65 | L63: 40.3 | M63: 321.31398
A64: 54 | B64: BANKINDIA | C64: 40.65 | D64: 40.85 | E64: 40.30 | F64: 39.95 | G64: 39.40 | H64: 41.20 | I64: 41.75 | J64: 42.10 | K64: 41.4 | L64: 40.5 | M64: 10.96243
A65: 55 | B65: BASF | C65: 1511.55 | D65: 1483.17 | E65: 1440.58 | F65: 1369.62 | G65: 1327.03 | H65: 1554.13 | I65: 1596.72 | J65: 1667.68 | K65: 1525.75 | L65: 1412.2 | M65: 0.85408
A66: 56 | B66: BATAINDIA | C66: 1318.35 | D66: 1325.72 | E66: 1301.43 | F66: 1284.52 | G66: 1260.23 | H66: 1342.63 | I66: 1366.92 | J66: 1383.83 | K66: 1350 | L66: 1308.8 | M66: 9.11109
A67: 57 | B67: BAYERCROP | C67: 5891.2 | D67: 5894.05 | E67: 5828.15 | F67: 5765.10 | G67: 5699.20 | H67: 5957.10 | I67: 6023.00 | J67: 6086.05 | K67: 5959.95 | L67: 5831 | M67: 0.31546
A68: 58 | B68: BBTC | C68: 1304 | D68: 1304.68 | E68: 1289.37 | F68: 1274.73 | G68: 1259.42 | H68: 1319.32 | I68: 1334.63 | J68: 1349.27 | K68: 1320 | L68: 1290.05 | M68: 0.7352
A69: 59 | B69: BDL | C69: 314.75 | D69: 309.37 | E69: 301.73 | F69: 288.72 | G69: 281.08 | H69: 322.38 | I69: 330.02 | J69: 343.03 | K69: 317 | L69: 296.35 | M69: 7.14682
A70: 60 | B70: BEL | C70: 95.75 | D70: 95.37 | E70: 94.28 | F70: 92.82 | G70: 91.73 | H70: 96.83 | I70: 97.92 | J70: 99.38 | K70: 96.45 | L70: 93.9 | M70: 47.29904
A71: 61 | B71: BEML | C71: 610.45 | D71: 613.38 | E71: 604.07 | F71: 597.68 | G71: 588.37 | H71: 619.77 | I71: 629.08 | J71: 635.47 | K71: 622.7 | L71: 607 | M71: 1.59149
A72: 62 | B72: BERGEPAINT | C72: 583.7 | D72: 581.57 | E72: 575.13 | F72: 566.57 | G72: 560.13 | H72: 590.13 | I72: 596.57 | J72: 605.13 | K72: 588 | L72: 573 | M72: 14.37644
A73: 63 | B73: BHARATFORG | C73: 447.55 | D73: 447.70 | E73: 443.95 | F73: 440.35 | G73: 436.60 | H73: 451.30 | I73: 455.05 | J73: 458.65 | K73: 451.45 | L73: 444.1 | M73: 6.26631
A74: 64 | B74: BHARATRAS | C74: 9054 | D74: 9094.98 | E74: 8970.02 | F74: 8886.03 | G74: 8761.07 | H74: 9178.97 | I74: 9303.93 | J74: 9387.92 | K74: 9219.95 | L74: 9011 | M74: 0.02918
A75: 65 | B75: BHARTIARTL | C75: 420.95 | D75: 426.50 | E75: 412.60 | F75: 404.25 | G75: 390.35 | H75: 434.85 | I75: 448.75 | J75: 457.10 | K75: 440.4 | L75: 418.15 | M75: 271.76498
A76: 66 | B76: BHEL | C76: 29.25 | D76: 29.63 | E76: 28.82 | F76: 28.38 | G76: 27.57 | H76: 30.07 | I76: 30.88 | J76: 31.32 | K76: 30.45 | L76: 29.2 | M76: 362.7266
A77: 67 | B77: BIOCON | C77: 447.7 | D77: 451.93 | E77: 440.37 | F77: 433.03 | G77: 421.47 | H77: 459.27 | I77: 470.83 | J77: 478.17 | K77: 463.5 | L77: 444.6 | M77: 47.67307
A78: 68 | B78: BIRLACORPN | C78: 666.1 | D78: 670.35 | E78: 658.00 | F78: 649.90 | G78: 637.55 | H78: 678.45 | I78: 690.80 | J78: 698.90 | K78: 682.7 | L78: 662.25 | M78: 1.958
A79: 69 | B79: BLISSGVS | C79: 170.2 | D79: 167.05 | E79: 162.15 | F79: 154.10 | G79: 149.20 | H79: 175.10 | I79: 180.00 | J79: 188.05 | K79: 171.95 | L79: 159 | M79: 16.40989
A80: 70 | B80: BLUEDART | C80: 3173.35 | D80: 3160.58 | E80: 3082.77 | F80: 2992.18 | G80: 2914.37 | H80: 3251.17 | I80: 3328.98 | J80: 3419.57 | K80: 3238.4 | L80: 3070 | M80: 0.95481
A81: 71 | B81: BLUESTARCO | C81: 641.15 | D81: 642.45 | E81: 634.70 | F81: 628.25 | G81: 620.50 | H81: 648.90 | I81: 656.65 | J81: 663.10 | K81: 650.2 | L81: 636 | M81: 0.42141
A82: 72 | B82: BOMDYEING | C82: 62.95 | D82: 63.50 | E82: 62.10 | F82: 61.25 | G82: 59.85 | H82: 64.35 | I82: 65.75 | J82: 66.60 | K82: 64.9 | L82: 62.65 | M82: 8.09049
A83: 73 | B83: BOSCHLTD | C83: 13730.05 | D83: 13708.02 | E83: 13535.53 | F83: 13341.02 | G83: 13168.53 | H83: 13902.53 | I83: 14075.02 | J83: 14269.53 | K83: 13880.5 | L83: 13513.5 | M83: 0.73855
A84: 74 | B84: BPCL | C84: 353.05 | D84: 365.45 | E84: 336.40 | F84: 319.75 | G84: 290.70 | H84: 382.10 | I84: 411.15 | J84: 427.80 | K84: 394.5 | L84: 348.8 | M84: 435.96665
A85: 75 | B85: BRIGADE | C85: 162.9 | D85: 163.02 | E85: 161.73 | F85: 160.57 | G85: 159.28 | H85: 164.18 | I85: 165.47 | J85: 166.63 | K85: 164.3 | L85: 161.85 | M85: 0.28447
A86: 76 | B86: BRITANNIA | C86: 3798.15 | D86: 3779.07 | E86: 3733.13 | F86: 3668.12 | G86: 3622.18 | H86: 3844.08 | I86: 3890.02 | J86: 3955.03 | K86: 3825 | L86: 3714.05 | M86: 5.35771
A87: 77 | B87: BSE | C87: 545.75 | D87: 547.33 | E87: 538.67 | F87: 531.58 | G87: 522.92 | H87: 554.42 | I87: 563.08 | J87: 570.17 | K87: 556 | L87: 540.25 | M87: 2.64764
A88: 78 | B88: BSOFT | C88: 195.2 | D88: 196.47 | E88: 191.93 | F88: 188.67 | G88: 184.13 | H88: 199.73 | I88: 204.27 | J88: 207.53 | K88: 201 | L88: 193.2 | M88: 11.98312
A89: 79 | B89: CADILAHC | C89: 395.05 | D89: 395.85 | E89: 385.20 | F89: 375.35 | G89: 364.70 | H89: 405.70 | I89: 416.35 | J89: 426.20 | K89: 406.5 | L89: 386 | M89: 75.8717
A90: 80 | B90: CANBK | C90: 88.85 | D90: 88.73 | E90: 87.82 | F90: 86.78 | G90: 85.87 | H90: 89.77 | I90: 90.68 | J90: 91.72 | K90: 89.65 | L90: 87.7 | M90: 51.37762
A91: 81 | B91: CANFINHOME | C91: 415.75 | D91: 417.23 | E91: 409.57 | F91: 403.38 | G91: 395.72 | H91: 423.42 | I91: 431.08 | J91: 437.27 | K91: 424.9 | L91: 411.05 | M91: 3.73794
A92: 82 | B92: CAPLIPOINT | C92: 553.65 | D92: 558.20 | E92: 546.40 | F92: 539.15 | G92: 527.35 | H92: 565.45 | I92: 577.25 | J92: 584.50 | K92: 570 | L92: 550.95 | M92: 1.28481
A93: 83 | B93: CARBORUNIV | C93: 269.25 | D93: 266.88 | E93: 263.22 | F93: 257.18 | G93: 253.52 | H93: 272.92 | I93: 276.58 | J93: 282.62 | K93: 270.55 | L93: 260.85 | M93: 1.79981
A94: 84 | B94: CARERATING | C94: 349.4 | D94: 348.42 | E94: 341.08 | F94: 332.77 | G94: 325.43 | H94: 356.73 | I94: 364.07 | J94: 372.38 | K94: 355.75 | L94: 340.1 | M94: 0.99349
A95: 85 | B95: CASTROLIND | C95: 109.35 | D95: 109.65 | E95: 108.80 | F95: 108.25 | G95: 107.40 | H95: 110.20 | I95: 111.05 | J95: 111.60 | K95: 110.5 | L95: 109.1 | M95: 4.24329
A96: 86 | B96: CCL | C96: 265.6 | D96: 266.85 | E96: 262.75 | F96: 259.90 | G96: 255.80 | H96: 269.70 | I96: 273.80 | J96: 276.65 | K96: 270.95 | L96: 264 | M96: 0.71596
A97: 87 | B97: CDSL | C97: 482.55 | D97: 484.35 | E97: 476.20 | F97: 469.85 | G97: 461.70 | H97: 490.70 | I97: 498.85 | J97: 505.20 | K97: 492.5 | L97: 478 | M97: 10.68673
A98: 88 | B98: CEATLTD | C98: 999.2 | D98: 1001.02 | E98: 975.03 | F98: 950.87 | G98: 924.88 | H98: 1025.18 | I98: 1051.17 | J98: 1075.33 | K98: 1027 | L98: 976.85 | M98: 4.62878
A99: 89 | B99: CENTRALBK | C99: 14.3 | D99: 14.68 | E99: 13.82 | F99: 13.33 | G99: 12.47 | H99: 15.17 | I99: 16.03 | J99: 16.52 | K99: 15.55 | L99: 14.2 | M99: 75.78957
A100: 90 | B100: CENTURYPLY | C100: 162.3 | D100: 163.20 | E100: 161.00 | F100: 159.70 | G100: 157.50 | H100: 164.50 | I100: 166.70 | J100: 168.00 | K100: 165.4 | L100: 161.9 | M100: 0.7221
A101: 91 | B101: CENTURYTEX | C101: 331.55 | D101: 333.50 | E101: 327.25 | F101: 322.95 | G101: 316.70 | H101: 337.80 | I101: 344.05 | J101: 348.35 | K101: 339.75 | L101: 329.2 | M101: 4.56042
A102: 92 | B102: CERA | C102: 2325.4 | D102: 2302.10 | E102: 2244.30 | F102: 2163.20 | G102: 2105.40 | H102: 2383.20 | I102: 2441.00 | J102: 2522.10 | K102: 2359.9 | L102: 2221 | M102: 0.11066
A103: 93 | B103: CESC | C103: 614 | D103: 615.50 | E103: 609.50 | F103: 605.00 | G103: 599.00 | H103: 620.00 | I103: 626.00 | J103: 630.50 | K103: 621.5 | L103: 611 | M103: 1.38949
A104: 94 | B104: CGCL | C104: 235.65 | D104: 231.38 | E104: 225.77 | F104: 215.88 | G104: 210.27 | H104: 241.27 | I104: 246.88 | J104: 256.77 | K104: 237 | L104: 221.5 | M104: 0.80294
A105: 95 | B105: CHAMBLFERT | C105: 157.8 | D105: 156.88 | E105: 154.37 | F105: 150.93 | G105: 148.42 | H105: 160.32 | I105: 162.83 | J105: 166.27 | K105: 159.4 | L105: 153.45 | M105: 8.01987
A106: 96 | B106: CHENNPETRO | C106: 68.95 | D106: 69.62 | E106: 67.73 | F106: 66.52 | G106: 64.63 | H106: 70.83 | I106: 72.72 | J106: 73.93 | K106: 71.5 | L106: 68.4 | M106: 2.93964
A107: 97 | B107: CHOLAFIN | C107: 249.15 | D107: 251.13 | E107: 245.72 | F107: 242.28 | G107: 236.87 | H107: 254.57 | I107: 259.98 | J107: 263.42 | K107: 256.55 | L107: 247.7 | M107: 49.77764
A108: 98 | B108: CHOLAHLDNG | C108: 393.7 | D108: 396.20 | E108: 384.50 | F108: 375.30 | G108: 363.60 | H108: 405.40 | I108: 417.10 | J108: 426.30 | K108: 407.9 | L108: 387 | M108: 0.77543
A109: 99 | B109: CIPLA | C109: 774.7 | D109: 776.88 | E109: 758.87 | F109: 743.03 | G109: 725.02 | H109: 792.72 | I109: 810.73 | J109: 826.57 | K109: 794.9 | L109: 761.05 | M109: 143.33238
A110: 100 | B110: COALINDIA | C110: 116 | D110: 115.92 | E110: 114.73 | F110: 113.47 | G110: 112.28 | H110: 117.18 | I110: 118.37 | J110: 119.63 | K110: 117.1 | L110: 114.65 | M110: 140.36727
A111: 101 | B111: COCHINSHIP | C111: 336.55 | D111: 333.83 | E111: 328.67 | F111: 320.78 | G111: 315.62 | H111: 341.72 | I111: 346.88 | J111: 354.77 | K111: 339 | L111: 325.95 | M111: 5.58234
A112: 102 | B112: COFORGE | C112: 2322.2 | D112: 2316.72 | E112: 2285.48 | F112: 2248.77 | G112: 2217.53 | H112: 2353.43 | I112: 2384.67 | J112: 2421.38 | K112: 2347.95 | L112: 2280 | M112: 3.31363
A113: 103 | B113: COLPAL | C113: 1433.5 | D113: 1431.98 | E113: 1414.02 | F113: 1394.53 | G113: 1376.57 | H113: 1451.47 | I113: 1469.43 | J113: 1488.92 | K113: 1449.95 | L113: 1412.5 | M113: 5.61481
A114: 104 | B114: CONCOR | C114: 364.95 | D114: 367.37 | E114: 359.58 | F114: 354.22 | G114: 346.43 | H114: 372.73 | I114: 380.52 | J114: 385.88 | K114: 375.15 | L114: 362 | M114: 21.70459
A115: 105 | B115: COROMANDEL | C115: 772.85 | D115: 779.70 | E115: 759.40 | F115: 745.95 | G115: 725.65 | H115: 793.15 | I115: 813.45 | J115: 826.90 | K115: 800 | L115: 766.25 | M115: 2.63981
A116: 106 | B116: CREDITACC | C116: 742.85 | D116: 736.95 | E116: 713.90 | F116: 684.95 | G116: 661.90 | H116: 765.90 | I116: 788.95 | J116: 817.90 | K116: 760 | L116: 708 | M116: 2.09929
A117: 107 | B117: CRISIL | C117: 1780.3 | D117: 1778.02 | E117: 1762.28 | F117: 1744.27 | G117: 1728.53 | H117: 1796.03 | I117: 1811.77 | J117: 1829.78 | K117: 1793.75 | L117: 1760 | M117: 0.15259
A118: 108 | B118: CROMPTON | C118: 292.35 | D118: 286.58 | E118: 278.17 | F118: 263.98 | G118: 255.57 | H118: 300.77 | I118: 309.18 | J118: 323.37 | K118: 295 | L118: 272.4 | M118: 8.76628
A119: 109 | B119: CSBBANK | C119: 226.35 | D119: 227.00 | E119: 222.35 | F119: 218.35 | G119: 213.70 | H119: 231.00 | I119: 235.65 | J119: 239.65 | K119: 231.65 | L119: 223 | M119: 0.41738
A120: 110 | B120: CUB | C120: 139.75 | D120: 138.62 | E120: 136.23 | F120: 132.72 | G120: 130.33 | H120: 142.13 | I120: 144.52 | J120: 148.03 | K120: 141 | L120: 135.1 | M120: 28.01369
A121: 111 | B121: CUMMINSIND | C121: 445.2 | D121: 444.97 | E121: 440.43 | F121: 435.67 | G121: 431.13 | H121: 449.73 | I121: 454.27 | J121: 459.03 | K121: 449.5 | L121: 440.2 | M121: 6.3955
A122: 112 | B122: CYIENT | C122: 383.5 | D122: 386.90 | E122: 377.60 | F122: 371.70 | G122: 362.40 | H122: 392.80 | I122: 402.10 | J122: 408.00 | K122: 396.2 | L122: 381 | M122: 1.78055
A123: 113 | B123: DABUR | C123: 510.55 | D123: 506.95 | E123: 499.90 | F123: 489.25 | G123: 482.20 | H123: 517.60 | I123: 524.65 | J123: 535.30 | K123: 514 | L123: 496.3 | M123: 40.19167
A124: 114 | B124: DALBHARAT | C124: 781.45 | D124: 776.45 | E124: 765.00 | F124: 748.55 | G124: 737.10 | H124: 792.90 | I124: 804.35 | J124: 820.80 | K124: 787.9 | L124: 760 | M124: 1.26209
A125: 115 | B125: DBCORP | C125: 77.95 | D125: 77.87 | E125: 76.83 | F125: 75.72 | G125: 74.68 | H125: 78.98 | I125: 80.02 | J125: 81.13 | K125: 78.9 | L125: 76.75 | M125: 1.1895
A126: 116 | B126: DBL | C126: 335.55 | D126: 338.10 | E126: 331.50 | F126: 327.45 | G126: 320.85 | H126: 342.15 | I126: 348.75 | J126: 352.80 | K126: 344.7 | L126: 334.05 | M126: 0.85739
A127: 117 | B127: DCAL | C127: 156.9 | D127: 157.27 | E127: 154.73 | F127: 152.57 | G127: 150.03 | H127: 159.43 | I127: 161.97 | J127: 164.13 | K127: 159.8 | L127: 155.1 | M127: 1.76458
A128: 118 | B128: DCBBANK | C128: 78.3 | D128: 78.87 | E128: 77.53 | F128: 76.77 | G128: 75.43 | H128: 79.63 | I128: 80.97 | J128: 81.73 | K128: 80.2 | L128: 78.1 | M128: 9.08079
A129: 119 | B129: DCMSHRIRAM | C129: 363.5 | D129: 364.53 | E129: 358.12 | F129: 352.73 | G129: 346.32 | H129: 369.92 | I129: 376.33 | J129: 381.72 | K129: 370.95 | L129: 359.15 | M129: 0.29282
A130: 120 | B130: DEEPAKNTR | C130: 821.2 | D130: 825.75 | E130: 812.00 | F130: 802.80 | G130: 789.05 | H130: 834.95 | I130: 848.70 | J130: 857.90 | K130: 839.5 | L130: 816.55 | M130: 7.71896
A131: 121 | B131: DELTACORP | C131: 110.55 | D131: 111.08 | E131: 108.57 | F131: 106.58 | G131: 104.07 | H131: 113.07 | I131: 115.58 | J131: 117.57 | K131: 113.6 | L131: 109.1 | M131: 12.27493
A132: 122 | B132: DHANUKA | C132: 751.25 | D132: 747.10 | E132: 729.20 | F132: 707.15 | G132: 689.25 | H132: 769.15 | I132: 787.05 | J132: 809.10 | K132: 765 | L132: 725.05 | M132: 1.02564
A133: 123 | B133: DISHTV | C133: 13.55 | D133: 13.65 | E133: 13.25 | F133: 12.95 | G133: 12.55 | H133: 13.95 | I133: 14.35 | J133: 14.65 | K133: 14.05 | L133: 13.35 | M133: 47.28085
A134: 124 | B134: DIVISLAB | C134: 3047.95 | D134: 3074.32 | E134: 3013.63 | F134: 2979.32 | G134: 2918.63 | H134: 3108.63 | I134: 3169.32 | J134: 3203.63 | K134: 3135 | L134: 3040 | M134: 14.16089
A135: 125 | B135: DIXON | C135: 8762.05 | D135: 8856.02 | E135: 8522.03 | F135: 8282.02 | G135: 7948.03 | H135: 9096.03 | I135: 9430.02 | J135: 9670.03 | K135: 9190 | L135: 8616 | M135: 0.39662
A136: 126 | B136: DLF | C136: 152.65 | D136: 153.70 | E136: 150.80 | F136: 148.95 | G136: 146.05 | H136: 155.55 | I136: 158.45 | J136: 160.30 | K136: 156.6 | L136: 151.85 | M136: 97.38929
A137: 127 | B137: DMART | C137: 2203.15 | D137: 2179.32 | E137: 2138.83 | F137: 2074.52 | G137: 2034.03 | H137: 2243.63 | I137: 2284.12 | J137: 2348.43 | K137: 2219.8 | L137: 2115 | M137: 6.77291
A138: 128 | B138: DRREDDY | C138: 5187.8 | D138: 5196.93 | E138: 5075.87 | F138: 4963.93 | G138: 4842.87 | H138: 5308.87 | I138: 5429.93 | J138: 5541.87 | K138: 5318 | L138: 5085 | M138: 53.95622
A139: 129 | B139: ECLERX | C139: 701.1 | D139: 706.37 | E139: 694.73 | F139: 688.37 | G139: 676.73 | H139: 712.73 | I139: 724.37 | J139: 730.73 | K139: 718 | L139: 700 | M139: 0.49283
A140: 130 | B140: EDELWEISS | C140: 58.9 | D140: 58.88 | E140: 57.67 | F140: 56.43 | G140: 55.22 | H140: 60.12 | I140: 61.33 | J140: 62.57 | K140: 60.1 | L140: 57.65 | M140: 5.7106
A141: 131 | B141: EICHERMOT | C141: 2202.8 | D141: 2203.15 | E141: 2185.30 | F141: 2167.80 | G141: 2149.95 | H141: 2220.65 | I141: 2238.50 | J141: 2256.00 | K141: 2221 | L141: 2185.65 | M141: 9.25938
A142: 132 | B142: EIDPARRY | C142: 282.95 | D142: 281.47 | E142: 276.28 | F142: 269.62 | G142: 264.43 | H142: 288.13 | I142: 293.32 | J142: 299.98 | K142: 286.65 | L142: 274.8 | M142: 3.65155
A143: 133 | B143: EIHOTEL | C143: 80.6 | D143: 81.32 | E143: 79.48 | F143: 78.37 | G143: 76.53 | H143: 82.43 | I143: 84.27 | J143: 85.38 | K143: 83.15 | L143: 80.2 | M143: 4.60637
A144: 134 | B144: ELGIEQUIP | C144: 121.35 | D144: 120.88 | E144: 119.67 | F144: 117.98 | G144: 116.77 | H144: 122.57 | I144: 123.78 | J144: 125.47 | K144: 122.1 | L144: 119.2 | M144: 0.32982
A145: 135 | B145: EMAMILTD | C145: 351.3 | D145: 352.75 | E145: 347.85 | F145: 344.40 | G145: 339.50 | H145: 356.20 | I145: 361.10 | J145: 364.55 | K145: 357.65 | L145: 349.3 | M145: 4.0395
A146: 136 | B146: ENDURANCE | C146: 1152.3 | D146: 1142.28 | E146: 1117.67 | F146: 1083.03 | G146: 1058.42 | H146: 1176.92 | I146: 1201.53 | J146: 1236.17 | K146: 1166.9 | L146: 1107.65 | M146: 0.9324
A147: 137 | B147: ENGINERSIN | C147: 64.35 | D147: 64.60 | E147: 63.95 | F147: 63.55 | G147: 62.90 | H147: 65.00 | I147: 65.65 | J147: 66.05 | K147: 65.25 | L147: 64.2 | M147: 9.36151
A148: 138 | B148: EQUITAS | C148: 50.25 | D148: 50.43 | E148: 49.82 | F148: 49.38 | G148: 48.77 | H148: 50.87 | I148: 51.48 | J148: 51.92 | K148: 51.05 | L148: 50 | M148: 12.13608
A149: 139 | B149: ERIS | C149: 538.2 | D149: 537.22 | E149: 529.43 | F149: 520.67 | G149: 512.88 | H149: 545.98 | I149: 553.77 | J149: 562.53 | K149: 545 | L149: 528.45 | M149: 1.4924
A150: 140 | B150: ESABINDIA | C150: 1379.25 | D150: 1379.07 | E150: 1360.18 | F150: 1341.12 | G150: 1322.23 | H150: 1398.13 | I150: 1417.02 | J150: 1436.08 | K150: 1397.95 | L150: 1360 | M150: 0.01162
A151: 141 | B151: ESCORTS | C151: 1318.45 | D151: 1322.68 | E151: 1302.62 | F151: 1286.78 | G151: 1266.72 | H151: 1338.52 | I151: 1358.58 | J151: 1374.42 | K151: 1342.75 | L151: 1306.85 | M151: 24.76004
A152: 142 | B152: ESSELPACK | C152: 242.25 | D152: 244.93 | E152: 237.82 | F152: 233.38 | G152: 226.27 | H152: 249.37 | I152: 256.48 | J152: 260.92 | K152: 252.05 | L152: 240.5 | M152: 2.52723
A153: 143 | B153: EXIDEIND | C153: 164.9 | D153: 165.13 | E153: 163.97 | F153: 163.03 | G153: 161.87 | H153: 166.07 | I153: 167.23 | J153: 168.17 | K153: 166.3 | L153: 164.2 | M153: 27.769
A154: 144 | B154: FCONSUMER | C154: 8.6 | D154: 8.67 | E154: 8.48 | F154: 8.37 | G154: 8.18 | H154: 8.78 | I154: 8.97 | J154: 9.08 | K154: 8.85 | L154: 8.55 | M154: 59.53283
A155: 145 | B155: FDC | C155: 356.15 | D155: 359.72 | E155: 351.43 | F155: 346.72 | G155: 338.43 | H155: 364.43 | I155: 372.72 | J155: 377.43 | K155: 368 | L155: 355 | M155: 2.56767
A156: 146 | B156: FEDERALBNK | C156: 48.6 | D156: 48.90 | E156: 48.20 | F156: 47.80 | G156: 47.10 | H156: 49.30 | I156: 50.00 | J156: 50.40 | K156: 49.6 | L156: 48.5 | M156: 210.5947
A157: 147 | B157: FINCABLES | C157: 275.7 | D157: 277.23 | E157: 271.52 | F157: 267.33 | G157: 261.62 | H157: 281.42 | I157: 287.13 | J157: 291.32 | K157: 282.95 | L157: 273.05 | M157: 0.32481
A158: 148 | B158: FINEORG | C158: 2672.7 | D158: 2697.90 | E158: 2625.80 | F158: 2578.90 | G158: 2506.80 | H158: 2744.80 | I158: 2816.90 | J158: 2863.80 | K158: 2770 | L158: 2651 | M158: 0.26864
A159: 149 | B159: FINPIPE | C159: 502.05 | D159: 501.85 | E159: 495.60 | F159: 489.15 | G159: 482.90 | H159: 508.30 | I159: 514.55 | J159: 521.00 | K159: 508.1 | L159: 495.4 | M159: 0.16456
A160: 150 | B160: FLUOROCHEM | C160: 489.55 | D160: 493.48 | E160: 481.17 | F160: 472.78 | G160: 460.47 | H160: 501.87 | I160: 514.18 | J160: 522.57 | K160: 505.8 | L160: 485.1 | M160: 0.19359
A161: 151 | B161: FORTIS | C161: 135.3 | D161: 135.43 | E161: 133.97 | F161: 132.63 | G161: 131.17 | H161: 136.77 | I161: 138.23 | J161: 139.57 | K161: 136.9 | L161: 134.1 | M161: 6.77714
A162: 152 | B162: FRETAIL | C162: 90.1 | D162: 91.33 | E162: 88.87 | F162: 87.63 | G162: 85.17 | H162: 92.57 | I162: 95.03 | J162: 96.27 | K162: 93.8 | L162: 90.1 | M162: 25.42644
A163: 153 | B163: FSL | C163: 72.75 | D163: 72.52 | E163: 71.88 | F163: 71.02 | G163: 70.38 | H163: 73.38 | I163: 74.02 | J163: 74.88 | K163: 73.15 | L163: 71.65 | M163: 23.70984
A164: 154 | B164: GAIL | C164: 86.8 | D164: 86.82 | E164: 85.48 | F164: 84.17 | G164: 82.83 | H164: 88.13 | I164: 89.47 | J164: 90.78 | K164: 88.15 | L164: 85.5 | M164: 99.23665
A165: 155 | B165: GALAXYSURF | C165: 1895.9 | D165: 1866.97 | E165: 1833.93 | F165: 1771.97 | G165: 1738.93 | H165: 1928.93 | I165: 1961.97 | J165: 2023.93 | K165: 1900 | L165: 1805 | M165: 0.36576
A166: 156 | B166: GARFIBRES | C166: 2132.75 | D166: 2129.88 | E166: 2055.77 | F166: 1978.78 | G166: 1904.67 | H166: 2206.87 | I166: 2280.98 | J166: 2357.97 | K166: 2204 | L166: 2052.9 | M166: 0.46701
A167: 157 | B167: GEPIL | C167: 426.95 | D167: 427.03 | E167: 423.92 | F167: 420.88 | G167: 417.77 | H167: 430.07 | I167: 433.18 | J167: 436.22 | K167: 430.15 | L167: 424 | M167: 0.06448
A168: 158 | B168: GESHIP | C168: 234.9 | D168: 236.93 | E168: 231.97 | F168: 229.03 | G168: 224.07 | H168: 239.87 | I168: 244.83 | J168: 247.77 | K168: 241.9 | L168: 234 | M168: 0.71957
A169: 159 | B169: GET&D | C169: 90.1 | D169: 89.82 | E169: 88.28 | F169: 86.47 | G169: 84.93 | H169: 91.63 | I169: 93.17 | J169: 94.98 | K169: 91.35 | L169: 88 | M169: 0.28945
A170: 160 | B170: GHCL | C170: 158.6 | D170: 160.15 | E170: 156.45 | F170: 154.30 | G170: 150.60 | H170: 162.30 | I170: 166.00 | J170: 168.15 | K170: 163.85 | L170: 158 | M170: 0.91119
A171: 161 | B171: GICRE | C171: 120.9 | D171: 121.98 | E171: 119.37 | F171: 117.83 | G171: 115.22 | H171: 123.52 | I171: 126.13 | J171: 127.67 | K171: 124.6 | L171: 120.45 | M171: 1.18964
A172: 162 | B172: GILLETTE | C172: 5340.2 | D172: 5361.72 | E172: 5298.53 | F172: 5256.87 | G172: 5193.68 | H172: 5403.38 | I172: 5466.57 | J172: 5508.23 | K172: 5424.9 | L172: 5320.05 | M172: 0.0239
A173: 163 | B173: GLAXO | C173: 1575.15 | D173: 1579.20 | E173: 1560.95 | F173: 1546.75 | G173: 1528.50 | H173: 1593.40 | I173: 1611.65 | J173: 1625.85 | K173: 1597.45 | L173: 1565 | M173: 0.22669
A174: 164 | B174: GLENMARK | C174: 482.65 | D174: 487.57 | E174: 475.63 | F174: 468.62 | G174: 456.68 | H174: 494.58 | I174: 506.52 | J174: 513.53 | K174: 499.5 | L174: 480.55 | M174: 28.7074
A175: 165 | B175: GMDCLTD | C175: 42.05 | D175: 42.25 | E175: 41.75 | F175: 41.45 | G175: 40.95 | H175: 42.55 | I175: 43.05 | J175: 43.35 | K175: 42.75 | L175: 41.95 | M175: 1.97021
A176: 166 | B176: GMMPFAUDLR | C176: 3983.8 | D176: 3922.85 | E176: 3861.90 | F176: 3740.00 | G176: 3679.05 | H176: 4044.75 | I176: 4105.70 | J176: 4227.60 | K176: 3983.8 | L176: 3800.95 | M176: 3.6476
A177: 167 | B177: GMRINFRA | C177: 23.05 | D177: 23.15 | E177: 22.55 | F177: 22.05 | G177: 21.45 | H177: 23.65 | I177: 24.25 | J177: 24.75 | K177: 23.75 | L177: 22.65 | M177: 264.34808
A178: 168 | B178: GNFC | C178: 208.05 | D178: 209.15 | E178: 205.90 | F178: 203.75 | G178: 200.50 | H178: 211.30 | I178: 214.55 | J178: 216.70 | K178: 212.4 | L178: 207 | M178: 7.63018
A179: 169 | B179: GODFRYPHLP | C179: 923.25 | D179: 921.12 | E179: 915.23 | F179: 907.22 | G179: 901.33 | H179: 929.13 | I179: 935.02 | J179: 943.03 | K179: 927 | L179: 913.1 | M179: 0.1911
A180: 170 | B180: GODREJAGRO | C180: 509.45 | D180: 509.90 | E180: 502.10 | F180: 494.75 | G180: 486.95 | H180: 517.25 | I180: 525.05 | J180: 532.40 | K180: 517.7 | L180: 502.55 | M180: 0.78605
A181: 171 | B181: GODREJCP | C181: 724.95 | D181: 722.53 | E181: 708.12 | F181: 691.28 | G181: 676.87 | H181: 739.37 | I181: 753.78 | J181: 770.62 | K181: 736.95 | L181: 705.7 | M181: 29.19418
A182: 172 | B182: GODREJIND | C182: 411.45 | D182: 409.78 | E182: 403.67 | F182: 395.88 | G182: 389.77 | H182: 417.57 | I182: 423.68 | J182: 431.47 | K182: 415.9 | L182: 402 | M182: 0.65227
A183: 173 | B183: GODREJPROP | C183: 860.45 | D183: 866.88 | E183: 850.57 | F183: 840.68 | G183: 824.37 | H183: 876.77 | I183: 893.08 | J183: 902.97 | K183: 883.2 | L183: 857 | M183: 2.46011
A184: 174 | B184: GPPL | C184: 82.25 | D184: 83.05 | E184: 81.20 | F184: 80.15 | G184: 78.30 | H184: 84.10 | I184: 85.95 | J184: 87.00 | K184: 84.9 | L184: 82 | M184: 0.84326
A185: 175 | B185: GRANULES | C185: 383.8 | D185: 385.83 | E185: 378.72 | F185: 373.63 | G185: 366.52 | H185: 390.92 | I185: 398.03 | J185: 403.12 | K185: 392.95 | L185: 380.75 | M185: 30.39337
A186: 176 | B186: GRAPHITE | C186: 195.25 | D186: 195.82 | E186: 192.78 | F186: 190.32 | G186: 187.28 | H186: 198.28 | I186: 201.32 | J186: 203.78 | K186: 198.85 | L186: 193.35 | M186: 5.5374
A187: 177 | B187: GRASIM | C187: 744.2 | D187: 735.22 | E187: 724.03 | F187: 703.87 | G187: 692.68 | H187: 755.38 | I187: 766.57 | J187: 786.73 | K187: 746.4 | L187: 715.05 | M187: 23.77808
A188: 178 | B188: GREAVESCOT | C188: 75.35 | D188: 75.62 | E188: 72.98 | F188: 70.62 | G188: 67.98 | H188: 77.98 | I188: 80.62 | J188: 82.98 | K188: 78.25 | L188: 73.25 | M188: 11.67287
A189: 179 | B189: GRINDWELL | C189: 545.15 | D189: 536.08 | E189: 523.17 | F189: 501.18 | G189: 488.27 | H189: 558.07 | I189: 570.98 | J189: 592.97 | K189: 549 | L189: 514.1 | M189: 0.27879
A190: 180 | B190: GRSE | C190: 216.35 | D190: 208.95 | E190: 198.45 | F190: 180.55 | G190: 170.05 | H190: 226.85 | I190: 237.35 | J190: 255.25 | K190: 219.45 | L190: 191.05 | M190: 20.78914
A191: 181 | B191: GSFC | C191: 61.6 | D191: 61.08 | E191: 60.17 | F191: 58.73 | G191: 57.82 | H191: 62.52 | I191: 63.43 | J191: 64.87 | K191: 62 | L191: 59.65 | M191: 8.66844
A192: 182 | B192: GSPL | C192: 208.55 | D192: 206.75 | E192: 204.50 | F192: 200.45 | G192: 198.20 | H192: 210.80 | I192: 213.05 | J192: 217.10 | K192: 209 | L192: 202.7 | M192: 4.82619
A193: 183 | B193: GUJALKALI | C193: 330.8 | D193: 333.23 | E193: 327.57 | F193: 324.33 | G193: 318.67 | H193: 336.47 | I193: 342.13 | J193: 345.37 | K193: 338.9 | L193: 330 | M193: 0.45992
A194: 184 | B194: GUJGASLTD | C194: 308.4 | D194: 309.00 | E194: 304.50 | F194: 300.60 | G194: 296.10 | H194: 312.90 | I194: 317.40 | J194: 321.30 | K194: 313.5 | L194: 305.1 | M194: 6.28088
A195: 185 | B195: GULFOILLUB | C195: 652.95 | D195: 656.43 | E195: 644.02 | F195: 635.08 | G195: 622.67 | H195: 665.37 | I195: 677.78 | J195: 686.72 | K195: 668.85 | L195: 647.5 | M195: 0.24422
A196: 186 | B196: HAL | C196: 806.1 | D196: 794.03 | E196: 777.07 | F196: 748.03 | G196: 731.07 | H196: 823.07 | I196: 840.03 | J196: 869.07 | K196: 811 | L196: 765 | M196: 12.25704
A197: 187 | B197: HATHWAY | C197: 29.85 | D197: 30.08 | E197: 29.17 | F197: 28.48 | G197: 27.57 | H197: 30.77 | I197: 31.68 | J197: 32.37 | K197: 31 | L197: 29.4 | M197: 1.17599
A198: 188 | B198: HATSUN | C198: 779.95 | D198: 785.12 | E198: 771.43 | F198: 762.92 | G198: 749.23 | H198: 793.63 | I198: 807.32 | J198: 815.83 | K198: 798.8 | L198: 776.6 | M198: 0.08537
A199: 189 | B199: HAVELLS | C199: 677.85 | D199: 674.23 | E199: 667.62 | F199: 657.38 | G199: 650.77 | H199: 684.47 | I199: 691.08 | J199: 701.32 | K199: 680.85 | L199: 664 | M199: 10.5304
A200: 190 | B200: HCLTECH | C200: 811.6 | D200: 813.07 | E200: 805.63 | F200: 799.67 | G200: 792.23 | H200: 819.03 | I200: 826.47 | J200: 832.43 | K200: 820.5 | L200: 807.1 | M200: 94.70277
A201: 191 | B201: HDFC | C201: 1740.05 | D201: 1729.17 | E201: 1714.08 | F201: 1688.12 | G201: 1673.03 | H201: 1755.13 | I201: 1770.22 | J201: 1796.18 | K201: 1744.25 | L201: 1703.2 | M201: 35.94715
A202: 192 | B202: HDFCAMC | C202: 2269.85 | D202: 2261.02 | E202: 2229.83 | F202: 2189.82 | G202: 2158.63 | H202: 2301.03 | I202: 2332.22 | J202: 2372.23 | K202: 2292.2 | L202: 2221 | M202: 2.9128
A203: 193 | B203: HDFCBANK | C203: 1078.6 | D203: 1072.50 | E203: 1058.10 | F203: 1037.60 | G203: 1023.20 | H203: 1093.00 | I203: 1107.40 | J203: 1127.90 | K203: 1086.9 | L203: 1052 | M203: 94.07038
A204: 194 | B204: HDFCLIFE | C204: 559.4 | D204: 562.43 | E204: 552.92 | F204: 546.43 | G204: 536.92 | H204: 568.92 | I204: 578.43 | J204: 584.92 | K204: 571.95 | L204: 555.95 | M204: 49.06856
A205: 195 | B205: HEG | C205: 727.2 | D205: 732.02 | E205: 714.33 | F205: 701.47 | G205: 683.78 | H205: 744.88 | I205: 762.57 | J205: 775.43 | K205: 749.7 | L205: 719.15 | M205: 2.72732
A206: 196 | B206: HEIDELBERG | C206: 186.7 | D206: 183.93 | E206: 180.37 | F206: 174.03 | G206: 170.47 | H206: 190.27 | I206: 193.83 | J206: 200.17 | K206: 187.5 | L206: 177.6 | M206: 3.9949
... 321 more rows

Sheet Bulk Deals
E6: Back To Main Page
A7: Subject : | B7: BULK DEAL | D7: =Main!B10 -> 2020-10-01
A9: Date | B9: Scrip code | C9: Scrip Name | D9: Client Name | E9: Buy / Sell | F9: Quantity Traded | G9: Trade Price / Wt.Avg.trade price | H9: Exchange
A10: 2020-09-30 | B10: 531673 | C10: ANKIN | D10: SHAH RAJNIKANT CHUNILAL HUF | E10: SELL | F10: 65,000 | G10: 8.5 | H10: BSE
A11: 2020-09-30 | B11: 531673 | C11: ANKIN | D11: NITIN DARA | E11: BUY | F11: 45,000 | G11: 8.5 | H11: BSE
A12: 2020-09-30 | B12: 539800 | C12: CHDCHEM | D12: JAGDISH PRASAD ARYA | E12: BUY | F12: 72,235 | G12: 66.68 | H12: BSE
A13: 2020-09-30 | B13: 539800 | C13: CHDCHEM | D13: JAGDISH PRASAD ARYA | E13: SELL | F13: 72,235 | G13: 66.7 | H13: BSE
A14: 2020-09-30 | B14: 539770 | C14: DARJEELING | D14: LICY ROSHAN AUGUSTINE | E14: SELL | F14: 20,016 | G14: 3.62 | H14: BSE
A15: 2020-09-30 | B15: 540936 | C15: GGL | D15: HATHILA VANESHBHAI RASUBHAI | E15: SELL | F15: 57,600 | G15: 28.64 | H15: BSE
A16: 2020-09-30 | B16: 530663 | C16: GOYALASS | D16: VIRBALA POPATLAL JAIN | E16: SELL | F16: 243,000 | G16: 0.84 | H16: BSE
A17: 2020-09-30 | B17: 542653 | C17: JINAAM | D17: HARSHA RAJESHBHAI JHAVERI | E17: BUY | F17: 156,000 | G17: 5.38 | H17: BSE
A18: 2020-09-30 | B18: 542653 | C18: JINAAM | D18: INDIACREDIT RISK MANAGEMENT LLP | E18: SELL | F18: 260,000 | G18: 5.41 | H18: BSE
A19: 2020-09-30 | B19: 539679 | C19: KAPILRAJ | D19: A F ENTERPRISES LIMITED . | E19: SELL | F19: 50,000 | G19: 7.09 | H19: BSE
A20: 2020-09-30 | B20: 538401 | C20: METSL | D20: RAMESH SAWALRAM SARAOGI | E20: SELL | F20: 56,250 | G20: 111.66 | H20: BSE
A21: 2020-09-30 | B21: 539767 | C21: MNIL | D21: KARAN SURESHCHANDRA MAJITHIA | E21: SELL | F21: 20,000 | G21: 17.98 | H21: BSE
A22: 2020-09-30 | B22: 543194 | C22: NIRMITEE | D22: HARSHA RAJESHBHAI JHAVERI | E22: BUY | F22: 7,800 | G22: 319.75 | H22: BSE
A23: 2020-09-30 | B23: 543194 | C23: NIRMITEE | D23: ARYAMAN BROKING LIMITED | E23: BUY | F23: 2,400 | G23: 318 | H23: BSE
A24: 2020-09-30 | B24: 543194 | C24: NIRMITEE | D24: ARYAMAN BROKING LIMITED | E24: SELL | F24: 8,400 | G24: 319.23 | H24: BSE
A25: 2020-09-30 | B25: 506852 | C25: PACL | D25: VINOD FOJMALJI KOTHARI HUF . | E25: SELL | F25: 200,000 | G25: 55.4 | H25: BSE
A26: 2020-09-30 | B26: 531281 | C26: PGINDST | D26: CAPETOWN MERCHANDISE PRIVATE LIMITED | E26: SELL | F26: 70,713 | G26: 2.47 | H26: BSE
A27: 2020-09-30 | B27: 531281 | C27: PGINDST | D27: VISHAL ENCLAVE PRIVATE LIMITED | E27: SELL | F27: 82,000 | G27: 2.47 | H27: BSE
A28: 2020-09-30 | B28: 512217 | C28: PRISMMEDI | D28: ADITYA SOLANKI | E28: BUY | F28: 39,500 | G28: 18.37 | H28: BSE
A29: 2020-09-30 | B29: 512217 | C29: PRISMMEDI | D29: SUNIL KUMAR RANA | E29: SELL | F29: 39,500 | G29: 18.37 | H29: BSE
A30: 2020-09-30 | B30: 506618 | C30: PUNJABCHEM | D30: RUPAM SHALIL SHROFF | E30: SELL | F30: 100,000 | G30: 600.25 | H30: BSE
A31: 2020-09-30 | B31: 540159 | C31: PURPLE | D31: DHARMENDRA MAHESHSINH CHAUHAN | E31: SELL | F31: 44,800 | G31: 18.95 | H31: BSE
A32: 2020-09-30 | B32: 540159 | C32: PURPLE | D32: VISHAL JITENDRAKUMAR BAROT | E32: BUY | F32: 50,000 | G32: 19 | H32: BSE
A33: 2020-09-30 | B33: 540159 | C33: PURPLE | D33: HATHILA VANESHBHAI RASUBHAI | E33: SELL | F33: 50,000 | G33: 19 | H33: BSE
A34: 2020-09-30 | B34: 538647 | C34: PURSHOTTAM | D34: PEEYUSH KUMAR AGGARWAL HUF | E34: SELL | F34: 50,219 | G34: 10 | H34: BSE
A35: 2020-09-30 | B35: 538647 | C35: PURSHOTTAM | D35: JITENDERA BANTHIA | E35: BUY | F35: 50,000 | G35: 10 | H35: BSE
A36: 2020-09-30 | B36: 524218 | C36: RESONANCE | D36: MAKERS LABORATORIES LIMITED | E36: BUY | F36: 5,250,000 | G36: 42.6 | H36: BSE
A37: 2020-09-30 | B37: 524218 | C37: RESONANCE | D37: VISTA FINANCE LEASING PRIVATE LIMITED | E37: SELL | F37: 2,350,000 | G37: 42.6 | H37: BSE
A38: 2020-09-30 | B38: 524218 | C38: RESONANCE | D38: USHMA INVESTMENTS PRIVATE LIMITED | E38: SELL | F38: 2,900,000 | G38: 42.6 | H38: BSE
A39: 2020-09-30 | B39: 533301 | C39: SPYL | D39: SHREY MUKESH RUIA | E39: BUY | F39: 10,917,485 | G39: 0.38 | H39: BSE
A40: 2020-09-30 | B40: 533301 | C40: SPYL | D40: S & D SHARE & STOCK PVT LTD | E40: SELL | F40: 10,917,485 | G40: 0.38 | H40: BSE
A41: 2020-09-30 | B41: 532070 | C41: SUPRBPA | D41: VISHALVIPINBHAIBHATT | E41: BUY | F41: 30,848 | G41: 10.65 | H41: BSE
A42: 2020-09-30 | B42: 532070 | C42: SUPRBPA | D42: VISHAL VIPINBHAI BHATT | E42: SELL | F42: 57,950 | G42: 10.71 | H42: BSE
A43: 2020-09-30 | B43: 532869 | C43: TARMAT | D43: SOMANI ESTATES PRIVATE LIMITED | E43: BUY | F43: 200,000 | G43: 44.75 | H43: BSE
A44: 2020-09-30 | B44: 532869 | C44: TARMAT | D44: JERRY VARGHESE | E44: SELL | F44: 320,000 | G44: 44.75 | H44: BSE
A45: 2020-09-30 | B45: 532869 | C45: TARMAT | D45: AMIT ATMARAM SHAH | E45: BUY | F45: 120,000 | G45: 44.75 | H45: BSE
A46: 2020-09-30 | B46: 536264 | C46: TIGERLOGS | D46: NISHIL SURENDRABHAI MARFATIA | E46: BUY | F46: 314,798 | G46: 39.84 | H46: BSE
A47: 2020-09-30 | B47: 536264 | C47: TIGERLOGS | D47: NISHIL SURENDRABHAI MARFATIA | E47: SELL | F47: 314,798 | G47: 37.65 | H47: BSE
A48: 2020-09-30 | B48: 536264 | C48: TIGERLOGS | D48: ALPHA LEON ENTERPRISES LLP | E48: BUY | F48: 66,780 | G48: 38.84 | H48: BSE
A49: 2020-09-30 | B49: 536264 | C49: TIGERLOGS | D49: ALPHA LEON ENTERPRISES LLP | E49: SELL | F49: 75,781 | G49: 41.86 | H49: BSE
A50: 2020-09-30 | B50: 531644 | C50: TOKYOFIN | D50: TARABEN PRAVINBHAI CHHADVA | E50: SELL | F50: 61,250 | G50: 10.05 | H50: BSE
A51: 2020-09-30 | B51: ASLIND | C51: ASL Industries Limited | D51: KUBEIR KHERA | E51: BUY | F51: 76,000 | G51: 5.25 | H51: NSE
A52: 2020-09-30 | B52: CGPOWER | C52: CG Power & Ind. Sol. Ltd. | D52: HABROK INDIA MASTER LP | E52: BUY | F52: 4,057,559 | G52: 24.01 | H52: NSE
A53: 2020-09-30 | B53: HUSYSLTD | C53: Husys Consulting Ltd. | D53: MAHAPATRA ARUN KUMAR | E53: BUY | F53: 16,000 | G53: 78.86 | H53: NSE
A54: 2020-09-30 | B54: JAKHARIA | C54: JAKHARIA FABRIC LIMITED | D54: SAJANKUMAR RAMESHWARLAL BAJAJ | E54: BUY | F54: 22,400 | G54: 168.21 | H54: NSE
A55: 2020-09-30 | B55: TARMAT | C55: Tarmat Limited | D55: SUNITA BABULAL SURANA | E55: BUY | F55: 155,061 | G55: 44.5 | H55: NSE
A56: 2020-09-30 | B56: TARMAT | C56: Tarmat Limited | D56: SOMANI ESTATES PRIVATE LIMITED | E56: BUY | F56: 130,683 | G56: 44.5 | H56: NSE
A57: 2020-09-30 | B57: TARMAT | C57: Tarmat Limited | D57: SUNITA SANJAY SURANA | E57: BUY | F57: 134,939 | G57: 44.5 | H57: NSE
A58: 2020-09-30 | B58: UJAAS | C58: Ujaas Energy Limited | D58: NAYANI HARITHA | E58: BUY | F58: 1,500,000 | G58: 3.55 | H58: NSE
A59: 2020-09-30 | B59: UJAAS | C59: Ujaas Energy Limited | D59: NISHITH ATULBHAI SHAH | E59: BUY | F59: 1,561,904 | G59: 3.55 | H59: NSE
A60: 2020-09-30 | B60: UJAAS | C60: Ujaas Energy Limited | D60: SWARNIM COMMOSALE PVT LTD | E60: BUY | F60: 1,500,000 | G60: 3.55 | H60: NSE
A61: 2020-09-30 | B61: USHAMART | C61: Usha Martin Limited | D61: NEUTRAL PUBLISHING HOUSE LTD | E61: BUY | F61: 1,675,000 | G61: 25.59 | H61: NSE
A62: 2020-09-30 | B62: ASLIND | C62: ASL Industries Limited | D62: DISPLAY COMMERCIAL PRIVATE LIMITED | E62: SELL | F62: 76,000 | G62: 5.25 | H62: NSE
A63: 2020-09-30 | B63: TARMAT | C63: Tarmat Limited | D63: VARGHESE JERRY | E63: SELL | F63: 424,000 | G63: 44.5 | H63: NSE
A64: 2020-09-30 | B64: UJAAS | C64: Ujaas Energy Limited | D64: NISHITH ATULBHAI SHAH | E64: SELL | F64: 400 | G64: 3.55 | H64: NSE
A65: 2020-09-30 | B65: UJAAS | C65: Ujaas Energy Limited | D65: SVA FAMILY WELFARE TRUST | E65: SELL | F65: 11,000,000 | G65: 3.55 | H65: NSE

Sheet Call Tracker (Equity & F&O)
M5: Back To Main Page
A6: Retail Research Technical Calls & Fundamental Performance Report for the month of September-2020
M7: =Main!B10 -> 2020-10-01
B8: Positional Call
A9: Sr.no | B9: Date | D9: Company | E9: Rec | F9: Rec Price | G9: Stop Loss*** | H9: Call Closed At | I9: Target | J9: Remark | K9: Profit / Loss per Share | L9: All charges | M9: Net Gain / Loss % | N9: Status | O9: Closed Date
A10: 1 | B10: 2020-07-22 | D10: NESTLEIND | E10: Buy | F10: 17030 | G10: 15950 | H10: 15950 | I10: 18500-19000 | J10: Loss of Rs.1080/- | K10: =H10-F10 -> -1080 | L10: =(F10*-0.8)/100 -> -136.24 | M10: =(K10+L10)/F10 -> -7.14% | N10: Unsuccessful | O10: 2020-09-01 | R10: H
A11: 2 | B11: 2020-08-14 | D11: ITC | E11: Buy | F11: 198 | G11: 187 | H11: 187 | I11: 218-220 | J11: Loss of Rs.11/- | K11: =H11-F11 -> -11 | L11: =(F11*-0.8)/100 -> -1.58 | M11: -6.36% | N11: Unsuccessful | O11: 2020-09-04 | R11: A
A12: 3 | B12: 2020-08-20 | D12: THERMAX | E12: Buy$ | F12: 785 | G12: 730 | H12: 773.5 | I12: 880-900 | J12: Loss of Rs.11.50/- | K12: =H12-F12 -> -11.5 | L12: =(F12*-0.8)/100 -> -6.28 | M12: =(K12+L12)/F12 -> -2.26% | N12: Unsuccessful | O12: 2020-09-29 | R12: H
A13: 4 | B13: 2020-08-21 | D13: VGUARD | E13: Buy | F13: 172 | G13: 160.00 | H13: 180.50 | I13: 195 | J13: Part Profit of Rs.8.5/- | K13: =H13-F13 -> 8.5 | L13: =(F13*-0.8)/100 -> -1.38 | M13: =(K13+L13)/F13 -> 4.14% | N13: Successful | O13: 2020-08-27 | R13: N
A14: 5 | B14: 2020-08-28 | D14: GSPL | E14: Buy | F14: 214 | G14: 199 | H14: 200 | I14: 235-245 | J14: Loss of Rs.14/- | K14: -14 | L14: -1.71 | M14: -7.34% | N14: Unsuccessful | O14: 2020-09-02 | R14: H
A15: 6 | B15: 2020-08-28 | D15: WHIRLPOOL | E15: Buy | F15: 2142.5 | G15: 1,980.00 | H15: 2,250.00 | I15: 2400-2500 | J15: Profit of Rs.107.5/- | K15: =H15-F15 -> 107.5 | L15: =(F15*-0.8)/100 -> -17.14 | M15: =(K15+L15)/F15 -> 4.22% | N15: Successful | O15: 2020-09-17 | R15: H
A16: 7 | B16: 2020-09-01 | D16: SUNPHARMA | E16: Buy | F16: 517 | G16: 487 | H16: 487 | I16: 560-580 | J16: Loss of Rs.30/- | K16: -30 | L16: -4.14 | M16: -6.60% | N16: Unsuccessful | O16: 2020-09-24 | R16: H
A17: 8 | B17: 2020-09-01 | D17: TATACHEM | E17: Buy | F17: 309 | G17: 290 | H17: 289.5 | I17: 340-350 | J17: Loss of Rs.19.5/- | K17: =H17-F17 -> -19.5 | L17: =(F17*-0.8)/100 -> -2.47 | M17: =(K17+L17)/F17 -> -7.11% | N17: Unsuccessful | O17: 2020-09-08 | R17: N
A18: 9 | B18: 2020-09-01 | D18: BHARTIARTL | E18: Buy$ | F18: 529 | G18: 490.00 | H18: =(551+487.5)/2 -> 519.25 | I18: 580-600 | J18: Loss of Rs.9.75/- | K18: =H18-F18 -> -9.75 | L18: =(F18*-0.45)/100 -> -2.38 | M18: =(K18+L18)/F18 -> -2.29% | N18: Unsuccessful | O18: 2020-09-14 | R18: H
A19: 10 | B19: 2020-09-02 | D19: NESTLEIND | E19: Buy | F19: 15900-16100 | G19: 15300 | I19: 17000-17500 | J19: Open | R19: H
A20: 11 | B20: 2020-09-02 | D20: MGL | E20: Buy<> | F20: 879.5 | G20: 825.00 | H20: 928.00 | I20: 975 | J20: Profit of Rs.48.5/- | K20: =H20-F20 -> 48.5 | L20: =(F20*-0.8)/100 -> -7.04 | M20: =(K20+L20)/F20 -> 4.71% | N20: Successful | O20: 2020-09-18 | R20: N
A21: 12 | B21: 2020-09-03 | D21: VINATIORGA | E21: Buy | F21: 1008 | G21: 950 | H21: 1,074.00 | I21: 1080-1100 | J21: Profit of Rs.66/- | K21: =H21-F21 -> 66 | L21: =(F21*-0.8)/100 -> -8.06 | M21: =(K21+L21)/F21 -> 5.75% | N21: Successful | O21: 2020-09-14 | R21: N
A22: 13 | B22: 2020-09-09 | D22: EXIDEIND | E22: Buy | F22: 156 | G22: 145.00 | H22: 165.00 | I22: 175 | J22: Profit of Rs.9/- | K22: 9 | L22: -1.25 | M22: 4.97% | N22: Successful | O22: 2020-09-16 | R22: N
A23: 14 | B23: 2020-09-14 | D23: JKLAKSHMI | E23: Buy | F23: 263.5 | G23: 248.00 | H23: 274.00 | I23: 290 | J23: Part Profit of Rs.10.50/- | K23: 10.5 | L23: -2.11 | M23: 3.18% | N23: Successful | O23: 2020-09-17 | R23: N
A24: 15 | B24: 2020-09-14 | D24: CESC | E24: Buy | F24: 636 | G24: 600 | H24: 680.00 | I24: 700 | J24: Profit of Rs.44/- | K24: =H24-F24 -> 44 | L24: =(F24*-0.8)/100 -> -5.09 | M24: =(K24+L24)/F24 -> 6.12% | N24: Successful | O24: 2020-09-15 | R24: N
A25: 16 | B25: 2020-09-14 | D25: GODFRYPHLP | E25: Buy | F25: 920-930 | G25: 870 | I25: 1020-1050 | J25: Open | R25: H
A26: 17 | B26: 2020-09-14 | D26: CHOLAFIN | E26: Buy | F26: 229.5 | G26: 217.00 | H26: 243.00 | I26: 250-255 | J26: Profit of Rs.13.5/- | K26: =H26-F26 -> 13.5 | L26: =(F26*-0.8)/100 -> -1.84 | M26: =(K26+L26)/F26 -> 5.08% | N26: Successful | O26: 2020-09-17 | R26: N
A27: 18 | B27: 2020-09-14 | D27: JKCEMENT | E27: Buy | F27: 1482.5 | G27: 1380 | H27: 1,543.00 | I27: 1650 | J27: Profit of Rs.60.5/- | K27: =H27-F27 -> 60.5 | L27: =(F27*-0.07)/100 -> -1.04 | M27: =(K27+L27)/F27 -> 4.01% | N27: Successful | O27: 2020-09-14 | R27: H
A28: 19 | B28: 2020-09-14 | D28: HAVELLS | E28: Buy | F28: 663 | G28: 630.00 | H28: 692.00 | I28: 730 | J28: Part Profit of Rs.29/- | K28: 29 | L28: =(F28*-0.8)/100 -> -5.30 | M28: 3.57% | N28: Successful | O28: 2020-09-28 | R28: N
A29: 20 | B29: 2020-09-14 | D29: GREAVESCOT | E29: Buy | F29: 79.25 | G29: 74.00 | H29: 74 | I29: 88-90 | J29: Loss of Rs.5.25/- | K29: =H29-F29 -> -5.25 | L29: =(F29*-0.8)/100 -> -0.63 | M29: =(K29+L29)/F29 -> -7.42% | N29: Unsuccessful | O29: 2020-09-22 | R29: H
A30: 21 | B30: 2020-09-14 | D30: GULFOILLUB | E30: Buy | F30: 642.5 | G30: 599 | H30: 673.00 | I30: 700-720 | J30: Profit of Rs.30.5/- | K30: =H30-F30 -> 30.5 | L30: =(F30*-0.7)/100 -> -4.50 | M30: =(K30+L30)/F30 -> 4.05% | N30: Successful | O30: 2020-09-16 | R30: N
A31: 22 | B31: 2020-09-14 | D31: INDIACEM | E31: Buy$ | F31: 124 | G31: 115.00 | H31: 122 | I31: 140-145 | J31: Loss of Rs.2/- | K31: -2 | L31: =(F31*-0.8)/100 -> -0.99 | M31: -2.41% | N31: Unsuccessful | O31: 2020-09-21 | R31: H
A32: 23 | B32: 2020-09-17 | D32: SIEMENS | E32: Buy | F32: 1242-1252 | G32: 1180 | I32: 1350-1380 | J32: Open | R32: N
A33: 24 | B33: 2020-09-17 | D33: MCX | E33: Buy | F33: 1655 | G33: 1520 | H33: 1,742.50 | I33: 1850-1900 | J33: Profit of Rs.87.5/- | K33: =H33-F33 -> 87.5 | L33: =(F33*-0.07)/100 -> -1.16 | M33: =(K33+L33)/F33 -> 5.22% | N33: Successful | O33: 2020-09-17 | R33: H
A34: 25 | B34: 2020-09-21 | D34: MCX | E34: Buy | F34: 1637.5 | G34: 1,520.00 | H34: 1555 | I34: 1850-1900 | J34: Loss of Rs.82.5/- | K34: =H34-F34 -> -82.5 | L34: =(F34*-0.8)/100 -> -13.10 | M34: -5.84% | N34: Unsuccessful | O34: 2020-09-22 | R34: H
A35: 26 | B35: 2020-09-22 | D35: AARTIIND | E35: Buy | F35: 1040-1060 | G35: 980 | I35: 1150 | J35: Open | R35: H
A36: 27 | B36: 2020-09-22 | D36: CEATLTD | E36: Buy | F36: 905 | G36: 848.00 | H36: 957.00 | I36: 1000 | J36: Profit of Rs.52/- | K36: =H36-F36 -> 52 | L36: =(F36*-0.8)/100 -> -7.24 | M36: =(K36+L36)/F36 -> 4.95% | N36: Successful | O36: 2020-09-29 | R36: N
A37: 28 | B37: 2020-09-23 | D37: ITC | E37: Buy | F37: 176.5-177.5 | G37: 166 | I37: 190-195 | J37: Open | R37: H
A38: 29 | B38: 2020-09-23 | D38: MCX | E38: Buy | F38: 1612.5 | G38: 1,490.00 | H38: 1,712.50 | I38: 1750-1800 | J38: Profit of Rs.100/- | K38: =H38-F38 -> 100 | L38: =(F38*-0.7)/100 -> -11.29 | M38: =(K38+L38)/F38 -> 5.50% | N38: Successful | O38: 2020-09-28 | R38: H
A39: 30 | B39: 2020-09-23 | D39: WHIRLPOOL | E39: Buy | F39: 2110 | G39: 1,980.00 | H39: 2,192.50 | I39: 2300-2350 | J39: Part Profit of Rs.82.50/- | K39: 82.5 | L39: =(F39*-0.7)/100 -> -14.77 | M39: =(K39+L39)/F39 -> 3.21% | N39: Successful | O39: 2020-09-29 | R39: H
A40: 31 | B40: 2020-09-23 | D40: CONCOR | E40: Buy | F40: 372.5 | G40: 350.00 | H40: 386.50 | I40: 405-415 | J40: Part Profit of Rs.14/- | K40: =H40-F40 -> 14 | L40: =(F40*-0.7)/100 -> -2.61 | M40: =(K40+L40)/F40 -> 3.06% | N40: Successful | O40: 2020-09-28 | R40: N
A41: 32 | B41: 2020-09-24 | D41: EXIDEIND | E41: Buy | F41: 154.5 | G41: 145 | H41: 164.50 | I41: 175 | J41: Profit of Rs.10/- | K41: =H41-F41 -> 10 | L41: =(F41*-0.7)/100 -> -1.08 | M41: =(K41+L41)/F41 -> 5.77% | N41: Successful | O41: 2020-09-25 | R41: N
A42: 33 | B42: 2020-09-25 | D42: MINDTREE | E42: Sell | F42: 1290 | G42: 1,355.00 | H42: 1355 | I42: 1200-1150 | J42: Loss of Rs.65/- | K42: =+F42-H42 -> -65 | L42: =(F42*-0.8)/100 -> -10.32 | M42: -5.84% | N42: Unsuccessful | O42: 2020-09-29 | R42: H
A43: 34 | B43: 2020-09-29 | D43: HINDALCO | E43: Buy | F43: 173-175 | G43: 163 | I43: 195 | J43: Open | R43: A
A44: 35 | B44: 2020-09-29 | D44: DALBHARAT | E44: Buy | F44: 780-790 | G44: 735 | I44: 850-870 | J44: Open | R44: N
A46: CLBS = Closing Basis ***
A47: Dividend adjusted <> | F47: Reinitiated $
A48: Part book {} | F48: Revised stoploss #
B50: Momentum Call
A51: Sr.no | B51: Date | D51: Company | E51: Rec | F51: Rec Price | G51: Stop Loss | H51: Call Closed At | I51: Target | J51: Remark | K51: Profit / Loss per Share/Lot | L51: All charges | M51: Net Gain / Loss % | N51: Status | O51: Closed Date
A52: 1 | B52: 2020-09-01 | D52: ICICIPRULI | E52: Sell | F52: 433 | G52: 443 | H52: 426.00 | I52: 415-410 | J52: Profit of Rs.7/- | K52: =+F52-H52 -> 7 | L52: =(F52*-0.07)/100 -> -0.30 | M52: =(K52+L52)/F52 -> 1.55% | N52: Successful | O52: 2020-09-01 | R52: H
A53: 2 | B53: 2020-09-01 | D53: HINDALCO | E53: Sell | F53: 191 | G53: 197 | H53: 195.00 | I53: 184-182 | J53: Loss of Rs. 4/- | K53: =F53-H53 -> -4 | L53: =(F53*-0.8)/100 -> -1.53 | M53: -2.89% | N53: Unsuccessful | O53: 2020-09-03 | R53: H
A54: 3 | B54: 2020-09-01 | D54: ULTRACEMCO | E54: Buy | F54: 3865 | G54: 3740 | H54: 3,930.00 | I54: 4050-4150 | J54: Profit of Rs.65/- | K54: =H54-F54 -> 65 | L54: =(F54*-0.07)/100 -> -2.71 | M54: =(K54+L54)/F54 -> 1.61% | N54: Successful | O54: 2020-09-01 | R54: H
A55: 4 | B55: 2020-09-02 | D55: CROMPTON | E55: Buy | F55: 267 | G55: 260 | H55: 260.00 | I55: 278 | J55: Loss of Rs. 7/- | K55: -7 | L55: =(F55*-0.8)/100 -> -2.14 | M55: -3.42% | N55: Unsuccessful | O55: 2020-09-03 | R55: N
A56: 5 | B56: 2020-09-02 | D56: RELAXO | E56: Buy | F56: 642 | G56: 625 | H56: 659.50 | I56: 670-680 | J56: Profit of Rs.17.5/- | K56: 17.5 | L56: =(F56*-0.8)/100 -> -5.14 | M56: 1.93% | N56: Successful | O56: 2020-09-04 | R56: H
A57: 6 | B57: 2020-09-02 | D57: LT | E57: Buy | F57: 948 | G57: 918 | H57: 969.50 | I57: 1000-1010 | J57: Profit of Rs.21.5/- | K57: =H57-F57 -> 21.5 | L57: =(F57*-0.8)/100 -> -7.58 | M57: =(K57+L57)/F57 -> 1.47% | N57: Successful | O57: 2020-09-03 | R57: H
A58: 7 | B58: 2020-09-04 | D58: TATASTEEL | E58: Sell | F58: 431.5 | G58: 446 | H58: 425.00 | I58: 415-410 | J58: Profit of Rs.6.5/- | K58: =+F58-H58 -> 6.5 | L58: =(F58*-0.07)/100 -> -0.30 | M58: 1.44% | N58: Successful | O58: 2020-09-04 | R58: H
A59: 8 | B59: 2020-09-04 | D59: HINDUNILVR | E59: Buy | F59: 2125 | G59: 2060 | H59: 2,135.00 | I59: 2220-2250 | J59: Profit of Rs.10/- | K59: =H59-F59 -> 10 | L59: =(F59*-0.8)/100 -> -17.00 | M59: -0.33% | N59: Neutral | O59: 2020-09-14 | R59: H
A60: 9 | B60: 2020-09-07 | D60: TATASTEEL | E60: Sell | F60: 425.5 | G60: 442 | H60: 418.50 | I60: 410-405 | J60: Profit of Rs.7/- | K60: =+F60-H60 -> 7 | L60: =(F60*-0.07)/100 -> -0.30 | M60: =(K60+L60)/F60 -> 1.58% | N60: Successful | O60: 2020-09-07 | R60: H
A61: 10 | B61: 2020-09-07 | D61: BHARATFORG | E61: Buy | F61: 491 | G61: 477 | H61: 477.00 | I61: 515-518 | J61: Loss of Rs. 14/- | K61: =H61-F61 -> -14 | L61: =(F61*-0.8)/100 -> -3.93 | M61: -3.65% | N61: Unsuccessful | O61: 2020-09-08 | R61: N
A62: 11 | B62: 2020-09-07 | D62: DLF | E62: Sell | F62: 155 | G62: 160 | H62: 152.00 | I62: 135 | J62: Profit of Rs.3/- | K62: =+F62-H62 -> 3 | L62: =(F62*-0.07)/100 -> -0.11 | M62: =(K62+L62)/F62 -> 1.87% | N62: Successful | O62: 2020-09-07 | R62: N
A63: 12 | B63: 2020-09-08 | D63: LT | E63: Buy | F63: 927 | G63: 900 | H63: 897.50 | I63: 980-1000 | J63: Loss of Rs. 35/- | K63: =H63-F63 -> -29.5 | L63: =(F63*-0.8)/100 -> -7.42 | M63: -3.98% | N63: Unsuccessful | O63: 2020-09-21 | R63: H
A64: 13 | B64: 2020-09-08 | D64: MINDTREE | E64: Buy | F64: 1205 | G64: 1170 | H64: 1,170.00 | I64: 1270 | J64: Loss of Rs. 35/- | K64: =H64-F64 -> -35 | L64: =(F64*-0.8)/100 -> -9.64 | M64: =(K64+L64)/F64 -> -3.70% | N64: Unsuccessful | O64: 2020-09-10 | R64: N
A65: 14 | B65: 2020-09-09 | D65: HCLTECH | E65: Buy | F65: 714.5 | G65: 695 | H65: 726.00 | I65: 740 | J65: Profit of Rs.11.5/- | K65: =H65-F65 -> 11.5 | L65: =(F65*-0.07)/100 -> -0.50 | M65: =(K65+L65)/F65 -> 1.54% | N65: Successful | O65: 2020-09-09 | R65: H
A66: 15 | B66: 2020-09-09 | D66: ULTRACEMCO | E66: Buy | F66: 3825 | G66: 3710 | H66: 3,911.00 | I66: 3970-4000 | J66: Profit of Rs.86/- | K66: 86 | L66: =(F66*-0.8)/100 -> -30.60 | M66: 1.45% | N66: Successful | O66: 2020-09-10 | R66: H
A67: 16 | B67: 2020-09-11 | D67: DLF | E67: Sell | F67: 156.5 | G67: 162 | H67: 153.75 | I67: 147 | J67: Profit of Rs.2.75/- | K67: =+F67-H67 -> 2.75 | L67: =(F67*-0.07)/100 -> -0.11 | M67: 1.69% | N67: Successful | O67: 2020-09-11 | R67: N
A68: 17 | B68: 2020-09-11 | D68: IGL | E68: Buy | F68: 393.5 | G68: 384 | H68: 399.50 | I68: 410-415 | J68: Profit of Rs.6/- | K68: =H68-F68 -> 6 | L68: =(F68*-0.07)/100 -> -0.28 | M68: =(K68+L68)/F68 -> 1.45% | N68: Successful | O68: 2020-09-11 | R68: H
A69: 18 | B69: 2020-09-11 | D69: BPCL | E69: Buy | F69: 424 | G69: 409 | H69: 410.00 | I69: 440-450 | J69: Loss of Rs. 14/- | K69: -14 | L69: =(F69*-0.8)/100 -> -3.39 | M69: -4.10% | N69: Unsuccessful | O69: 2020-09-21 | R69: H
A70: 19 | B70: 2020-09-11 | D70: LUPIN | E70: Buy | F70: 963.5 | G70: 938 | H70: 986.00 | I70: 1000-1020 | J70: Profit of Rs.22.5/- | K70: =H70-F70 -> 22.5 | L70: =(F70*-0.8)/100 -> -7.71 | M70: =(K70+L70)/F70 -> 1.54% | N70: Successful | O70: 2020-09-15 | R70: N
A71: 20 | B71: 2020-09-14 | D71: COFORGE | E71: Buy | F71: 2080 | G71: 2030 | H71: 2,122.50 | I71: 2180-2200 | J71: Profit of Rs.42.5/- | K71: =H71-F71 -> 42.5 | L71: =(F71*-0.07)/100 -> -1.46 | M71: =(K71+L71)/F71 -> 1.97% | N71: Successful | O71: 2020-09-14 | R71: H
A72: 21 | B72: 2020-09-15 | D72: CEATLTD | E72: Buy | F72: 940 | G72: 900 | H72: 957.00 | I72: 1000 | J72: Profit of Rs.17/- | K72: 17 | L72: =(F72*-0.07)/100 -> -0.66 | M72: 1.74% | N72: Successful | O72: 2020-09-15 | R72: N
A73: 22 | B73: 2020-09-15 | D73: UBL | E73: Buy | F73: 1055 | G73: 1025 | H73: 1,025.00 | I73: 1100-1120 | J73: Loss of Rs. 30/- | K73: -30 | L73: =(F73*-0.8)/100 -> -8.44 | M73: -3.64% | N73: Unsuccessful | O73: 2020-09-18 | R73: H
A74: 23 | B74: 2020-09-15 | D74: HINDPETRO | E74: Buy | F74: 198 | G74: 192.5 | H74: 192.50 | I74: 210 | J74: Loss of Rs. 5.5/- | K74: -5.5 | L74: =(F74*-0.8)/100 -> -1.58 | M74: -3.58% | N74: Unsuccessful | O74: 2020-09-21 | R74: N
A75: 24 | B75: 2020-09-15 | D75: FINPIPE | E75: Buy | F75: 536 | G75: 518 | H75: 538.00 | I75: 570-580 | J75: Profit of Rs.2/- | K75: =H75-F75 -> 2 | L75: =(F75*-0.8)/100 -> -4.29 | M75: =(K75+L75)/F75 -> -0.43% | N75: Neutral | O75: 2020-09-16 | R75: H
A76: 25 | B76: 2020-09-15 | D76: IEX | E76: Buy | F76: 201.5 | G76: 195 | H76: 205.25 | I76: 210-212 | J76: Profit of Rs.3.75/- | K76: =H76-F76 -> 3.75 | L76: =(F76*-0.07)/100 -> -0.14 | M76: =(K76+L76)/F76 -> 1.79% | N76: Successful | O76: 2020-09-15 | R76: H
A77: 26 | B77: 2020-09-15 | D77: CUMMINSIND | E77: Buy | F77: 479 | G77: 468 | H77: 490.50 | I77: 500 | J77: Profit of Rs.11.5/- | K77: =H77-F77 -> 11.5 | L77: =(F77*-0.07)/100 -> -0.34 | M77: =(K77+L77)/F77 -> 2.33% | N77: Successful | O77: 2020-09-15 | R77: N
A78: 27 | B78: 2020-09-15 | D78: CENTURYTEX | E78: Buy | F78: 361 | G78: 350 | H78: 367.00 | I78: 380 | J78: Profit of Rs.6/- | K78: =H78-F78 -> 6 | L78: =(F78*-0.07)/100 -> -0.25 | M78: =(K78+L78)/F78 -> 1.59% | N78: Successful | O78: 2020-09-15 | R78: N
A79: 28 | B79: 2020-09-16 | D79: BEML | E79: Buy | F79: 651 | G79: 630 | H79: 630.00 | I79: 690 | J79: Loss of Rs. 21/- | K79: -21 | L79: =(F79*-0.8)/100 -> -5.21 | M79: -4.03% | N79: Unsuccessful | O79: 2020-09-17 | R79: N
A80: 29 | B80: 2020-09-16 | D80: DLF | E80: Sell | F80: 156 | G80: 160 | H80: 159.50 | I80: 145 | J80: Loss of Rs. 3.5/- | K80: =F80-H80 -> -3.5 | L80: =(F80*-0.07)/100 -> -0.11 | M80: =(K80+L80)/F80 -> -2.31% | N80: Unsuccessful | O80: 2020-09-16 | R80: N
A81: 30 | B81: 2020-09-16 | D81: JYOTHYLAB | E81: Buy | F81: 153.5 | G81: 149 | H81: 149.00 | I81: 160-162 | J81: Loss of Rs. 4.5/- | K81: =H81-F81 -> -4.5 | L81: =(F81*-0.8)/100 -> -1.23 | M81: -3.73% | N81: Unsuccessful | O81: 2020-09-21 | R81: H
A82: 31 | B82: 2020-09-16 | D82: AMBUJACEM | E82: Sell | F82: 217 | G82: 223 | H82: 211.25 | I82: 210-208 | J82: Profit of Rs.5.75/- | K82: =+F82-H82 -> 5.75 | L82: -1.74 | M82: 1.85% | N82: Successful | O82: 2020-09-21 | R82: H
A83: 32 | B83: 2020-09-16 | D83: BAJAJCON | E83: Buy | F83: 186 | G83: 181 | H83: 191.50 | I83: 196 | J83: Profit of Rs.5.50/- | K83: =H83-F83 -> 5.5 | L83: -1.49 | M83: =(K83+L83)/F83 -> 2.16% | N83: Successful | O83: 2020-09-17 | R83: N
A84: 33 | B84: 2020-09-18 | D84: ACC | E84: Sell | F84: 1415 | G84: 1455 | H84: 1,377.50 | I84: 1350-1330 | J84: Profit of Rs.37.5/- | K84: =+F84-H84 -> 37.5 | L84: -11.32 | M84: 1.85% | N84: Successful | O84: 2020-09-21 | R84: H
A85: 34 | B85: 2020-09-18 | D85: TORNTPHARM | E85: Buy | F85: 2930 | G85: 2870 | H85: 2,860.00 | I85: 3050 | J85: Loss of Rs. 70/- | K85: =H85-F85 -> -70 | L85: -23.44 | M85: =(K85+L85)/F85 -> -3.19% | N85: Unsuccessful | O85: 2020-09-21 | R85: H
A86: 35 | B86: 2020-09-23 | D86: AJANTPHARM | E86: Buy | F86: 1570 | G86: 1535 | H86: 1,612.50 | I86: 1620-1640 | J86: Profit of Rs.42.50/- | K86: 42.5 | L86: -12.56 | M86: 1.91% | N86: Successful | O86: 2020-09-28 | R86: H
A87: 36 | B87: 2020-09-23 | D87: CESC | E87: Buy | F87: 634 | G87: 618 | H87: 650.00 | I87: 670 | J87: Profit of Rs.16/- | K87: =H87-F87 -> 16 | L87: =(F87*-0.07)/100 -> -0.44 | M87: =(K87+L87)/F87 -> 2.45% | N87: Successful | O87: 2020-09-23 | R87: N
A88: 37 | B88: 2020-09-24 | D88: CROMPTON | E88: Buy | F88: 267 | G88: 260 | H88: 274.00 | I88: 280 | J88: Profit of Rs.7/- | K88: =H88-F88 -> 7 | L88: =(F88*-0.07)/100 -> -0.19 | M88: =(K88+L88)/F88 -> 2.55% | N88: Successful | O88: 2020-09-24 | R88: N
A89: 38 | B89: 2020-09-25 | D89: RAYMOND | E89: Buy | F89: 260.5 | G89: 254.5 | H89: 267.50 | I89: 272 | J89: Profit of Rs.7/- | K89: 7 | L89: =(F89*-0.8)/100 -> -2.08 | M89: 1.89% | N89: Successful | O89: 2020-09-28 | R89: N
A90: 39 | B90: 2020-09-25 | D90: SRF | E90: Sell | F90: 4095 | G90: 4210 | H90: 4,245.00 | I90: 3900 | J90: Loss of Rs. 150/- | K90: =F90-H90 -> -150 | L90: =(F90*-0.8)/100 -> -32.76 | M90: -4.46% | N90: Unsuccessful | O90: 2020-09-29 | R90: H
A91: 40 | B91: 2020-09-25 | D91: RELAXO | E91: Buy | F91: 647.5 | G91: 630 | H91: 663.00 | I91: 680 | J91: Profit of Rs.15.50/- | K91: =H91-F91 -> 15.5 | L91: =(F91*-0.8)/100 -> -5.18 | M91: =(K91+L91)/F91 -> 1.59% | N91: Successful | O91: 2020-09-28 | R91: H
A92: 41 | B92: 2020-09-25 | D92: DLF | E92: Sell | F92: 151.5 | G92: 156 | H92: 156.00 | I92: 145 | J92: Loss of Rs. 4.5/- | K92: =F92-H92 -> -4.5 | L92: =(F92*-0.8)/100 -> -1.21 | M92: -3.77% | N92: Unsuccessful | O92: 2020-09-28 | R92: H
A93: 42 | B93: 2020-09-28 | D93: SBILIFE | E93: Buy | F93: 805.5 | G93: 775 | H93: 825.00 | I93: 850-860 | J93: Profit of Rs.19.50/- | K93: =H93-F93 -> 19.5 | L93: =(F93*-0.8)/100 -> -6.44 | M93: =(K93+L93)/F93 -> 1.62% | N93: Successful | O93: 2020-09-29 | R93: N
A94: 43 | B94: 2020-09-28 | D94: CROMPTON | E94: Buy | F94: 260 | G94: 253 | H94: 266.00 | I94: 275 | J94: Profit of Rs.6/- | K94: 6 | L94: -2.08 | M94: 1.51% | N94: Successful | O94: 2020-09-29 | R94: N
A95: 44 | B95: 2020-09-28 | D95: CESC | E95: Buy | F95: 621-625 | G95: 602 | I95: 650-660 | J95: Open | R95: N
A96: 45 | B96: 2020-09-30 | D96: NATCOPHARM | E96: Buy | F96: 965-970 | G96: 940 | I96: 1025 | J96: Open
A97: 46 | B97: 2020-09-30 | D97: SBILIFE | E97: Buy | F97: 800-805 | G97: 770 | I97: 850-860 | J97: Open
A104: CLBS = Closing Basis *** | H104: *
A105: Dividend adjusted <> | F105: Reinitiated $
F106: Revised stoploss #
A108: Master Trade High Risk
A109: Sr.no | B109: Date | D109: Company | E109: Rec | F109: Rec Price | G109: Stop Loss | H109: Call Closed At | I109: Target | J109: Remark | K109: Profit / Loss per share | L109: All charges | M109: Gain / Loss per Lot | N109: Lot | O109: Status | P109: Closed Date
A110: 1 | B110: 2020-08-28 | D110: TCS SEP FUT | E110: Buy | F110: 2272 | G110: 2230 | H110: 2298.5 | I110: 2450 | J110: Profit of Rs.26.5/- | K110: =H110-F110 -> 26.5 | L110: =(H110*N110)*0.07% -> 482.69 | M110: =(K110*N110)-L110 -> 7467.32 | N110: 300 | O110: Successful | P110: 2020-09-03 | R110: N
A111: 2 | B111: 2020-09-01 | D111: NIFTY SEPT FUT | E111: Sell | F111: 11510 | G111: 11610 | H111: 11420 | I111: 11300-11250 | J111: Profit of Rs.90/- | K111: =F111-H111 -> 90 | L111: =(H111*N111)*0.035% -> 299.78 | M111: 6450.225 | N111: 75 | O111: Successful | P111: 2020-09-01 | R111: H
A112: 3 | B112: 2020-09-01 | D112: NIFTY SEPT FUT | E112: Sell | F112: 11525 | G112: 11650 | H112: 11445 | I112: 11300-11250 | J112: Profit of Rs.80/- | K112: 80 | L112: =(H112*N112)*0.035% -> 300.43 | M112: 5699.57 | N112: 75 | O112: Successful | P112: 2020-09-01 | R112: H
A113: 4 | B113: 2020-09-02 | D113: NIFTY SEPT FUT | E113: Sell | F113: 11525 | G113: 11650 | H113: 11455 | I113: 11300-11250 | J113: Profit of Rs.70/- | K113: 70 | L113: =(H113*N113)*0.035% -> 300.69 | M113: 4949.31 | N113: 75 | O113: Successful | P113: 2020-09-02 | R113: H
A114: 5 | B114: 2020-09-03 | D114: NIFTY SEPT FUT | E114: Sell | F114: 11590 | G114: 11710 | H114: 11520 | I114: 11400 | J114: Profit of Rs.70/- | K114: 70 | L114: =(H114*N114)*0.035% -> 302.40 | M114: 4947.60 | N114: 75 | O114: Successful | P114: 2020-09-03 | R114: H
A115: 6 | B115: 2020-09-08 | D115: NIFTY SEPT FUT | E115: Sell | F115: 11415 | G115: 11540 | H115: 11355 | I115: 11300-11250 | J115: Profit of Rs.60/- | K115: 60 | L115: =(H115*N115)*0.035% -> 298.07 | M115: 4201.93 | N115: 75 | O115: Successful | P115: 2020-09-08 | R115: H
A116: 7 | B116: 2020-09-10 | D116: NIFTY SEPT FUT | E116: Sell | F116: 11410 | G116: 11510 | H116: 11525 | I116: 11200 | J116: Loss of Rs.115/- | K116: -115 | L116: =(H116*N116)*0.07% -> 605.06 | M116: =(K116*N116)-L116 -> -9230.06 | N116: 75 | O116: Unsuccessful | P116: 2020-09-14 | R116: N
A117: 8 | B117: 2020-09-11 | D117: AMBUJACEM SEPT FUT | E117: Sell | F117: 213.75 | G117: 218 | H117: 211.75 | I117: 205 | J117: Profit of Rs.2/- | K117: 2 | L117: =(H117*N117)*0.035% -> 222.34 | M117: =(K117*N117)-L117 -> 5777.66 | N117: 3000 | O117: Successful | P117: 2020-09-12 | R117: H
A118: 9 | B118: 2020-09-15 | D118: NIFTY SEPT FUT | E118: Sell | F118: 11500 | G118: 11610 | H118: 11610 | I118: 11300 | J118: Loss of Rs.110/- | K118: =F118-H118 -> -110 | L118: =(H118*N118)*0.07% -> 609.53 | M118: -8859.53 | N118: 75 | O118: Unsuccessful | P118: 2020-09-16 | R118: H
A119: 10 | B119: 2020-09-16 | D119: BANKNIFTY SEPT FUT | E119: Sell | F119: 22505 | G119: 22810 | H119: 22380 | I119: 22000-21900 | J119: Profit of Rs.125/- | K119: =F119-H119 -> 125 | L119: =(H119*N119)*0.035% -> 156.66 | M119: =(K119*N119)-L119 -> 2343.34 | N119: 20 | O119: Successful | P119: 2020-09-16 | R119: H
A120: 11 | B120: 2020-09-18 | D120: UBL SEPT FUT | E120: Buy | F120: 1043.5 | G120: 1025 | H120: 1025 | I120: 1080 | J120: Loss of Rs.18.5/- | K120: =H120-F120 -> -18.5 | L120: =(H120*N120)*0.035% -> 251.13 | M120: -13201.13 | N120: 700 | O120: Unsuccessful | P120: 2020-09-18 | R120: N
A121: 12 | B121: 2020-09-18 | D121: NIFTY SEPT FUT | E121: Sell | F121: 11560 | G121: 11650 | H121: 11475 | I121: 11350 | J121: Profit of Rs.85/- | K121: 85 | L121: =(H121*N121)*0.035% -> 301.219 | M121: =(K121*N121)-L121 -> 6073.78 | N121: 75 | O121: Successful | P121: 2020-09-18 | R121: H
A122: 13 | B122: 2020-09-18 | D122: APOLLOHOSP SEPT FUT | E122: Buy | F122: 1827.5 | G122: 1795 | H122: 1850 | I122: 1890 | J122: Profit of Rs.22.5/- | K122: =H122-F122 -> 22.5 | L122: =(H122*N122)*0.07% -> 647.50 | M122: 10602.50 | N122: 500 | O122: Successful | P122: 2020-09-21 | R122: N
A123: 14 | B123: 2020-09-21 | D123: CUMMINSIND SEPT FUT | E123: Buy | F123: 475.5 | G123: 462 | H123: 465 | I123: 490-500 | J123: Loss of Rs.10.5/- | K123: =H123-F123 -> -10.5 | L123: =(H123*N123)*0.035% -> 195.30 | M123: -12795.30 | N123: 1200 | O123: Unsuccessful | P123: 2020-09-21 | R123: N
A124: 15 | B124: 2020-09-21 | D124: CHOLAFIN SEPT FUT | E124: Buy | F124: 232 | G124: 225.5 | H124: 225.5 | I124: 242 | J124: Loss of Rs.6.5/- | K124: =H124-F124 -> -6.5 | L124: =(H124*N124)*0.07% -> 394.63 | M124: -16644.63 | N124: 2500 | O124: Unsuccessful | P124: 2020-09-22 | R124: N
A125: 16 | B125: 2020-09-21 | D125: SBIN SEPT FUT | E125: Sell | F125: 189.5 | G125: 192.5 | H125: 187 | I125: 185-184 | J125: Profit of Rs.2.5/- | K125: =F125-H125 -> 2.5 | L125: =(H125*N125)*0.035% -> 196.35 | M125: =(K125*N125)-L125 -> 7303.65 | N125: 3000 | O125: Successful | P125: 2020-09-21 | R125: H
A126: 17 | B126: 2020-09-22 | D126: KOTAKBANK SEPT FUT | E126: Sell | F126: 1285 | G126: 1315 | H126: 1267.5 | I126: 1240-1220 | J126: Profit of Rs.17.5/- | K126: =F126-H126 -> 17.5 | L126: =(H126*N126)*0.035% -> 177.45 | M126: =(K126*N126)-L126 -> 6822.55 | N126: 400 | O126: Successful | P126: 2020-09-22 | R126: H
A127: 18 | B127: 2020-09-22 | D127: ICICIBANK OCT FUT | E127: Sell | F127: 353 | G127: 362 | H127: 347.25 | I127: 332 | J127: Profit of Rs.5.75/- | K127: 5.75 | L127: =(H127*N127)*0.07% -> 334.23 | M127: 7572.02 | N127: 1375 | O127: Successful | P127: 2020-09-23 | R127: N
A128: 19 | B128: 2020-09-22 | D128: HDFC OCT FUT | E128: Sell | F128: 1692.5 | G128: 1721 | H128: 1673 | I128: 1650 | J128: Profit of Rs.19.5/- | K128: 19.5 | L128: =(H128*N128)*0.07% -> 351.33 | M128: 5498.67 | N128: 300 | O128: Successful | P128: 2020-09-23 | R128: H
A129: 20 | B129: 2020-09-23 | D129: NIFTY OCT FUT | E129: Buy | F129: 11055 | G129: 10945 | H129: 11120 | I129: 11250 | J129: Profit of Rs.65/- | K129: =H129-F129 -> 65 | L129: =(H129*N129)*0.035% -> 291.90 | M129: 4583.10 | N129: 75 | O129: Successful | P129: 2020-09-23 | R129: H
A130: 21 | B130: 2020-09-23 | D130: HDFCBANK OCT FUT | E130: Buy | F130: 1035 | G130: 1015 | H130: 1046 | I130: 1070 | J130: Profit of Rs.11/- | K130: =H130-F130 -> 11 | L130: =(H130*N130)*0.035% -> 201.36 | M130: =(K130*N130)-L130 -> 5848.65 | N130: 550 | O130: Successful | P130: 2020-09-23 | R130: H
A131: 22 | B131: 2020-09-23 | D131: HINDUNILVR OCT FUT | E131: Buy | F131: 2046 | G131: 1997 | H131: 2071 | I131: 2120-2140 | J131: Profit of Rs.25/- | K131: =H131-F131 -> 25 | L131: =(H131*N131)*0.07% -> 434.91 | M131: 7065.09 | N131: 300 | O131: Successful | P131: 2020-09-24 | R131: H
A132: 23 | B132: 2020-09-24 | D132: NIFTY OCT FUT | E132: Buy | F132: 11005 | G132: 10900 | H132: 10900 | I132: 11200 | J132: Loss of Rs.105/- | K132: =H132-F132 -> -105 | L132: =(H132*N132)*0.035% -> 286.13 | M132: =(K132*N132)-L132 -> -8161.13 | N132: 75 | O132: Unsuccessful | P132: 2020-09-24 | R132: H
A133: 24 | B133: 2020-09-24 | D133: HDFCBANK OCT FUT | E133: Buy | F133: 1038 | G133: 1015 | H133: 1048 | I133: 1070 | J133: Profit of Rs.10/- | K133: =H133-F133 -> 10 | L133: =(H133*N133)*0.07% -> 403.48 | M133: 5096.52 | N133: 550 | O133: Successful | P133: 2020-09-25 | R133: H
A134: 25 | B134: 2020-09-24 | D134: LUPIN OCT FUT | E134: Buy | F134: 1016 | G134: 999 | H134: 999 | I134: 1040 | J134: Loss of Rs.17/- | K134: =F134-H134 -> 17 | L134: =(H134*N134)*0.035% -> 297.20 | M134: =(K134*N134)-L134 -> 14152.80 | N134: 850 | O134: Unsuccessful | P134: 2020-09-24 | R134: N
A135: 26 | B135: 2020-09-25 | D135: ASIANPAINTS OCT FUT | E135: Buy | F135: 1917 | G135: 1878 | H135: 1942 | I135: 1980 | J135: Profit of Rs.25/- | K135: =H135-F135 -> 25 | L135: =(H135*N135)*0.035% -> 203.91 | M135: 7296.09 | N135: 300 | O135: Successful | P135: 2020-09-25 | R135: H
A136: 27 | B136: 2020-09-25 | D136: NIFTY OCT FUT | E136: Sell | F136: 11000 | G136: 11120 | H136: 11125 | I136: 10800 | J136: Loss of Rs.125/- | K136: =F136-H136 -> -125 | L136: =(H136*N136)*0.07% -> 584.06 | M136: -9959.06 | N136: 75 | O136: Unsuccessful | P136: 2020-09-28 | R136: H
A137: 28 | B137: 2020-09-28 | D137: LUPIN OCT FUT | E137: Buy | F137: 1011.5 | G137: 995 | H137: 1021 | I137: 1030-1040 | J137: Profit of Rs.9.50/- | K137: =H137-F137 -> 9.5 | L137: 607.50 | M137: 7467.51 | N137: 850 | O137: Successful | P137: 2020-09-30 | R137: N
A138: 29 | B138: 2020-09-29 | D138: GRASIM OCT FUT | E138: Buy | F138: 740.5 | G138: 728 | H138: 729 | I138: 760 | J138: Loss of Rs.11.5/- | K138: =F138-H138 -> 11.5 | L138: =(H138*N138)*0.035% -> 242.39 | M138: =(K138*N138)-L138 -> 10682.61 | N138: 950 | O138: Unsuccessful | P138: 2020-09-29 | R138: N
A142: Master Trade Medium Risk
A143: Sr.no | B143: Date | D143: Company | E143: Rec | F143: Rec Price | G143: Stop Loss | H143: Call Closed At | I143: Target | J143: Remark | K143: Profit/ Loss per lot | L143: All charges | M143: Gain / Loss per Lot | N143: Lot | O143: Status | P143: Closed Date
A144: 1 | B144: 2020-09-01 | D144: NIFTY 11400 PE 03-SEP | E144: Buy | F144: 72 | G144: 35 | H144: 87 | I144: 150 | J144: Profit of Rs.15/- | K144: =H144-F144 -> 15 | L144: 100 | M144: =(K144*N144)-100 -> 1025 | N144: 75 | O144: Successful | P144: 2020-09-01 | R144: N
A145: 2 | B145: 2020-09-01 | D145: NIFTY 11400 PE 03-SEP | E145: Buy | F145: 47.50 | G145: 0 | H145: 63 | I145: 120 | J145: Profit of Rs.15.50/- | K145: 15.5 | L145: 100 | M145: 1062.5 | N145: 75 | O145: Successful | P145: 2020-09-01 | R145: N
A146: 3 | B146: 2020-09-02 | D146: NIFTY 11450 PE 03-SEP | E146: Buy | F146: 45 | H146: 57 | I146: 90 | J146: Profit of Rs.12/- | K146: =H146-F146 -> 12 | L146: 100 | M146: =(K146*N146)-100 -> 800 | N146: 75 | O146: Successful | P146: 2020-09-02 | R146: N
A147: 4 | B147: 2020-09-02 | D147: NIFTY 11500 PE 03-SEP | E147: Buy | F147: 37.5 | H147: 0 | I147: 80 | J147: Loss of Rs.37.5/- | K147: -37.5 | L147: 100 | M147: -2912.5 | N147: 75 | O147: Unsuccessful | P147: 2020-09-03 | R147: N
A148: 5 | B148: 2020-09-02 | D148: TCS 2300 CE SEP | E148: Buy | F148: 51 | G148: 35 | H148: 60 | I148: 75-85 | J148: Profit of Rs.9/- | K148: =H148-F148 -> 9 | L148: 100 | M148: =(K148*N148)-100 -> 2600 | N148: 300 | O148: Successful | P148: 2020-09-03 | R148: H
A149: 6 | B149: 2020-09-03 | D149: BHARTIARTL 570 CE | E149: Buy | F149: 10.75 | G149: 7.5 | H149: 12.75 | I149: 15-16 | J149: Profit of Rs.2/- | K149: 2 | L149: 100 | M149: 3602 | N149: 1851 | O149: Successful | P149: 2020-09-03 | R149: H
A150: 7 | B150: 2020-09-03 | D150: BHARTIARTL 570 CE | E150: Buy | F150: 10.8 | G150: 7.5 | H150: 7.5 | I150: 15-16 | J150: Loss of Rs.3.3/- | K150: =H150-F150 -> -3.3 | L150: 100 | M150: =(K150*N150)-100 -> -6208.3 | N150: 1851 | O150: Unsuccessful | P150: 2020-09-04 | R150: H
A151: 8 | B151: 2020-09-04 | D151: INFY 940 CE SEP | E151: Buy | F151: 20.5 | G151: 15.5 | H151: 22.4 | I151: 30 | J151: Profit of Rs.1.9/- | K151: 1.9 | L151: 100 | M151: 2180 | N151: 1200 | O151: Successful | P151: 2020-09-04 | R151: N
A152: 9 | B152: 2020-09-04 | D152: TCS 2300 CE SEP | E152: Buy | F152: 55 | G152: 37 | H152: 62 | I152: 75-85 | J152: Profit of Rs.7/- | K152: =H152-F152 -> 7 | L152: 100 | M152: =(K152*N152)-100 -> 2000 | N152: 300 | O152: Successful | P152: 2020-09-04 | R152: H
A153: 10 | B153: 2020-09-04 | D153: MARUTI 7000 PE SEP | E153: Buy | F153: 142.5 | G153: 95 | H153: 95 | I153: 200-250 | J153: Loss of Rs.47.5/- | K153: -47.5 | L153: 100 | M153: -4850 | N153: 100 | O153: Unsuccessful | P153: 2020-09-04 | R153: H
A154: 11 | B154: 2020-09-04 | D154: NIFTY 11200 PE 10-SEP | E154: Buy | F154: 46 | G154: 15 | H154: 61.5 | I154: 80-100 | J154: Profit of Rs.15.5/- | K154: =H154-F154 -> 15.5 | L154: 100 | M154: =(K154*N154)-100 -> 1062.5 | N154: 75 | O154: Successful | P154: 2020-09-04 | R154: H
A155: 12 | B155: 2020-09-07 | D155: NIFTY 11200 PE 10-SEP | E155: Buy | F155: 61.5 | G155: 25 | H155: 81 | I155: 100-120 | J155: Profit of Rs.19.5/- | K155: =H155-F155 -> 19.5 | L155: 100 | M155: =(K155*N155)-100 -> 1362.5 | N155: 75 | O155: Successful | P155: 2020-09-07 | R155: H
A156: 13 | B156: 2020-09-07 | D156: NIFTY 11200 PE 10-SEP | E156: Buy | F156: 60 | G156: 25 | H156: 30 | I156: 100-120 | J156: Loss of Rs.30/- | K156: -30 | L156: 100 | M156: -2350 | N156: 75 | O156: Unsuccessful | P156: 2020-09-08 | R156: H
A157: 14 | B157: 2020-09-08 | D157: NIFTY 11300 PE 10-SEP | E157: Buy | F157: 58 | G157: 18 | H157: 75 | I157: 100-120 | J157: Profit of Rs.17/- | K157: =H157-F157 -> 17 | L157: 100 | M157: =(K157*N157)-100 -> 1175 | N157: 75 | O157: Successful | P157: 2020-09-08 | R157: H
A158: 15 | B158: 2020-09-09 | D158: TCS 2380 CE SEP | E158: Buy | F158: 39 | G158: 23 | H158: 48 | I158: 70 | J158: Profit of Rs.9/- | K158: 9 | L158: 100 | M158: 2600 | N158: 300 | O158: Successful | P158: 2020-09-11 | R158: N
A159: 16 | B159: 2020-09-09 | D159: NIFTY 11000 PE 17-SEP | E159: Buy | F159: 60 | G159: 18 | H159: 18 | I159: 120-140 | J159: Loss of Rs.42/- | K159: =H159-F159 -> -42 | L159: 100 | M159: =(K159*N159)-100 -> -3250 | N159: 75 | O159: Unsuccessful | P159: 2020-09-11 | R159: H
A160: 17 | B160: 2020-09-11 | D160: NIFTY 11350 PE 17-SEP | E160: Buy | F160: 60 | G160: 18 | H160: 76 | I160: 120-140 | J160: Profit of Rs.16/- | K160: =H160-F160 -> 16 | L160: 100 | M160: =(K160*N160)-100 -> 1100 | N160: 75 | O160: Successful | P160: 2020-09-11 | R160: H
A161: 18 | B161: 2020-09-11 | D161: NIFTY 11350 PE 17-SEP | E161: Buy | F161: 59 | G161: 18 | H161: 71.5 | I161: 120-140 | J161: Profit of Rs.12.5/- | K161: =H161-F161 -> 12.5 | L161: 100 | M161: =(K161*N161)-100 -> 837.5 | N161: 75 | O161: Successful | P161: 2020-09-14 | R161: H
A162: 19 | B162: 2020-09-16 | D162: NIFTY 11500 PE 17-SEP | E162: Buy | F162: 42.5 | G162: 15 | H162: 15 | I162: 100 | J162: Loss of Rs.27.5/- | K162: -27.5 | L162: 100 | M162: -2162.5 | N162: 75 | O162: Unsuccessful | P162: 2020-09-16 | R162: N
A163: 20 | B163: 2020-09-16 | D163: DLF 150 PE SEP | E163: Buy | F163: 2.9 | G163: 1.4 | H163: 1.7 | I163: 5.0-6.0 | J163: Loss of Rs.1.2/- | K163: =H163-F163 -> -1.2 | L163: 100 | M163: =(K163*N163)-100 -> -4060 | N163: 3300 | O163: Unsuccessful | P163: 2020-09-16 | R163: H
A164: 21 | B164: 2020-09-18 | D164: NIFTY 11400 PE 24-SEP | E164: Buy | F164: 56 | H164: 70.5 | I164: 120-140 | J164: Profit of Rs.14.5/- | K164: 14.5 | L164: 100 | M164: 987.5 | N164: 75 | O164: Successful | P164: 2020-09-21 | R164: H
A165: 22 | B165: 2020-09-22 | D165: NIFTY 11000 PE 24-SEP | E165: Buy | F165: 36.5 | H165: 55.5 | I165: 80 | J165: Profit of Rs.19/- | K165: =H165-F165 -> 19 | L165: 100 | M165: =(K165*N165)-100 -> 1325 | N165: 75 | O165: Successful | P165: 2020-09-22 | R165: N
A166: 23 | B166: 2020-09-22 | D166: NIFTY 11050 PE 24-SEP | E166: Buy | F166: 44.5 | H166: 57 | I166: 80 | J166: Profit of Rs.12.5/- | K166: =H166-F166 -> 12.5 | L166: 100 | M166: =(K166*N166)-100 -> 837.5 | N166: 75 | O166: Successful | P166: 2020-09-22 | R166: N
A167: 24 | B167: 2020-09-22 | D167: NIFTY 11100 PE 24-SEP | E167: Buy | F167: 48.5 | H167: 62 | I167: 95 | J167: Profit of Rs.13.5/- | K167: 13.5 | L167: 100 | M167: 912.5 | N167: 75 | O167: Successful | P167: 2020-09-22 | R167: N
A168: 25 | B168: 2020-09-22 | D168: BANKNIFTY 21200 PE 24-SEP | E168: Buy | F168: 205 | H168: 252.5 | I168: 450 | J168: Profit of Rs.47.5/- | K168: =H168-F168 -> 47.5 | L168: 100 | M168: =(K168*N168)-100 -> 1087.5 | N168: 25 | O168: Successful | P168: 2020-09-22 | R168: H
A169: 26 | B169: 2020-09-22 | D169: BANKNIFTY 21200 PE 24-SEP | E169: Buy | F169: 205 | H169: 252.5 | I169: 450 | J169: Profit of Rs.47.5/- | K169: =H169-F169 -> 47.5 | L169: 100 | M169: =(K169*N169)-100 -> 1087.5 | N169: 25 | O169: Successful | P169: 2020-09-22 | R169: H
A170: 27 | B170: 2020-09-23 | D170: NIFTY 11200 PE 24-SEP | E170: Buy | F170: 46 | H170: 59.5 | I170: 80 | J170: Profit of Rs.13.5/- | K170: 13.5 | L170: 100 | M170: 912.5 | N170: 75 | O170: Successful | P170: 2020-09-23 | R170: H
A171: 28 | B171: 2020-09-23 | D171: NIFTY 11200 PE 24-SEP | E171: Buy | F171: 45.5 | H171: 65 | I171: 80 | J171: Profit of Rs.19.5/- | K171: 19.5 | L171: 100 | M171: 1362.5 | N171: 75 | O171: Successful | P171: 2020-09-23 | R171: H
A172: 29 | B172: 2020-09-23 | D172: BANKNIFTY 21200 PE 24-SEP | E172: Buy | F172: 180 | H172: 227.5 | I172: 450-500 | J172: Profit of Rs.47.5/- | K172: 47.5 | L172: 100 | M172: 1087.5 | N172: 25 | O172: Successful | P172: 2020-09-23 | R172: N
A173: 30 | B173: 2020-09-23 | D173: NIFTY 11200 CE 24-SEP | E173: Buy | F173: 39 | H173: 0 | I173: 80 | J173: Loss of Rs.39/- | K173: -39 | L173: 100 | M173: -3025 | N173: 75 | O173: Unsuccessful | P173: 2020-09-24 | R173: H
A174: 31 | B174: 2020-09-23 | D174: BANKNIFTY 21200 CE 24-SEP | E174: Buy | F174: 170 | H174: 0 | I174: 400 | J174: Loss of Rs.170/- | K174: =H174-F174 -> -170 | L174: 100 | M174: =(K174*N174)-100 -> -4350 | N174: 25 | O174: Unsuccessful | P174: 2020-09-24 | R174: N
A175: 32 | B175: 2020-09-24 | D175: NIFTY 11100 CE 1-Oct | E175: Buy | F175: 50 | G175: 18 | H175: 61 | I175: 100-120 | J175: Profit of Rs.11/- | K175: 11 | L175: 100 | M175: 725 | N175: 75 | O175: Successful | P175: 2020-09-25 | R175: H
A176: 33 | B176: 2020-09-25 | D176: NIFTY 10900 PE 01-Oct | E176: Buy | F176: 82 | G176: 45 | H176: 95 | I176: 150 | J176: Profit of Rs.13/- | K176: =H176-F176 -> 13 | L176: 100 | M176: =(K176*N176)-100 -> 875 | N176: 75 | O176: Successful | P176: 2020-09-25 | R176: N
A177: 34 | B177: 2020-09-25 | D177: NIFTY 11000 PE 01-Oct | E177: Buy | F177: 86 | G177: 45 | H177: 92 | I177: 150 | J177: Profit of Rs.6/- | K177: 6 | L177: 100 | M177: 350 | N177: 75 | O177: Successful | P177: 2020-09-25 | R177: N
A178: 35 | B178: 2020-09-25 | D178: BANKNIFTY 21000 PE 01-Oct | E178: Buy | F178: 340 | G178: 190 | H178: 395 | I178: 600 | J178: Profit of Rs.55/- | K178: 55 | L178: 100 | M178: 1275 | N178: 25 | O178: Successful | P178: 2020-09-25 | R178: H
A179: 36 | B179: 2020-09-25 | D179: BANKNIFTY 21000 PE 01-Oct | E179: Buy | F179: 330 | G179: 180 | H179: 380 | I179: 600 | J179: Profit of Rs.50/- | K179: 50 | L179: 100 | M179: 1150 | N179: 25 | O179: Successful | P179: 2020-09-25 | R179: H
A180: 37 | B180: 2020-09-29 | D180: NIFTY 11200 PE 01-Oct | E180: Buy | F180: 41.5 | H180: 57 | I180: 95 | J180: Profit of Rs.15.50/- | K180: =H180-F180 -> 15.5 | L180: 100 | M180: =(K180*N180)-100 -> 1062.5 | N180: 75 | O180: Successful | P180: 2020-09-29 | R180: N
A181: 38 | B181: 2020-09-29 | D181: NIFTY 11150 PE 01-Oct | E181: Buy | F181: 56-59 | I181: 120 | J181: Open | R181: N
A184: Techno -Funda (positional)
A185: Sr.no | B185: Date | D185: Company | E185: Rec | F185: Rec Price | G185: Stop Loss*** | H185: Call Closed At | I185: Target | J185: Remark | K185: Profit / Loss per Share/Lot | L185: All charges | M185: Net Gain / Loss % | N185: Status | O185: Closed Date
A186: 1 | B186: 2020-08-28 | D186: CCL | E186: Buy | F186: 267 | G186: 245 | H186: 243 | I186: 310-320 | J186: Loss of Rs.24/- | K186: =H186-F186 -> -24 | L186: =(F186*-0.8)/100 -> -2.14 | M186: =(K186+L186)/F186 -> -9.79% | N186: Unsuccessful | O186: 2020-09-09 | R186: H
A188: CLBS = Closing Basis *** | F188: Reinitiated $
A189: Dividend adjusted <> | F189: Revised stoploss #
B191: Intrday Call
A192: Sr.no | B192: Date | D192: Company | E192: Rec | F192: Rec Price | G192: Stop Loss | H192: Call Closed At | I192: Target | J192: Remark | K192: Profit / Loss per Share/Lot | L192: Gain / Loss per Lot | M192: Lot | N192: All charges | O192: Net Gain / Loss % | P192: Status | Q192: Closed Date
A193: 1 | B193: 2020-09-18 | D193: BAJAJFINSV SEPT FUT | E193: Sell | F193: 5967.5 | G193: 6040 | H193: 5,915.00 | I193: 5850 | J193: Profit of Rs.52.5/- | K193: =+F193-H193 -> 52.5 | L193: =(125*52.5)-N193 -> 6301.42 | M193: 125 | N193: =(F193*M193)*0.035% -> 261.08 | P193: Successful | Q193: 2020-09-18 | R193: H
A194: 2 | B194: 2020-09-18 | D194: DLF | E194: Sell | F194: 161.1 | G194: 165 | H194: 165.00 | I194: 184-182 | J194: Loss of Rs. 3.9/- | K194: =F194-H194 -> -3.9 | N194: =(H194*-0.07)/100 -> -0.12 | O194: =(K194+N194)/F194 -> -2.49% | P194: Unsuccessful | Q194: 2020-09-18 | R194: H
A195: 3 | B195: 2020-09-21 | D195: APOLLOHOSP | E195: Buy | F195: 1823 | G195: 1790 | H195: 1,847.50 | I195: 1870-1890 | J195: Profit of Rs.24.5/- | K195: =H195-F195 -> 24.5 | N195: =(H195*-0.07)/100 -> -1.29 | O195: =(K195+N195)/F195 -> 1.27% | P195: Successful | Q195: 2020-09-21 | R195: H
A196: 4 | B196: 2020-09-21 | D196: HDFC SEPT FUT | E196: Sell | F196: 1730.5 | G196: 1755 | H196: 1,726.00 | I196: 1700-1690 | J196: Profit of Rs.4.5/- | K196: =+F196-H196 -> 4.5 | L196: =(M196*K196)-N196 -> 1168.30 | M196: 300 | N196: =(F196*M196)*0.035% -> 181.70 | P196: Successful | Q196: 2020-09-21 | R196: H
A197: 5 | B197: 2020-09-21 | D197: BANKINDIA | E197: Sell | F197: 44.6 | G197: 45.2 | H197: 43.75 | I197: 44-43.5 | J197: Profit of Rs.0.85/- | K197: =F197-H197 -> 0.85 | N197: =(H197*-0.07)/100 -> -0.03 | O197: =(K197+N197)/F197 -> 1.84% | P197: Successful | Q197: 2020-09-21 | R197: H
A198: 6 | B198: 2020-09-21 | D198: BHARTIARTL SEP FUT | E198: Buy | F198: 490.5 | G198: 482 | H198: 484.50 | I198: 505-510 | J198: Loss of Rs.6/- | K198: =+H198-F198 -> -6 | L198: =(M198*K198)-N198 -> -11109.02 | M198: 1800 | N198: =(F198*M198)*0.035% -> 309.02 | P198: Unsuccessful | Q198: 2020-09-21 | R198: H
A199: 7 | B199: 2020-09-21 | D199: MGL | E199: Buy | F199: 936.5 | G199: 920 | H199: 920.00 | I199: 970 | J199: Loss of Rs. 16.5/- | K199: =H199-F199 -> -16.5 | N199: =(H199*-0.07)/100 -> -0.64 | O199: =(K199+N199)/F199 -> -1.83% | P199: Unsuccessful | Q199: 2020-09-21 | R199: N
A200: 8 | B200: 2020-09-22 | D200: APOLLOHOSP | E200: Buy | F200: 1790 | G200: 1760 | H200: 1,788.00 | I200: 1850-1870 | J200: Loss of Rs. 2/- | K200: =H200-F200 -> -2 | N200: =(H200*-0.07)/100 -> -1.25 | O200: =(K200+N200)/F200 -> -0.18% | P200: Neutral | Q200: 2020-09-22 | R200: H
A201: 9 | B201: 2020-09-22 | D201: CESC | E201: Buy | F201: 637 | G201: 625 | H201: 625.00 | I201: 660 | J201: Loss of Rs. 12/- | K201: =H201-F201 -> -12 | N201: =(H201*-0.07)/100 -> -0.44 | O201: =(K201+N201)/F201 -> -1.95% | P201: Unsuccessful | Q201: 2020-09-22 | R201: N
A202: 10 | B202: 2020-09-22 | D202: CHAMBLFERT | E202: Buy | F202: 149.5 | G202: 147 | H202: 147.00 | I202: 155 | J202: Loss of Rs. 2.50/- | K202: =H202-F202 -> -2.5 | N202: =(H202*-0.07)/100 -> -0.10 | O202: =(K202+N202)/F202 -> -1.74% | P202: Unsuccessful | Q202: 2020-09-22 | R202: H
A203: 11 | B203: 2020-09-23 | D203: HDFCBANK OCT FUT | E203: Buy | F203: 1039 | G203: 1015 | H203: 1,049.00 | I203: 1070 | J203: Profit of Rs.10/- | K203: =+H203-F203 -> 10 | L203: =(M203*K203)-N203 -> 5299.99 | M203: 550 | N203: =(F203*M203)*0.035% -> 200.01 | P203: Successful | Q203: 2020-09-23 | R203: H
A204: 12 | B204: 2020-09-23 | D204: APOLLOHOSP | E204: Buy | F204: 1778 | G204: 1760 | H204: 1,792.50 | I204: 1850 | J204: Profit of Rs.14.5/- | K204: =H204-F204 -> 14.5 | N204: =(H204*-0.07)/100 -> -1.25 | O204: =(K204+N204)/F204 -> 0.74% | P204: Successful | Q204: 2020-09-23 | R204: H
A205: 13 | B205: 2020-09-23 | D205: RELIANCE | E205: Buy | F205: 2265 | G205: 2230 | H205: 2,230.00 | I205: 2320 | J205: Loss of Rs. 35/- | K205: =H205-F205 -> -35 | N205: -1.56 | O205: -1.61% | P205: Unsuccessful | Q205: 2020-09-23 | R205: N
A206: 14 | B206: 2020-09-24 | D206: IGL | E206: Buy | F206: 397.5 | G206: 391 | H206: 391.50 | I206: 410-415 | J206: Loss of Rs. 6/- | K206: =H206-F206 -> -6 | N206: -0.27 | O206: -1.58% | P206: Unsuccessful | Q206: 2020-09-24 | R206: H
A207: 15 | B207: 2020-09-24 | D207: CESC | E207: Buy | F207: 633.5 | G207: 618 | H207: 619.50 | I207: 670 | J207: Loss of Rs. 14/- | K207: =H207-F207 -> -14 | N207: -0.43 | O207: -2.28% | P207: Unsuccessful | Q207: 2020-09-24 | R207: N
A208: 16 | B208: 2020-09-25 | D208: LUPIN | E208: Buy | F208: 987.5 | G208: 955 | H208: 999.50 | I208: 1050 | J208: Profit of Rs.12/- | K208: =H208-F208 -> 12 | N208: -0.70 | O208: 1.14% | P208: Successful | Q208: 2020-09-25 | R208: N
A209: 17 | B209: 2020-09-25 | D209: DLF | E209: Sell | F209: 151 | G209: 154.5 | H209: 148.75 | I209: 145 | J209: Profit of Rs.2.25/- | K209: =F209-H209 -> 2.25 | N209: -0.10 | O209: 1.42% | P209: Successful | Q209: 2020-09-25 | R209: N
A210: 18 | B210: 2020-09-25 | D210: JUBLIFOOD | E210: Sell | F210: 2285 | G210: 2330 | H210: 2,320.00 | I210: 2200 | J210: Loss of Rs. 35/- | K210: =F210-H210 -> -35 | N210: -1.62 | O210: -1.60% | P210: Unsuccessful | Q210: 2020-09-25 | R210: H
A211: 19 | B211: 2020-09-25 | D211: CROMPTON | E211: Buy | F211: 261.5 | G211: 256 | H211: 256.00 | I211: 270 | J211: Loss of Rs. 5.5/- | K211: =H211-F211 -> -5.5 | N211: -0.18 | O211: -2.17% | P211: Unsuccessful | Q211: 2020-09-25 | R211: N
B217: Investment Idea
A218: Sr.no | B218: Date | D218: Company | E218: Rec | F218: Rec Price | G218: Point of Review | H218: Close Rate | I218: Target | J218: Remark | K218: Profit / Loss per Share | L218: Gain / Loss % | M218: Status | N218: Closed Date
A219: 1 | B219: 2013-11-01 | D219: L&T Finance Holding | E219: Accu | F219: 82.00 | G219: - | H219: 100 | I219: 100.00 | J219: Target Achieved | K219: =H219-F219 -> 18.00 | L219: =K219/F219 -> 21.95% | M219: Successful | N219: 2016-10-14
A220: 2 | B220: 2014-06-04 | D220: Finolex Inds | E220: Buy | F220: 257.00 | G220: - | H220: 300 | I220: 300.00 | J220: Target Achieved | K220: 43.00 | L220: 16.73% | M220: Successful | N220: 2014-07-02
A221: 3 | B221: 2014-07-08 | D221: JK Cement | E221: Buy | F221: 393.00 | G221: - | H221: 468 | I221: 468.00 | J221: Target Achieved | K221: 75.00 | L221: 19.08% | M221: Successful | N221: 2014-08-12
A222: 4 | B222: 2014-08-06 | D222: Finolex Cables | E222: Buy | F222: 205.00 | G222: - | H222: 275 | I222: 250.00 | J222: Target Achieved | K222: 70.00 | L222: 34.15% | M222: Successful | N222: 2014-11-19
A223: 5 | B223: 2014-09-04 | D223: Exide Inds | E223: Buy | F223: 162.00 | G223: - | H223: 190 | I223: 190.00 | J223: Target Achieved | K223: 28.00 | L223: 17.28% | M223: Successful | N223: 2015-01-02
A224: 6 | B224: 2014-09-04 | D224: Deepak Nitrite | E224: Buy | F224: 75.00 | G224: - | H224: 91.5 | I224: 95-100 | J224: Profit of Rs.16.50/- | K224: 16.50 | L224: 22.00% | M224: Successful | N224: 2014-11-11
A225: 7 | B225: 2014-10-01 | D225: Mercks | E225: Buy | F225: 850.00 | G225: - | H225: 982.5 | I225: 1050.00 | J225: Profit of Rs.132.50/- | K225: 132.50 | L225: 15.59% | M225: Successful | N225: 2015-02-04
... 149 more rows

Sheet Sheet2 (hidden)
A1: SYMBOL | B1: SERIES | C1: OPEN | D1: HIGH | E1: LOW | F1: CLOSE | G1: LAST | H1: PREVCLOSE | I1: TOTTRDQTY | J1: TOTTRDVAL | K1: TIMESTAMP | L1: TOTALTRADES | M1: ISIN | N1: ISIN
A2: 20MICRONS | B2: EQ | C2: 27.9 | D2: 29 | E2: 25.9 | F2: 26.2 | G2: 25.9 | H2: 27.5 | I2: 80527 | J2: 2193820.55 | K2: 2020-04-08 | L2: 1099 | M2: INE144J01027
A3: 21STCENMGM | B3: EQ | C3: 10.15 | D3: 10.5 | E3: 10.1 | F3: 10.4 | G3: 10.5 | H3: 10.3 | I3: 3205 | J3: 32728.25 | K3: 2020-04-08 | L3: 28 | M3: INE253B01015
A4: 3IINFOTECH | B4: EQ | C4: 1.35 | D4: 1.35 | E4: 1.2 | F4: 1.25 | G4: 1.25 | H4: 1.35 | I4: 2793301 | J4: 3578364.95 | K4: 2020-04-08 | L4: 46535 | M4: INE748C01020
A5: 3MINDIA | B5: EQ | C5: 18950 | D5: 19170 | E5: 18155.05 | F5: 18318.2 | G5: 18270 | H5: 18755.7 | I5: 9926 | J5: 183605811.2 | K5: 2020-04-08 | L5: 4453 | M5: INE470A01017
A6: 3PLAND | B6: EQ | C6: 3.7 | D6: 3.85 | E6: 3.7 | F6: 3.85 | G6: 3.85 | H6: 3.7 | I6: 406 | J6: 1557.85 | K6: 2020-04-08 | L6: 9 | M6: INE105C01023
A7: 5PAISA | B7: EQ | C7: 119.95 | D7: 134 | E7: 115 | F7: 123.35 | G7: 120.5 | H7: 116.4 | I7: 6500 | J7: 793277.05 | K7: 2020-04-08 | L7: 265 | M7: INE618L01018
A8: 63MOONS | B8: EQ | C8: 50.7 | D8: 55.45 | E8: 50.7 | F8: 53.7 | G8: 53.55 | H8: 50.7 | I8: 72221 | J8: 3890984.7 | K8: 2020-04-08 | L8: 3078 | M8: INE111B01023
A9: A2ZINFRA | B9: EQ | C9: 3.15 | D9: 3.25 | E9: 3.1 | F9: 3.15 | G9: 3.15 | H9: 3.15 | I9: 116011 | J9: 367778.85 | K9: 2020-04-08 | L9: 227 | M9: INE619I01012
A10: AARTIDRUGS | B10: EQ | C10: 627 | D10: 669.3 | E10: 605 | F10: 631.6 | G10: 625 | H10: 607.85 | I10: 75970 | J10: 48223549.15 | K10: 2020-04-08 | L10: 5720 | M10: INE767A01016
A11: AARTIIND | B11: EQ | C11: 839.95 | D11: 909.8 | E11: 818 | F11: 854.9 | G11: 864 | H11: 830.7 | I11: 477805 | J11: 419092386.9 | K11: 2020-04-08 | L11: 50045 | M11: INE769A01020
A12: AARVEEDEN | B12: EQ | C12: 8.95 | D12: 9.25 | E12: 7.85 | F12: 8.35 | G12: 8.45 | H12: 8.1 | I12: 9251 | J12: 77100.1 | K12: 2020-04-08 | L12: 94 | M12: INE273D01019
A13: AAVAS | B13: EQ | C13: 1101 | D13: 1183 | E13: 1101 | F13: 1135.2 | G13: 1137 | H13: 1142.35 | I13: 24179 | J13: 28073100.85 | K13: 2020-04-08 | L13: 3631 | M13: INE216P01012
A14: ABAN | B14: EQ | C14: 15.7 | D14: 16.2 | E14: 15.7 | F14: 16.2 | G14: 16.2 | H14: 15.45 | I14: 37609 | J14: 608439.6 | K14: 2020-04-08 | L14: 288 | M14: INE421A01028
A15: ABB | B15: EQ | C15: 935 | D15: 965 | E15: 910 | F15: 930.7 | G15: 928 | H15: 931.35 | I15: 87757 | J15: 82358527.9 | K15: 2020-04-08 | L15: 4699 | M15: INE117A01022
A16: ABBOTINDIA | B16: EQ | C16: 16799.45 | D16: 18250 | E16: 16750 | F16: 17481.1 | G16: 17488 | H16: 16699.7 | I16: 57991 | J16: 1023745502 | K16: 2020-04-08 | L16: 21022 | M16: INE358A01014
A17: ABCAPITAL | B17: EQ | C17: 45 | D17: 47.9 | E17: 44.25 | F17: 45.6 | G17: 45.7 | H17: 45.1 | I17: 1253267 | J17: 57952493.6 | K17: 2020-04-08 | L17: 7317 | M17: INE674K01013
A18: ABFRL | B18: EQ | C18: 148 | D18: 152.8 | E18: 146.75 | F18: 149 | G18: 148 | H18: 149.85 | I18: 416099 | J18: 62371769.1 | K18: 2020-04-08 | L18: 10148 | M18: INE647O01011
A19: ABSLNN50ET | B19: EQ | C19: 244 | D19: 248 | E19: 210 | F19: 235 | G19: 235 | H19: 244 | I19: 56 | J19: 12779.4 | K19: 2020-04-08 | L19: 13 | M19: INF209KB1B87
A20: ACC | B20: EQ | C20: 1000 | D20: 1029.9 | E20: 941.25 | F20: 956.05 | G20: 958 | H20: 1009.95 | I20: 2153627 | J20: 2101320389 | K20: 2020-04-08 | L20: 79728 | M20: INE012A01025
A21: ACCELYA | B21: EQ | C21: 874.3 | D21: 886 | E21: 862 | F21: 880.45 | G21: 879.95 | H21: 874.3 | I21: 10865 | J21: 9557704.55 | K21: 2020-04-08 | L21: 923 | M21: INE793A01012
A22: ACE | B22: EQ | C22: 32.75 | D22: 35.2 | E22: 32.55 | F22: 33.25 | G22: 33.35 | H22: 32.95 | I22: 244708 | J22: 8296578.4 | K22: 2020-04-08 | L22: 2925 | M22: INE731H01025
A23: ADANIENT | B23: EQ | C23: 136.85 | D23: 147.15 | E23: 134.9 | F23: 138.1 | G23: 137.5 | H23: 138.15 | I23: 3237290 | J23: 456492273.1 | K23: 2020-04-08 | L23: 23696 | M23: INE423A01024
A24: ADANIGAS | B24: EQ | C24: 93.9 | D24: 96.35 | E24: 90.5 | F24: 90.8 | G24: 90.65 | H24: 94 | I24: 1888606 | J24: 176837924.4 | K24: 2020-04-08 | L24: 14517 | M24: INE399L01023
A25: ADANIGREEN | B25: EQ | C25: 166.85 | D25: 166.85 | E25: 162 | F25: 166.45 | G25: 166.85 | H25: 158.95 | I25: 702014 | J25: 116248737 | K25: 2020-04-08 | L25: 10187 | M25: INE364U01010
A26: ADANIPORTS | B26: EQ | C26: 248 | D26: 255.85 | E26: 242.75 | F26: 250.85 | G26: 249.7 | H26: 248.1 | I26: 6897883 | J26: 1724830525 | K26: 2020-04-08 | L26: 81499 | M26: INE742F01042
A27: ADANIPOWER | B27: EQ | C27: 28.65 | D27: 31.15 | E27: 27.5 | F27: 28.95 | G27: 28.85 | H27: 28.8 | I27: 12308064 | J27: 361987996.9 | K27: 2020-04-08 | L27: 23153 | M27: INE814H01011
A28: ADANITRANS | B28: EQ | C28: 196.65 | D28: 202 | E28: 190 | F28: 193.65 | G28: 193.5 | H28: 198.3 | I28: 306320 | J28: 59783940.3 | K28: 2020-04-08 | L28: 4236 | M28: INE931S01010
A29: ADFFOODS | B29: EQ | C29: 187.85 | D29: 192.25 | E29: 184 | F29: 187.7 | G29: 187.3 | H29: 183.1 | I29: 22107 | J29: 4185556.05 | K29: 2020-04-08 | L29: 773 | M29: INE982B01019
A30: ADHUNIKIND | B30: EQ | C30: 13.3 | D30: 13.3 | E30: 13.3 | F30: 13.3 | G30: 13.3 | H30: 12.7 | I30: 5518 | J30: 73389.4 | K30: 2020-04-08 | L30: 21 | M30: INE452L01012
A31: ADLABS | B31: EQ | C31: 2.75 | D31: 2.85 | E31: 2.75 | F31: 2.85 | G31: 2.85 | H31: 2.75 | I31: 19360 | J31: 54965.35 | K31: 2020-04-08 | L31: 72 | M31: INE172N01012
A32: ADORWELD | B32: EQ | C32: 195.7 | D32: 201.9 | E32: 193.95 | F32: 195.1 | G32: 194.45 | H32: 196.75 | I32: 1438 | J32: 283768.75 | K32: 2020-04-08 | L32: 94 | M32: INE045A01017
A33: ADROITINFO | B33: EQ | C33: 5.5 | D33: 5.7 | E33: 5.45 | F33: 5.7 | G33: 5.7 | H33: 5.7 | I33: 691 | J33: 3857 | K33: 2020-04-08 | L33: 25 | M33: INE737B01033
A34: ADSL | B34: EQ | C34: 13.05 | D34: 13.2 | E34: 12.4 | F34: 12.5 | G34: 12.45 | H34: 12.7 | I34: 16203 | J34: 205559.25 | K34: 2020-04-08 | L34: 143 | M34: INE102I01027
A35: ADVANIHOTR | B35: EQ | C35: 30.1 | D35: 33 | E35: 30.1 | F35: 31.8 | G35: 31.5 | H35: 30.65 | I35: 5340 | J35: 169948.95 | K35: 2020-04-08 | L35: 193 | M35: INE199C01026
A36: ADVENZYMES | B36: EQ | C36: 140.2 | D36: 146.55 | E36: 137.95 | F36: 139.2 | G36: 139.75 | H36: 136.55 | I36: 77441 | J36: 11046136.15 | K36: 2020-04-08 | L36: 1990 | M36: INE837H01020
A37: AEGISCHEM | B37: EQ | C37: 150 | D37: 158.5 | E37: 147.1 | F37: 156.35 | G37: 156.05 | H37: 144.1 | I37: 175470 | J37: 27041093.9 | K37: 2020-04-08 | L37: 4268 | M37: INE208C01025
A38: AFFLE | B38: BE | C38: 1050 | D38: 1053.45 | E38: 1030 | F38: 1053.45 | G38: 1053.45 | H38: 1003.3 | I38: 8191 | J38: 8619737.5 | K38: 2020-04-08 | L38: 470 | M38: INE00WC01019
A39: AGARIND | B39: EQ | C39: 49.8 | D39: 52.85 | E39: 49.05 | F39: 52.25 | G39: 52.5 | H39: 49.95 | I39: 7826 | J39: 404450.25 | K39: 2020-04-08 | L39: 207 | M39: INE204E01012
A40: AGCNET | B40: BE | C40: 224.35 | D40: 235.55 | E40: 213.25 | F40: 234.7 | G40: 235.55 | H40: 224.35 | I40: 2524 | J40: 573063 | K40: 2020-04-08 | L40: 70 | M40: INE676A01019
A41: AGRITECH | B41: EQ | C41: 23.95 | D41: 23.95 | E41: 23.95 | F41: 23.95 | G41: 23.95 | H41: 22.85 | I41: 504 | J41: 12070.8 | K41: 2020-04-08 | L41: 18 | M41: INE449G01018
A42: AGROPHOS | B42: EQ | C42: 5.7 | D42: 5.7 | E42: 5.2 | F42: 5.7 | G42: 5.7 | H42: 5.45 | I42: 40596 | J42: 227201.55 | K42: 2020-04-08 | L42: 340 | M42: INE740V01019
A43: AHLEAST | B43: EQ | C43: 133.15 | D43: 141.85 | E43: 128.15 | F43: 131.55 | G43: 128.35 | H43: 131.5 | I43: 3303 | J43: 439718.1 | K43: 2020-04-08 | L43: 350 | M43: INE926K01017
A44: AHLUCONT | B44: EQ | C44: 145.95 | D44: 148 | E44: 136 | F44: 146.3 | G44: 148 | H44: 144.1 | I44: 153910 | J44: 21077811.2 | K44: 2020-04-08 | L44: 995 | M44: INE758C01029
A45: AHLWEST | B45: EQ | C45: 289.9 | D45: 289.9 | E45: 270.95 | F45: 275 | G45: 275 | H45: 277 | I45: 238 | J45: 67030 | K45: 2020-04-08 | L45: 91 | M45: INE915K01010
A46: AIAENG | B46: EQ | C46: 1259.45 | D46: 1291 | E46: 1229 | F46: 1255.85 | G46: 1268 | H46: 1249.9 | I46: 73842 | J46: 92756824.05 | K46: 2020-04-08 | L46: 10503 | M46: INE212H01026
A47: AIONJSW | B47: EQ | C47: 10.9 | D47: 11.1 | E47: 10.2 | F47: 11.1 | G47: 11.1 | H47: 10.6 | I47: 90347 | J47: 996144.95 | K47: 2020-04-08 | L47: 180 | M47: INE743C01021
A48: AIRAN | B48: EQ | C48: 9.8 | D48: 10.3 | E48: 9.75 | F48: 9.8 | G48: 9.75 | H48: 9.85 | I48: 1826 | J48: 18127.1 | K48: 2020-04-08 | L48: 25 | M48: INE645W01026
A49: AJANTPHARM | B49: EQ | C49: 1325.75 | D49: 1450 | E49: 1325 | F49: 1367.5 | G49: 1363 | H49: 1340.2 | I49: 166582 | J49: 233126032.5 | K49: 2020-04-08 | L49: 8748 | M49: INE031B01049
A50: AJMERA | B50: EQ | C50: 64.95 | D50: 70.5 | E50: 64.6 | F50: 68.4 | G50: 69.9 | H50: 64.65 | I50: 31766 | J50: 2167947.5 | K50: 2020-04-08 | L50: 909 | M50: INE298G01027
A51: AKASH | B51: BE | C51: 90 | D51: 90 | E51: 90 | F51: 90 | G51: 90 | H51: 90.95 | I51: 500 | J51: 45000 | K51: 2020-04-08 | L51: 1 | M51: INE737W01013
A52: AKSHARCHEM | B52: EQ | C52: 174.75 | D52: 177.6 | E52: 165.3 | F52: 169.7 | G52: 167.15 | H52: 165.25 | I52: 3130 | J52: 531878.25 | K52: 2020-04-08 | L52: 293 | M52: INE542B01011
A53: AKSHOPTFBR | B53: EQ | C53: 3.6 | D53: 3.6 | E53: 3.6 | F53: 3.6 | G53: 3.6 | H53: 3.45 | I53: 27750 | J53: 99900 | K53: 2020-04-08 | L53: 45 | M53: INE523B01011
A54: AKZOINDIA | B54: EQ | C54: 2084.95 | D54: 2133 | E54: 2030 | F54: 2047.9 | G54: 2040 | H54: 2086.75 | I54: 12835 | J54: 26789836.95 | K54: 2020-04-08 | L54: 2242 | M54: INE133A01011
A55: ALANKIT | B55: EQ | C55: 12.9 | D55: 12.9 | E55: 12.9 | F55: 12.9 | G55: 12.9 | H55: 12.3 | I55: 14247 | J55: 183786.3 | K55: 2020-04-08 | L55: 75 | M55: INE914E01040
A56: ALBERTDAVD | B56: EQ | C56: 338.8 | D56: 364.75 | E56: 338.8 | F56: 353.15 | G56: 352 | H56: 341.15 | I56: 24334 | J56: 8579416.55 | K56: 2020-04-08 | L56: 1220 | M56: INE155C01010
A57: ALCHEM | B57: BE | C57: 1.4 | D57: 1.4 | E57: 1.4 | F57: 1.4 | G57: 1.4 | H57: 1.35 | I57: 8608 | J57: 12051.2 | K57: 2020-04-08 | L57: 18 | M57: INE964B01033
A58: ALEMBICLTD | B58: EQ | C58: 43.7 | D58: 48.05 | E58: 39.7 | F58: 45.05 | G58: 45.5 | H58: 42.15 | I58: 695128 | J58: 31779132.75 | K58: 2020-04-08 | L58: 6991 | M58: INE426A01027
A59: ALICON | B59: EQ | C59: 195.95 | D59: 196 | E59: 181.05 | F59: 184.75 | G59: 184 | H59: 189.25 | I59: 3909 | J59: 722322.5 | K59: 2020-04-08 | L59: 123 | M59: INE062D01024
A60: ALKALI | B60: EQ | C60: 29.95 | D60: 31.75 | E60: 29.65 | F60: 31.75 | G60: 31.75 | H60: 28.9 | I60: 9346 | J60: 289594.95 | K60: 2020-04-08 | L60: 349 | M60: INE773I01017
A61: ALKEM | B61: EQ | C61: 2360 | D61: 2736.5 | E61: 2326.2 | F61: 2671.15 | G61: 2639 | H61: 2324.05 | I61: 371259 | J61: 967330461.6 | K61: 2020-04-08 | L61: 44106 | M61: INE540L01014
A62: ALKYLAMINE | B62: EQ | C62: 1236.6 | D62: 1398 | E62: 1222.2 | F62: 1334.05 | G62: 1334 | H62: 1232.45 | I62: 41501 | J62: 55061848.25 | K62: 2020-04-08 | L62: 3832 | M62: INE150B01021
A63: ALLCARGO | B63: EQ | C63: 63.05 | D63: 65.85 | E63: 63 | F63: 65.7 | G63: 65.85 | H63: 59.9 | I63: 300794 | J63: 19569467.05 | K63: 2020-04-08 | L63: 3098 | M63: INE418H01029
A64: ALLSEC | B64: EQ | C64: 131.7 | D64: 131.9 | E64: 129.35 | F64: 131.9 | G64: 131.9 | H64: 125.65 | I64: 1335 | J64: 175836.2 | K64: 2020-04-08 | L64: 37 | M64: INE835G01018
A65: ALOKINDS | B65: EQ | C65: 4.7 | D65: 4.7 | E65: 4.7 | F65: 4.7 | G65: 4.7 | H65: 4.5 | I65: 1698707 | J65: 7983922.9 | K65: 2020-04-08 | L65: 397 | M65: INE270A01029
A66: ALPA | B66: EQ | C66: 18.55 | D66: 20.15 | E66: 17.8 | F66: 20.15 | G66: 20.15 | H66: 16.8 | I66: 131233 | J66: 2593665.9 | K66: 2020-04-08 | L66: 858 | M66: INE385I01010
A67: ALPHAGEO | B67: EQ | C67: 126 | D67: 137.5 | E67: 126 | F67: 134.45 | G67: 133.3 | H67: 129.7 | I67: 22258 | J67: 2986986.5 | K67: 2020-04-08 | L67: 783 | M67: INE137C01018
A68: ALPSINDUS | B68: EQ | C68: 0.65 | D68: 0.75 | E68: 0.65 | F68: 0.75 | G68: 0.7 | H68: 0.7 | I68: 25369 | J68: 18108.8 | K68: 2020-04-08 | L68: 33 | M68: INE093B01015
A69: AMARAJABAT | B69: EQ | C69: 501.1 | D69: 513.65 | E69: 488.45 | F69: 502.05 | G69: 504.9 | H69: 501.1 | I69: 755312 | J69: 378881689.9 | K69: 2020-04-08 | L69: 18162 | M69: INE885A01032
A70: AMBER | B70: EQ | C70: 1189.9 | D70: 1199 | E70: 1072 | F70: 1108.05 | G70: 1109.25 | H70: 1189.9 | I70: 93512 | J70: 105805912.2 | K70: 2020-04-08 | L70: 14252 | M70: INE371P01015
A71: AMBIKCO | B71: EQ | C71: 539.25 | D71: 559 | E71: 531.05 | F71: 545.2 | G71: 536.4 | H71: 537.25 | I71: 3988 | J71: 2168349.4 | K71: 2020-04-08 | L71: 406 | M71: INE540G01014
A72: AMBUJACEM | B72: EQ | C72: 158.5 | D72: 159.5 | E72: 148.2 | F72: 149.7 | G72: 149.55 | H72: 159 | I72: 10421438 | J72: 1597618498 | K72: 2020-04-08 | L72: 84074 | M72: INE079A01024
A73: AMDIND | B73: EQ | C73: 9.9 | D73: 10.5 | E73: 9.5 | F73: 9.8 | G73: 9.55 | H73: 10 | I73: 17757 | J73: 177659.15 | K73: 2020-04-08 | L73: 707 | M73: INE005I01014
A74: AMJLAND | B74: EQ | C74: 14.3 | D74: 14.95 | E74: 13.7 | F74: 14 | G74: 14 | H74: 14.25 | I74: 12523 | J74: 176065.3 | K74: 2020-04-08 | L74: 106 | M74: INE606A01024
A75: AMRUTANJAN | B75: EQ | C75: 326 | D75: 352 | E75: 320.1 | F75: 345.45 | G75: 344.3 | H75: 324 | I75: 278725 | J75: 95586275.35 | K75: 2020-04-08 | L75: 9075 | M75: INE098F01031
A76: ANANTRAJ | B76: EQ | C76: 19.55 | D76: 20.15 | E76: 18.6 | F76: 18.75 | G76: 18.8 | H76: 19.55 | I76: 184694 | J76: 3509270.8 | K76: 2020-04-08 | L76: 1012 | M76: INE242C01024
A77: ANDHRACEMT | B77: EQ | C77: 1.8 | D77: 1.9 | E77: 1.7 | F77: 1.85 | G77: 1.9 | H77: 1.75 | I77: 105618 | J77: 196578.05 | K77: 2020-04-08 | L77: 227 | M77: INE666E01012
A78: ANDHRAPAP | B78: EQ | C78: 148.55 | D78: 148.55 | E78: 147 | F78: 148.55 | G78: 148.55 | H78: 141.5 | I78: 2622 | J78: 389210.05 | K78: 2020-04-08 | L78: 70 | M78: INE435A01028
A79: ANDHRSUGAR | B79: EQ | C79: 206.95 | D79: 212 | E79: 195 | F79: 206.05 | G79: 205.85 | H79: 203.55 | I79: 35494 | J79: 7286675.25 | K79: 2020-04-08 | L79: 1328 | M79: INE715B01013
A80: ANIKINDS | B80: EQ | C80: 7.25 | D80: 7.25 | E80: 6.65 | F80: 6.8 | G80: 6.8 | H80: 6.95 | I80: 4994 | J80: 34701.65 | K80: 2020-04-08 | L80: 35 | M80: INE087B01017
A81: ANKITMETAL | B81: EQ | C81: 0.4 | D81: 0.45 | E81: 0.35 | F81: 0.45 | G81: 0.45 | H81: 0.4 | I81: 64810 | J81: 27213.05 | K81: 2020-04-08 | L81: 29 | M81: INE106I01010
A82: ANSALAPI | B82: EQ | C82: 3.65 | D82: 3.8 | E82: 3.65 | F82: 3.8 | G82: 3.8 | H82: 3.65 | I82: 3974 | J82: 15023.75 | K82: 2020-04-08 | L82: 28 | M82: INE436A01026
A83: ANSALHSG | B83: EQ | C83: 3 | D83: 3 | E83: 2.8 | F83: 2.9 | G83: 2.9 | H83: 2.9 | I83: 31510 | J83: 91846.6 | K83: 2020-04-08 | L83: 64 | M83: INE880B01015
A84: ANUP | B84: EQ | C84: 304.75 | D84: 323.7 | E84: 303.1 | F84: 313.2 | G84: 313.05 | H84: 312.75 | I84: 11786 | J84: 3732090.6 | K84: 2020-04-08 | L84: 460 | M84: INE294Z01018
A85: APARINDS | B85: EQ | C85: 296.95 | D85: 300.35 | E85: 290.6 | F85: 295.85 | G85: 295.5 | H85: 296.05 | I85: 6051 | J85: 1806443.45 | K85: 2020-04-08 | L85: 427 | M85: INE372A01015
A86: APCL | B86: EQ | C86: 102.4 | D86: 102.4 | E86: 95.2 | F86: 97.35 | G86: 97 | H86: 98.5 | I86: 3739 | J86: 362867.6 | K86: 2020-04-08 | L86: 79 | M86: INE071F01012
A87: APCOTEXIND | B87: EQ | C87: 87.55 | D87: 94.85 | E87: 86 | F87: 87.5 | G87: 86.1 | H87: 87.45 | I87: 13115 | J87: 1175575.25 | K87: 2020-04-08 | L87: 323 | M87: INE116A01032
A88: APEX | B88: EQ | C88: 190 | D88: 201.65 | E88: 185.1 | F88: 201.65 | G88: 201.65 | H88: 183.35 | I88: 141806 | J88: 27768799.35 | K88: 2020-04-08 | L88: 3293 | M88: INE346W01013
A89: APLAPOLLO | B89: EQ | C89: 1245 | D89: 1274 | E89: 1220 | F89: 1259.5 | G89: 1258 | H89: 1231.75 | I89: 21152 | J89: 26442272.1 | K89: 2020-04-08 | L89: 3032 | M89: INE702C01019
A90: APLLTD | B90: EQ | C90: 630 | D90: 702.65 | E90: 615.5 | F90: 640.85 | G90: 626 | H90: 610.2 | I90: 540272 | J90: 353935242.1 | K90: 2020-04-08 | L90: 30323 | M90: INE901L01018
A91: APOLLO | B91: EQ | C91: 45.5 | D91: 56 | E91: 45.25 | F91: 54.3 | G91: 53.55 | H91: 46.7 | I91: 68951 | J91: 3631629.4 | K91: 2020-04-08 | L91: 1694 | M91: INE713T01010
A92: APOLLOHOSP | B92: EQ | C92: 1225.9 | D92: 1338.4 | E92: 1211 | F92: 1263.95 | G92: 1261 | H92: 1225.95 | I92: 2070270 | J92: 2654141027 | K92: 2020-04-08 | L92: 156926 | M92: INE437A01024
A93: APOLLOPIPE | B93: EQ | C93: 279.5 | D93: 304 | E93: 262.95 | F93: 281.3 | G93: 281 | H93: 280.1 | I93: 12940 | J93: 3607793.25 | K93: 2020-04-08 | L93: 543 | M93: INE126J01016
A94: APOLLOTYRE | B94: EQ | C94: 83.5 | D94: 87.15 | E94: 82 | F94: 83.4 | G94: 83.15 | H94: 83.5 | I94: 2950752 | J94: 248872037.1 | K94: 2020-04-08 | L94: 19408 | M94: INE438A01022
A95: APOLSINHOT | B95: EQ | C95: 460.35 | D95: 460.4 | E95: 421.1 | F95: 439.8 | G95: 436 | H95: 438.6 | I95: 694 | J95: 306874.65 | K95: 2020-04-08 | L95: 84 | M95: INE451F01024
A96: APTECHT | B96: EQ | C96: 85.3 | D96: 87.7 | E96: 83.55 | F96: 84.6 | G96: 84.3 | H96: 85.3 | I96: 106721 | J96: 9133416.7 | K96: 2020-04-08 | L96: 2385 | M96: INE266F01018
A97: ARCHIDPLY | B97: EQ | C97: 16.55 | D97: 17 | E97: 16.45 | F97: 16.85 | G97: 16.95 | H97: 16.75 | I97: 4083 | J97: 68300.2 | K97: 2020-04-08 | L97: 63 | M97: INE877I01016
A98: ARCHIES | B98: EQ | C98: 9.4 | D98: 9.5 | E98: 9 | F98: 9.05 | G98: 9.15 | H98: 9.45 | I98: 24343 | J98: 224667.6 | K98: 2020-04-08 | L98: 150 | M98: INE731A01020
A99: ARCOTECH | B99: EQ | C99: 0.9 | D99: 0.95 | E99: 0.85 | F99: 0.9 | G99: 0.9 | H99: 0.9 | I99: 51482 | J99: 47500.05 | K99: 2020-04-08 | L99: 77 | M99: INE574I01035
A100: ARENTERP | B100: EQ | C100: 12.65 | D100: 12.65 | E100: 12.05 | F100: 12.05 | G100: 12.05 | H100: 12.65 | I100: 63 | J100: 765.15 | K100: 2020-04-08 | L100: 4 | M100: INE610C01014
A101: ARIES | B101: EQ | C101: 44.4 | D101: 47.6 | E101: 42.65 | F101: 43.6 | G101: 44 | H101: 44.4 | I101: 50875 | J101: 2250478.25 | K101: 2020-04-08 | L101: 1080 | M101: INE298I01015
A102: ARIHANT | B102: EQ | C102: 12.05 | D102: 12.55 | E102: 11.6 | F102: 12.15 | G102: 12.5 | H102: 12.05 | I102: 964 | J102: 11418.15 | K102: 2020-04-08 | L102: 27 | M102: INE413D01011
A103: ARIHANTSUP | B103: EQ | C103: 21.4 | D103: 21.45 | E103: 19.45 | F103: 19.5 | G103: 21 | H103: 20.45 | I103: 4362 | J103: 85414.05 | K103: 2020-04-08 | L103: 80 | M103: INE643K01018
A104: ARMANFIN | B104: EQ | C104: 340 | D104: 373.2 | E104: 337.7 | F104: 373.05 | G104: 373.2 | H104: 355.45 | I104: 50867 | J104: 18465582.65 | K104: 2020-04-08 | L104: 911 | M104: INE109C01017
A105: AROGRANITE | B105: EQ | C105: 21.95 | D105: 24.5 | E105: 20.85 | F105: 24.2 | G105: 24.5 | H105: 22.35 | I105: 26052 | J105: 602565.3 | K105: 2020-04-08 | L105: 183 | M105: INE210C01013
A106: ARROWGREEN | B106: BE | C106: 33.55 | D106: 35 | E106: 33.45 | F106: 33.45 | G106: 33.45 | H106: 33.85 | I106: 5735 | J106: 195198.5 | K106: 2020-04-08 | L106: 32 | M106: INE570D01018
A107: ARSHIYA | B107: EQ | C107: 7.1 | D107: 7.6 | E107: 7.1 | F107: 7.6 | G107: 7.6 | H107: 7.25 | I107: 23178 | J107: 175819.45 | K107: 2020-04-08 | L107: 63 | M107: INE968D01022
A108: ARSSINFRA | B108: EQ | C108: 11.25 | D108: 12.3 | E108: 10.9 | F108: 11.8 | G108: 11.85 | H108: 11.15 | I108: 16388 | J108: 189874.85 | K108: 2020-04-08 | L108: 107 | M108: INE267I01010
A109: ARTEMISMED | B109: EQ | C109: 140 | D109: 147 | E109: 136.3 | F109: 138 | G109: 137 | H109: 139.15 | I109: 1729 | J109: 245138.4 | K109: 2020-04-08 | L109: 31 | M109: INE025R01013
A110: ARVIND | B110: EQ | C110: 23.5 | D110: 24.4 | E110: 22.45 | F110: 23.75 | G110: 23.75 | H110: 22.2 | I110: 2137547 | J110: 50521243.45 | K110: 2020-04-08 | L110: 7057 | M110: INE034A01011
A111: ARVINDFASN | B111: EQ | C111: 139.8 | D111: 141.9 | E111: 132.2 | F111: 133.8 | G111: 134.75 | H111: 139.85 | I111: 46445 | J111: 6387304.5 | K111: 2020-04-08 | L111: 1243 | M111: INE955V01021
A112: ARVSMART | B112: EQ | C112: 64.05 | D112: 67 | E112: 64 | F112: 65.4 | G112: 65.5 | H112: 65 | I112: 10000 | J112: 656036.65 | K112: 2020-04-08 | L112: 320 | M112: INE034S01021
A113: ASAHIINDIA | B113: EQ | C113: 152 | D113: 158 | E113: 147.05 | F113: 155.5 | G113: 152.35 | H113: 153.2 | I113: 5605 | J113: 858978.65 | K113: 2020-04-08 | L113: 218 | M113: INE439A01020
A114: ASAHISONG | B114: EQ | C114: 80.8 | D114: 88.95 | E114: 80.05 | F114: 85.25 | G114: 86 | H114: 80.9 | I114: 8055 | J114: 692533.2 | K114: 2020-04-08 | L114: 314 | M114: INE228I01012
A115: ASAL | B115: EQ | C115: 14.8 | D115: 14.9 | E115: 14.5 | F115: 14.5 | G115: 14.5 | H115: 14.25 | I115: 8037 | J115: 118819.3 | K115: 2020-04-08 | L115: 36 | M115: INE900C01027
A116: ASALCBR | B116: EQ | C116: 164.9 | D116: 175 | E116: 158 | F116: 165.7 | G116: 165 | H116: 162.9 | I116: 31033 | J116: 5116102.05 | K116: 2020-04-08 | L116: 970 | M116: INE073G01016
A117: ASHAPURMIN | B117: EQ | C117: 22.1 | D117: 22.1 | E117: 22.05 | F117: 22.1 | G117: 22.1 | H117: 21.05 | I117: 8770 | J117: 193792 | K117: 2020-04-08 | L117: 43 | M117: INE348A01023
A118: ASHIANA | B118: EQ | C118: 52.9 | D118: 52.9 | E118: 49.1 | F118: 49.95 | G118: 50 | H118: 50 | I118: 69042 | J118: 3480534.3 | K118: 2020-04-08 | L118: 621 | M118: INE365D01021
A119: ASHIMASYN | B119: EQ | C119: 3.9 | D119: 3.9 | E119: 3.9 | F119: 3.9 | G119: 3.9 | H119: 3.55 | I119: 28914 | J119: 112764.6 | K119: 2020-04-08 | L119: 46 | M119: INE440A01010
A120: ASHOKA | B120: EQ | C120: 38.35 | D120: 42.7 | E120: 37.8 | F120: 42.7 | G120: 42.7 | H120: 38.85 | I120: 1577514 | J120: 65134101.3 | K120: 2020-04-08 | L120: 8475 | M120: INE442H01029
A121: ASHOKLEY | B121: EQ | C121: 39.85 | D121: 47.8 | E121: 38.75 | F121: 43.85 | G121: 43.6 | H121: 39.85 | I121: 76817768 | J121: 3355417806 | K121: 2020-04-08 | L121: 169889 | M121: INE208A01029
A122: ASIANHOTNR | B122: EQ | C122: 70 | D122: 71.8 | E122: 66 | F122: 71.55 | G122: 71.5 | H122: 65.4 | I122: 4982 | J122: 349215.55 | K122: 2020-04-08 | L122: 198 | M122: INE363A01022
A123: ASIANPAINT | B123: EQ | C123: 1623.8 | D123: 1687.8 | E123: 1600 | F123: 1608.95 | G123: 1608 | H123: 1623.8 | I123: 2382216 | J123: 3911658954 | K123: 2020-04-08 | L123: 101146 | M123: INE021A01026
A124: ASIANTILES | B124: EQ | C124: 156 | D124: 162.9 | E124: 155 | F124: 157.6 | G124: 156.5 | H124: 157.65 | I124: 19917 | J124: 3151924.4 | K124: 2020-04-08 | L124: 431 | M124: INE022I01019
A125: ASPINWALL | B125: EQ | C125: 93 | D125: 98.7 | E125: 83.55 | F125: 93 | G125: 93 | H125: 90 | I125: 413 | J125: 38837.15 | K125: 2020-04-08 | L125: 20 | M125: INE991I01015
A126: ASTEC | B126: EQ | C126: 450.65 | D126: 465.05 | E126: 440 | F126: 460.05 | G126: 460.3 | H126: 443.9 | I126: 5283 | J126: 2392645.5 | K126: 2020-04-08 | L126: 494 | M126: INE563J01010
A127: ASTERDM | B127: EQ | C127: 96 | D127: 103.5 | E127: 93.8 | F127: 99.25 | G127: 99 | H127: 94.55 | I127: 996205 | J127: 98978623.7 | K127: 2020-04-08 | L127: 4570 | M127: INE914M01019
A128: ASTRAL | B128: EQ | C128: 962 | D128: 986 | E128: 952 | F128: 955.45 | G128: 954 | H128: 973.85 | I128: 59212 | J128: 57381672.65 | K128: 2020-04-08 | L128: 7623 | M128: INE006I01046
A129: ASTRAMICRO | B129: EQ | C129: 56.9 | D129: 62.55 | E129: 55.85 | F129: 61.7 | G129: 62.55 | H129: 56.9 | I129: 253097 | J129: 15146656.55 | K129: 2020-04-08 | L129: 1961 | M129: INE386C01029
A130: ASTRAZEN | B130: EQ | C130: 2700 | D130: 2830 | E130: 2544 | F130: 2561.6 | G130: 2549 | H130: 2693.65 | I130: 38510 | J130: 104113109 | K130: 2020-04-08 | L130: 6647 | M130: INE203A01020
A131: ASTRON | B131: EQ | C131: 26.15 | D131: 29.9 | E131: 25.3 | F131: 27.5 | G131: 27.8 | H131: 27.65 | I131: 61618 | J131: 1693449.45 | K131: 2020-04-08 | L131: 1743 | M131: INE646X01014
A132: ATFL | B132: EQ | C132: 479.65 | D132: 499 | E132: 475 | F132: 481.55 | G132: 475 | H132: 479.65 | I132: 6104 | J132: 2975754.9 | K132: 2020-04-08 | L132: 411 | M132: INE209A01019
A133: ATLANTA | B133: EQ | C133: 3 | D133: 3.15 | E133: 3 | F133: 3.15 | G133: 3.15 | H133: 3 | I133: 8624 | J133: 26936.35 | K133: 2020-04-08 | L133: 28 | M133: INE285H01022
A134: ATLASCYCLE | B134: BE | C134: 30 | D134: 31.5 | E134: 29.5 | F134: 30.7 | G134: 30.7 | H134: 30 | I134: 2000 | J134: 60118.65 | K134: 2020-04-08 | L134: 42 | M134: INE446A01025
A135: ATNINTER | B135: BE | C135: 0.1 | D135: 0.1 | E135: 0.1 | F135: 0.1 | G135: 0.1 | H135: 0.1 | I135: 12716 | J135: 1271.6 | K135: 2020-04-08 | L135: 5 | M135: INE803A01027
A136: ATUL | B136: EQ | C136: 3930 | D136: 4005 | E136: 3908.35 | F136: 3951.85 | G136: 3954.95 | H136: 3927.1 | I136: 76768 | J136: 304824820.4 | K136: 2020-04-08 | L136: 11635 | M136: INE100A01010
A137: ATULAUTO | B137: EQ | C137: 151.35 | D137: 154.05 | E137: 146.8 | F137: 153.45 | G137: 153.95 | H137: 146.75 | I137: 13699 | J137: 2093863.3 | K137: 2020-04-08 | L137: 810 | M137: INE951D01028
A138: AUBANK | B138: EQ | C138: 461.2 | D138: 490 | E138: 457 | F138: 480.3 | G138: 473 | H138: 478.4 | I138: 1791057 | J138: 837589012.6 | K138: 2020-04-08 | L138: 59410 | M138: INE949L01017
A139: AURIONPRO | B139: EQ | C139: 41.75 | D139: 43.7 | E139: 40 | F139: 42.9 | G139: 42.9 | H139: 40.95 | I139: 8828 | J139: 376649.05 | K139: 2020-04-08 | L139: 213 | M139: INE132H01018
A140: AUROPHARMA | B140: EQ | C140: 432.5 | D140: 476.3 | E140: 426.3 | F140: 438.15 | G140: 438.9 | H140: 445.7 | I140: 13186213 | J140: 5925576015 | K140: 2020-04-08 | L140: 205238 | M140: INE406A01037
A141: AUSOMENT | B141: EQ | C141: 26.1 | D141: 26.1 | E141: 26.1 | F141: 26.1 | G141: 26.1 | H141: 25 | I141: 100 | J141: 2610 | K141: 2020-04-08 | L141: 1 | M141: INE218C01016
A142: AUTOAXLES | B142: EQ | C142: 413 | D142: 423.5 | E142: 398.05 | F142: 413.45 | G142: 416 | H142: 399.3 | I142: 5448 | J142: 2244823.45 | K142: 2020-04-08 | L142: 638 | M142: INE449A01011
A143: AUTOIND | B143: EQ | C143: 11.3 | D143: 11.35 | E143: 11.1 | F143: 11.35 | G143: 11.35 | H143: 10.85 | I143: 9358 | J143: 105383.05 | K143: 2020-04-08 | L143: 68 | M143: INE718H01014
A144: AUTOLITIND | B144: EQ | C144: 13.2 | D144: 14.4 | E144: 13.2 | F144: 13.8 | G144: 13.9 | H144: 13.75 | I144: 4699 | J144: 65525.8 | K144: 2020-04-08 | L144: 68 | M144: INE448A01013
A145: AVADHSUGAR | B145: EQ | C145: 143.55 | D145: 143.55 | E145: 143.55 | F145: 143.55 | G145: 143.55 | H145: 136.75 | I145: 13174 | J145: 1891127.7 | K145: 2020-04-08 | L145: 157 | M145: INE349W01017
A146: AVANTIFEED | B146: EQ | C146: 311 | D146: 341.55 | E146: 310.5 | F146: 341.35 | G146: 341.55 | H146: 310.5 | I146: 748404 | J146: 246839085.1 | K146: 2020-04-08 | L146: 23272 | M146: INE871C01038
A147: AVTNPL | B147: EQ | C147: 25.45 | D147: 27.8 | E147: 24.25 | F147: 27.25 | G147: 27 | H147: 25.05 | I147: 213540 | J147: 5643644.4 | K147: 2020-04-08 | L147: 1601 | M147: INE488D01021
A148: AXISBANK | B148: EQ | C148: 383.75 | D148: 427.7 | E148: 373.5 | F148: 391.35 | G148: 391.4 | H148: 388.85 | I148: 64930772 | J148: 2.575974593e+10 | K148: 2020-04-08 | L148: 769506 | M148: INE238A01034
A149: AXISCADES | B149: EQ | C149: 30.9 | D149: 31.5 | E149: 28.65 | F149: 31.4 | G149: 31.5 | H149: 30 | I149: 39670 | J149: 1232336.75 | K149: 2020-04-08 | L149: 621 | M149: INE555B01013
A150: AXISGOLD | B150: EQ | C150: 3969.9 | D150: 3989 | E150: 3925 | F150: 3973.3 | G150: 3983 | H150: 3919.55 | I150: 701 | J150: 2769851.6 | K150: 2020-04-08 | L150: 206 | M150: INF846K01347
A151: AXISNIFTY | B151: EQ | C151: 1000.01 | D151: 1000.01 | E151: 1000.01 | F151: 1000.01 | G151: 1000.01 | H151: 1007 | I151: 2 | J151: 2000.02 | K151: 2020-04-08 | L151: 1 | M151: INF846K01ZL0
A152: AYMSYNTEX | B152: EQ | C152: 15.5 | D152: 16.8 | E152: 15.5 | F152: 16.5 | G152: 16.5 | H152: 16.1 | I152: 2637 | J152: 43548.55 | K152: 2020-04-08 | L152: 26 | M152: INE193B01039
A153: BAFNAPH | B153: EQ | C153: 16.05 | D153: 16.05 | E153: 16.05 | F153: 16.05 | G153: 16.05 | H153: 15.3 | I153: 272 | J153: 4365.6 | K153: 2020-04-08 | L153: 8 | M153: INE878I01022
A154: BAGFILMS | B154: BE | C154: 1.75 | D154: 1.8 | E154: 1.75 | F154: 1.8 | G154: 1.8 | H154: 1.75 | I154: 3861 | J154: 6912.3 | K154: 2020-04-08 | L154: 20 | M154: INE116D01028
A155: BAJAJ-AUTO | B155: EQ | C155: 2180 | D155: 2383.45 | E155: 2168.55 | F155: 2241.7 | G155: 2260 | H155: 2280.05 | I155: 840875 | J155: 1933266167 | K155: 2020-04-08 | L155: 59866 | M155: INE917I01010
A156: BAJAJCON | B156: EQ | C156: 136 | D156: 148.65 | E156: 135.1 | F156: 137.95 | G156: 138 | H156: 138.15 | I156: 1031633 | J156: 145711259.1 | K156: 2020-04-08 | L156: 26102 | M156: INE933K01021
A157: BAJAJELEC | B157: EQ | C157: 277.3 | D157: 294.5 | E157: 277.3 | F157: 287.8 | G157: 289 | H157: 277.3 | I157: 58251 | J157: 16797537.55 | K157: 2020-04-08 | L157: 3821 | M157: INE193E01025
A158: BAJAJFINSV | B158: EQ | C158: 4575 | D158: 4950 | E158: 4537.8 | F158: 4608.5 | G158: 4604 | H158: 4724.9 | I158: 1113057 | J158: 5259493342 | K158: 2020-04-08 | L158: 158158 | M158: INE918I01018
A159: BAJAJHIND | B159: EQ | C159: 3.05 | D159: 3.05 | E159: 3.05 | F159: 3.05 | G159: 3.05 | H159: 2.95 | I159: 80900 | J159: 246745 | K159: 2020-04-08 | L159: 110 | M159: INE306A01021
A160: BAJAJHLDNG | B160: EQ | C160: 2027.95 | D160: 2073.85 | E160: 1925 | F160: 2024.75 | G160: 2025 | H160: 1978.9 | I160: 25453 | J160: 51363834.45 | K160: 2020-04-08 | L160: 6198 | M160: INE118A01012
A161: BAJFINANCE | B161: EQ | C161: 2184 | D161: 2374 | E161: 2144.15 | F161: 2332.9 | G161: 2329 | H161: 2253.35 | I161: 9109346 | J161: 2.088826331e+10 | K161: 2020-04-08 | L161: 516967 | M161: INE296A01024
A162: BALAJITELE | B162: EQ | C162: 43 | D162: 45 | E162: 40.8 | F162: 41.9 | G162: 42.15 | H162: 43.75 | I162: 194912 | J162: 8414452.4 | K162: 2020-04-08 | L162: 1677 | M162: INE794B01026
A163: BALAMINES | B163: EQ | C163: 277 | D163: 296 | E163: 260.4 | F163: 283.65 | G163: 284.45 | H163: 271.2 | I163: 70594 | J163: 20058887.5 | K163: 2020-04-08 | L163: 2337 | M163: INE050E01027
A164: BALAXI | B164: BE | C164: 82.7 | D164: 82.7 | E164: 75.05 | F164: 79.9 | G164: 79.9 | H164: 79 | I164: 1047 | J164: 78761.9 | K164: 2020-04-08 | L164: 24 | M164: INE618N01014
A165: BALKRISHNA | B165: EQ | C165: 8.6 | D165: 8.8 | E165: 8.35 | F165: 8.8 | G165: 8.8 | H165: 8.4 | I165: 7860 | J165: 67624.35 | K165: 2020-04-08 | L165: 49 | M165: INE875R01011
A166: BALKRISIND | B166: EQ | C166: 822 | D166: 862 | E166: 815 | F166: 821.35 | G166: 818.3 | H166: 823.55 | I166: 444079 | J166: 371870250.3 | K166: 2020-04-08 | L166: 24462 | M166: INE787D01026
A167: BALLARPUR | B167: EQ | C167: 0.4 | D167: 0.4 | E167: 0.3 | F167: 0.35 | G167: 0.35 | H167: 0.35 | I167: 9769871 | J167: 3419941.15 | K167: 2020-04-08 | L167: 514 | M167: INE294A01037
A168: BALMLAWRIE | B168: EQ | C168: 84 | D168: 87.9 | E168: 81 | F168: 84.75 | G168: 85.65 | H168: 85.5 | I168: 202053 | J168: 17357055.25 | K168: 2020-04-08 | L168: 3105 | M168: INE164A01016
A169: BALPHARMA | B169: EQ | C169: 38.9 | D169: 41.7 | E169: 38.9 | F169: 41.7 | G169: 41.7 | H169: 37.95 | I169: 40933 | J169: 1688199.5 | K169: 2020-04-08 | L169: 518 | M169: INE083D01012
A170: BALRAMCHIN | B170: EQ | C170: 123.85 | D170: 126.4 | E170: 123 | F170: 126.4 | G170: 126.4 | H170: 120.4 | I170: 642515 | J170: 80884980.2 | K170: 2020-04-08 | L170: 7125 | M170: INE119A01028
A171: BANARBEADS | B171: EQ | C171: 30.25 | D171: 32.5 | E171: 29.6 | F171: 29.75 | G171: 29.75 | H171: 31.5 | I171: 160 | J171: 4873.85 | K171: 2020-04-08 | L171: 26 | M171: INE655B01011
A172: BANARISUG | B172: EQ | C172: 900 | D172: 925 | E172: 880 | F172: 886.1 | G172: 880 | H172: 893.1 | I172: 410 | J172: 368979.1 | K172: 2020-04-08 | L172: 94 | M172: INE459A01010
A173: BANCOINDIA | B173: EQ | C173: 65.45 | D173: 67.5 | E173: 64.1 | F173: 65.95 | G173: 66 | H173: 65.45 | I173: 40062 | J173: 2654130.6 | K173: 2020-04-08 | L173: 1013 | M173: INE213C01025
A174: BANDHANBNK | B174: EQ | C174: 167.95 | D174: 209.05 | E174: 167.5 | F174: 193.75 | G174: 195.25 | H174: 167.25 | I174: 30692919 | J174: 5833285762 | K174: 2020-04-08 | L174: 332020 | M174: INE545U01014
A175: BANG | B175: EQ | C175: 12.05 | D175: 13.1 | E175: 11.9 | F175: 13.1 | G175: 13.1 | H175: 12.5 | I175: 1590 | J175: 20489 | K175: 2020-04-08 | L175: 31 | M175: INE863I01016
A176: BANKBARODA | B176: EQ | C176: 48 | D176: 51.5 | E176: 47.3 | F176: 48.35 | G176: 48.45 | H176: 48.15 | I176: 27159204 | J176: 1340103716 | K176: 2020-04-08 | L176: 77070 | M176: INE028A01039
A177: BANKBEES | B177: EQ | C177: 190 | D177: 205.4 | E177: 186.06 | F177: 191.28 | G177: 191.4 | H177: 192.12 | I177: 676832 | J177: 131368353.2 | K177: 2020-04-08 | L177: 10023 | M177: INF204KB15I9
A178: BANKINDIA | B178: EQ | C178: 32.7 | D178: 34.75 | E178: 32.5 | F178: 33.35 | G178: 33.25 | H178: 32.95 | I178: 1236627 | J178: 41574499.75 | K178: 2020-04-08 | L178: 6257 | M178: INE084A01016
A179: BANSWRAS | B179: EQ | C179: 77.4 | D179: 77.4 | E179: 70.2 | F179: 71.15 | G179: 70.2 | H179: 73.75 | I179: 22922 | J179: 1667255.55 | K179: 2020-04-08 | L179: 137 | M179: INE629D01012
A180: BASF | B180: EQ | C180: 1154 | D180: 1154 | E180: 1105 | F180: 1119.95 | G180: 1120.5 | H180: 1138.25 | I180: 26139 | J180: 29425244.35 | K180: 2020-04-08 | L180: 2640 | M180: INE373A01013
A181: BASML | B181: EQ | C181: 74.05 | D181: 84 | E181: 74.05 | F181: 80 | G181: 80 | H181: 78.7 | I181: 1648 | J181: 135366.45 | K181: 2020-04-08 | L181: 154 | M181: INE186H01014
A182: BATAINDIA | B182: EQ | C182: 1246.5 | D182: 1339 | E182: 1228 | F182: 1240.05 | G182: 1238.95 | H182: 1246.4 | I182: 1346088 | J182: 1726485633 | K182: 2020-04-08 | L182: 66274 | M182: INE176A01028
A183: BAYERCROP | B183: EQ | C183: 3500 | D183: 3946.6 | E183: 3499.3 | F183: 3818.15 | G183: 3772.15 | H183: 3510 | I183: 32833 | J183: 125437264 | K183: 2020-04-08 | L183: 6737 | M183: INE462A01022
A184: BBL | B184: EQ | C184: 590 | D184: 621.25 | E184: 590 | F184: 613.05 | G184: 621.25 | H184: 589.55 | I184: 9335 | J184: 5684085.45 | K184: 2020-04-08 | L184: 804 | M184: INE464A01028
A185: BBTC | B185: EQ | C185: 810 | D185: 854.3 | E185: 774 | F185: 784.2 | G185: 787.95 | H185: 788.4 | I185: 76612 | J185: 62014517.65 | K185: 2020-04-08 | L185: 5281 | M185: INE050A01025
A186: BCG | B186: EQ | C186: 3.6 | D186: 3.65 | E186: 3.55 | F186: 3.65 | G186: 3.65 | H186: 3.5 | I186: 305718 | J186: 1113234.95 | K186: 2020-04-08 | L186: 149 | M186: INE425B01027
A187: BCP | B187: EQ | C187: 10.75 | D187: 10.75 | E187: 10.5 | F187: 10.75 | G187: 10.75 | H187: 10.25 | I187: 8192 | J187: 87934.6 | K187: 2020-04-08 | L187: 28 | M187: INE905P01028
A188: BDL | B188: EQ | C188: 191 | D188: 229 | E188: 188.2 | F188: 218.2 | G188: 216.4 | H188: 191.4 | I188: 448405 | J188: 97968192.25 | K188: 2020-04-08 | L188: 13672 | M188: INE171Z01018
A189: BEARDSELL | B189: EQ | C189: 6.7 | D189: 7.3 | E189: 6.7 | F189: 7.3 | G189: 7.3 | H189: 7.05 | I189: 1250 | J189: 8417 | K189: 2020-04-08 | L189: 4 | M189: INE520H01022
A190: BEDMUTHA | B190: EQ | C190: 12.8 | D190: 13.05 | E190: 12.45 | F190: 12.45 | G190: 12.45 | H190: 13.1 | I190: 19584 | J190: 245429.15 | K190: 2020-04-08 | L190: 32 | M190: INE844K01012
A191: BEL | B191: EQ | C191: 69 | D191: 71.3 | E191: 65.1 | F191: 66.4 | G191: 66.5 | H191: 69 | I191: 16699885 | J191: 1138705070 | K191: 2020-04-08 | L191: 69587 | M191: INE263A01024
A192: BEML | B192: EQ | C192: 492 | D192: 523.5 | E192: 492 | F192: 503.6 | G192: 503 | H192: 475.95 | I192: 890527 | J192: 458689246.6 | K192: 2020-04-08 | L192: 23670 | M192: INE258A01016
A193: BEPL | B193: EQ | C193: 31 | D193: 32.75 | E193: 30.3 | F193: 31.25 | G193: 31.6 | H193: 30.25 | I193: 333595 | J193: 10578641.1 | K193: 2020-04-08 | L193: 3321 | M193: INE922A01025
A194: BERGEPAINT | B194: EQ | C194: 479.9 | D194: 487.65 | E194: 460 | F194: 463.5 | G194: 462 | H194: 479.2 | I194: 1729062 | J194: 817908730.6 | K194: 2020-04-08 | L194: 32950 | M194: INE463A01038
A195: BFINVEST | B195: EQ | C195: 258 | D195: 268.8 | E195: 244.6 | F195: 246.3 | G195: 248.95 | H195: 257.45 | I195: 4938 | J195: 1236639.95 | K195: 2020-04-08 | L195: 244 | M195: INE878K01010
A196: BFUTILITIE | B196: EQ | C196: 158.35 | D196: 158.35 | E196: 151.05 | F196: 154.05 | G196: 153.7 | H196: 150.85 | I196: 138134 | J196: 21700813.75 | K196: 2020-04-08 | L196: 1649 | M196: INE243D01012
A197: BGRENERGY | B197: EQ | C197: 22.1 | D197: 22.85 | E197: 20.95 | F197: 21.1 | G197: 21.15 | H197: 22.2 | I197: 172282 | J197: 3763089.75 | K197: 2020-04-08 | L197: 1108 | M197: INE661I01014
A198: BHAGERIA | B198: EQ | C198: 85 | D198: 91.05 | E198: 80.65 | F198: 81.6 | G198: 82.3 | H198: 84.2 | I198: 34795 | J198: 2944870.7 | K198: 2020-04-08 | L198: 925 | M198: INE354C01027
A199: BHAGYANGR | B199: EQ | C199: 14.05 | D199: 15.2 | E199: 14 | F199: 14.4 | G199: 14.4 | H199: 14.4 | I199: 1338 | J199: 19622.25 | K199: 2020-04-08 | L199: 50 | M199: INE458B01036
A200: BHAGYAPROP | B200: EQ | C200: 18 | D200: 20 | E200: 18 | F200: 20 | G200: 20 | H200: 19 | I200: 999 | J200: 19011 | K200: 2020-04-08 | L200: 5 | M200: INE363W01018
... 1470 more rows

Sheet Sheet1 (hidden)

Sheet Sheet3 (hidden)

Sheet Sheet4 (hidden)

Sheet Sheet5 (hidden)
